Workbook

Sheet Инструкция
B2: ="Код шаблона: " & GetCode() -> Код шаблона: ENERGY.KTL.NET.PLAN
B3: ="Версия " & GetVersion() -> Версия 3.3.1
B4: Инструкция
C6: 1. Технические требования | F6: t
C7: • на рабочем месте должен быть установлен MS Office 2003 SP3, 2007 SP3, 2010 с полной версией MS Excel
C8: • макросы во время работы должны быть включены (!)
C9: • для корректной работы шаблона требуется выбрать низкий уровень безопасности
C10: (В меню MS Excel 2003: Сервис | Макрос | Безопасность | выбрать нижний пункт «Низкая безопасность» | OK)
C11: (В меню MS Excel 2007/2010: Параметры Excel | Центр управления безопасностью | Параметры центра управления безопасностью | Параметры макросов | Включить все макросы | ОК)
C12: • Если Вы работаете в табличном процессоре MS Excel 2007 и выше, то можете использовать для работы формат XLSM (Книга Excel с поддержкой макросов). При работе в формате XLSM заметно быстрее происходит сохранение шаблона, а также уменьшается размер файла по сравнению с форматом XLS.
C13: • Не рекомендуется снимать защиту с листов и каким-либо образом модифицировать защищаемые формулы и расчётные поля, в противном случае, шаблон будет отклонён системой
C14: • При сохранении не следует выбирать формат XLSX (Книга Excel), так как в указанном формате макросы, задействованные при работе с шаблоном, безвозвратно удаляются.
C15: 2. Условные обозначения | F15: u
C16: Типы ячеек:
C17: ● | D17: - обязательные для заполнения;
C18: ● | D18: - предназначенные для заполнения;
C19: ● | D19: - с формулами и константами или заполняемые автоматически (например, при выборе организации).
D20: Пояснение к заполнению на листе.
C21: 3. Работа с реестрами | F21: u
C22: Если в предложенном Вам списке необходимая организация (МР/МО) отсутствует, обновите реестр с помощью кнопки «Обновить реестр организаций» («Обновить реестр МО»).
C23: В результате синхронизации с базой данных список организаций (МР/МО) будет заменён актуальным (механизм синхронизации требует подключения к сети Интернет и основан на использовании протокола HTTPS (TCP порт 443)).
C24: Если после обновления Вам не удалось найти необходимую организацию в списке, обратитесь к ответственному за поддержание реестра Вашего региона. Информация о региональных органах регулирования доступна по ссылке:
C25: http://www.fstrf.ru/regions/region/showlist
C26: 4. Работа с листом «Проверка» | F26: u
C27: • При сохранении шаблона осуществляется проверка корректности данных, в том числе на наличие значений в ячейках, обязательных для заполнения.
C28: • Если какая-то ячейка не удовлетворяет условию проверки, на лист «Проверка» добавляется гиперссылка на данную ячейку и указывается причина ошибки.
C29: • В колонке «Статус» для каждого сообщения возможны 2 значения: ошибка и предупреждение.
C30: • При наличии сообщений со статусом «Ошибка» шаблон будет отклонён системой и не будет загружен в хранилище данных, сообщения со статусом «Предупреждение» носят информационный характер, и такой шаблон будет принят системой.
C32: • Если Вы работаете в табличном процессоре Microsoft Excel 2007 и выше, Вы можете использовать для работы формат XLSM (Книга Excel с поддержкой макросов).
C33: • При сохранении не следует выбирать формат XLSX (Книга Excel), так как в указанном формате макросы, задействованные при работе с шаблоном, БЕЗВОЗВРАТНО УДАЛЯЮТСЯ.
C34: • После того, как будут устранены все замечания, при сохранении шаблона появится сообщение «Шаблон готов к сохранению без замечаний».
C36: 5. Организационно-технические консультации | F36: u
D37: ФИО:
D38: Телефон:
D39: E-mail:
D40: Web-сайт: | E40: http://support.eias.ru/index.php?a=add&catid=15
D41: Комментарий
D42: Дистрибутивы: | E42: http://eias.ru/?page=show_distrs
E43: для устранения ошибок (напр., "Compile error in hidden module")
C44: 6. Методология заполнения | F44: t
C45: «Предложения территориальных сетевых организаций по передаче электрической энергии и мощности»
C47: На листах "Форма 3.1", "П1.30" , "П1.3" и "П1.4" гиперссылки "-" / "+" позволяют управлять видимостью блоков с помесячной детализацией периодов
C51: Комментарии, замечания и пожелания по всем формам Вы можете отразить на листе «Комментарии».
C52: 7. Консультации по методологии заполнения | F52: u
D53: ФИО:
D54: Телефон:
D55: E-mail:
D56: Web-сайт: | E56: http://support.eias.ru/index.php?a=add&catid=15
D57: Комментарий

Sheet Обновление
D3: Инструкция по обновлению шаблона
D5: Технические требования:
D6: • на рабочем месте должен быть установлен MS Office 2003, 2007, 2010 с полной версией MS Excel
D7: • макросы во время работы должны быть включены
D8: • для корректной работы шаблона рекомендуется выбрать низкий уровень безопасности
D9: (В меню MS Excel 2003: Сервис -> Макрос -> Безопасность -> выбрать нижний пункт«Низкая безопасность» -> «OK») (В MS Excel 2007 после открытия файла шаблона нажать на кнопку «Параметры…» в строке «Предупреждение системы безопасности», далее выбрать «Включить это содержимое» -> «OK»)
D10: Чтобы проверить наличие обновлений, нажмите кнопку «Обновить текущую версию шаблона». Лог обновления и статусные сообщения дублируются на листе «Лог обновления».
D23: Если компьютер имеет подключение к Интернет, можно автоматически проверять наличие доступных обновлений. Выберите способ оповещения о наличии обновлений для шаблона:

Sheet Лог обновления (hidden)
A2: 3/17/2012 12:12:41 AM | B2: Дата/Время | C2: Сообщение | D2: Статус

Sheet Титульный
F3: =version -> Версия 3.3.1
E5: ="Предложения территориальных сетевых организаций по передаче электрической энергии и мощности на " & IF(god="","Не определено",god) & " год" -> Предложения территориальных сетевых организаций по передаче электрической энергии и мощности на 2015 год
E8: Субъект РФ | F8: Тюменская область
E10: Период регулирования | F10: 2015
E12: Тип данных | F12: План
E14: Количество лет регулирования | F14: 5
E16: Первый период долгосрочного регулирования | F16: 2015
E18: Версия | F18: Версия организации
H19: Дата последнего обновления реестра организаций 09.04.2014 15:52:35
E20: Наименование юридического лица | F20: ООО "Ремэнергостройсервис"
E26: ИНН | F26: 7224023014
E27: КПП | F27: 722401001
E49: Юридический адрес | F49: 625501,Тюменская область,Тюменский район, д.Патрушева, ул.Центральная, д.39"А"
E50: Почтовый адрес | F50: 625000, г.Тюмень, ул.Герцена, д.84, корп.2А
E51: Руководитель
E52: Фамилия, имя, отчество | F52: Краснопёров Фёдор Петрович
E53: Контактный телефон | F53: (3452)46-87-40
E54: Главный бухгалтер
E55: Фамилия, имя, отчество | F55: Бокова Вера Петровна
E56: Контактный телефон | F56: (3452)46-87-54
E57: Должностное лицо, ответственное за составление формы
A58: L11.1 | B58: Ответственный.ФИО | E58: Фамилия, имя, отчество | F58: Кирнозенко Елена Николаевна
A59: L11.2 | B59: Ответственный.Должность | E59: Должность | F59: начальник ПТО
A60: L11.3 | B60: Ответственный.Телефон | E60: Контактный телефон | F60: (3452)46-87-45
A61: L11.4 | B61: Ответственный. E-Mail | E61: e-mail | F61: ress@com72.ru
E64: Отображаемое число знаков после запятой для числовых полей | F64: 2

Sheet Форма 3.1
D7: ="Предложения по технологическому расходу электроэнергии (мощности) - потерям в электрических сетях на " & IF(god="","Не определено",god) & " год: для формирования тарифа" -> Предложения по технологическому расходу электроэнергии (мощности) - потерям в электрических сетях на 2015 год: для формирования тарифа
V8: -
D12: № п/п | E12: Наименование | F12: Единица измерения | G12: ="План " & IF(god="","Не определено",god-2) & " год" -> План 2013 год | H12: ="Факт " & IF(god="","Не определено",god-2) & " год" -> Факт 2013 год | I12: ="План " & IF(god="","Не определено",god-1) & " год" -> План 2014 год | J12: ="План " & IF(god="","Не определено",god) & " год" -> План 2015 год | V12: ="План " & IF(god="","Не определено",god) & " год" -> План 2015 год | W12: ="План " & IF(god="","Не определено",god+1) & " год" -> План 2016 год | X12: ="План " & IF(god="","Не определено",god+2) & " год" -> План 2017 год | Y12: ="План " & IF(god="","Не определено",god+3) & " год" -> План 2018 год | Z12: ="План " & IF(god="","Не определено",god+4) & " год" -> План 2019 год
J13: Январь | K13: Февраль | L13: Март | M13: Апрель | N13: Май | O13: Июнь | P13: Июль | Q13: Август | R13: Сентябрь | S13: Октябрь | T13: Ноябрь | U13: Декабрь
D14: 1 | E14: =D14+1 -> 2 | F14: =E14+1 -> 3 | G14: 4 | H14: 5 | I14: 6 | J14: 7 | K14: 8 | L14: 9 | M14: 10 | N14: 11 | O14: 12 | P14: 13 | Q14: 14 | R14: 15 | S14: 16 | T14: 17 | U14: 18 | V14: 19 | W14: 20 | X14: 21 | Y14: 22 | Z14: 23
E15: Электроэнергия
D16: 1 | E16: Поступление в сеть | F16: млн.кВтч | G16: =П1.4!F15 -> 39.67 | H16: =П1.4!X15 -> 46.413522 | I16: =П1.4!AP15 -> 44.565 | J16: =J19+J23 -> 5.1052 | K16: =K19+K23 -> 4.3271 | L16: 4.6396 | M16: 3.5948 | N16: 3.6146 | O16: 3.0938 | P16: 3.0167 | Q16: 2.9604 | R16: 3.6125 | S16: 4.3052 | T16: 4.4417 | U16: =U19+U23-0.01 -> 4.316 | V16: =П1.30!CB17 -> 47.029275 | W16: =П1.4!ET15 -> 0 | X16: =П1.4!FL15 -> 0 | Y16: =П1.4!GD15 -> 0 | Z16: =П1.4!GV15 -> 0 | AB16: =SUM(J16:U16) -> 47.0276 | AC16: Электроэнергия
D17: 2 | E17: Потери в электрической сети, в т.ч. относимые на: | F17: млн.кВтч | G17: =SUM(G18:G19) -> 0.39 | H17: 1.265217 | I17: 0.61 | J17: 0.2042 | K17: 0.1731 | L17: 0.1856 | M17: 0.1438 | N17: 0.1446 | O17: 0.1238 | P17: 0.1207 | Q17: 0.1184 | R17: 0.1445 | S17: 0.1722 | T17: 0.1777 | U17: 0.173 | V17: 1.8815 | W17: 1.9 | X17: 1.93 | Y17: 1.94 | Z17: =SUM(Z18:Z19) -> 1.96
D18: 2.1 | E18: собственное потребление | F18: млн.кВтч | G18: =П1.4!F27 -> 0 | H18: =П1.4!X27 -> 0 | I18: =П1.4!AP27 -> 0 | V18: =П1.30!CB39 -> 0 | W18: =П1.4!ET27 -> 0 | X18: =П1.4!FL27 -> 0 | Y18: =П1.4!GD27 -> 0 | Z18: =П1.4!GV27 -> 0 | AB18: =SUM(J18:U18) -> 0 | AC18: Электроэнергия
D19: 2.2 | E19: передачу сторонним потребителям (субабонентам) | F19: млн.кВтч | G19: =П1.4!F28 -> 0.39 | H19: =П1.4!X28 -> 1.265217 | I19: =П1.4!AP28 -> 0.61 | J19: 0.2042 | K19: 0.1731 | L19: 0.1856 | M19: 0.1438 | N19: 0.1446 | O19: 0.1238 | P19: 0.1207 | Q19: 0.1184 | R19: 0.1445 | S19: 0.1722 | T19: 0.1777 | U19: 0.173 | V19: =П1.30!CB40 -> 1.8815 | W19: =П1.4!ET28 -> 1.9 | X19: =П1.4!FL28 -> 1.93 | Y19: =П1.4!GD28 -> 1.94 | Z19: =П1.4!GV28 -> 1.96 | AB19: =SUM(J19:U19) -> 1.8816 | AC19: Электроэнергия
D20: 3 | E20: Относительные потери | F20: % | G20: =IF(G16=0,0,G17/G16*100) -> 0.983110663 | H20: 2.725966368 | I20: 1.368787165 | J20: 3.999843297 | K20: 4.000369763 | L20: 4.000344857 | M20: 4.000222544 | N20: 4.000442649 | O20: 4.00155149 | P20: 4.001060762 | Q20: 3.999459532 | R20: 4 | S20: 3.999814178 | T20: 4.000720445 | U20: 4.008341057 | V20: 4.000699564 | W20: =IF(W16=0,0,W17/W16*100) -> 0 | X20: =IF(X16=0,0,X17/X16*100) -> 0 | Y20: =IF(Y16=0,0,Y17/Y16*100) -> 0 | Z20: =IF(Z16=0,0,Z17/Z16*100) -> 0
D21: 4 | E21: Отпуск из сети (полезный отпуск ), в т.ч. для: | F21: млн.кВтч | G21: =G16-G17 -> 39.28 | H21: 45.148305 | I21: 43.955 | J21: 4.901 | K21: 4.154 | L21: 4.454 | M21: 3.451 | N21: 3.47 | O21: 2.97 | P21: 2.896 | Q21: 2.842 | R21: 3.468 | S21: 4.133 | T21: 4.264 | U21: 4.143 | V21: 45.147775 | W21: =W16-W17 -> -1.9 | X21: =X16-X17 -> -1.93 | Y21: =Y16-Y17 -> -1.94 | Z21: =Z16-Z17 -> -1.96
D22: 4.1 | E22: собственного потребления | F22: млн.кВтч | G22: =П1.4!F29 -> 0 | H22: =П1.4!X29 -> 0 | I22: =П1.4!AP29 -> 0 | V22: =П1.30!CB45 -> 0 | W22: =П1.4!ET29 -> 0 | X22: =П1.4!FL29 -> 0 | Y22: =П1.4!GD29 -> 0 | Z22: =П1.4!GV29 -> 0 | AB22: =SUM(J22:U22) -> 0 | AC22: Электроэнергия
D23: 4.2 | E23: передачи сторонним потребителям (субабонентам) | F23: млн.кВтч | G23: =П1.4!F30 -> 39.2773 | H23: =П1.4!X30 -> 45.148302 | I23: =П1.4!AP30 -> 43.95684 | J23: 4.901 | K23: 4.154 | L23: 4.454 | M23: 3.451 | N23: 3.47 | O23: 2.97 | P23: 2.896 | Q23: 2.842 | R23: 3.468 | S23: 4.133 | T23: 4.264 | U23: 4.153 | V23: =П1.30!CB48 -> 45.156 | W23: =П1.4!ET30 -> 45.607 | X23: =П1.4!FL30 -> 46.064 | Y23: =П1.4!GD30 -> 46.525 | Z23: =П1.4!GV30 -> 46.99 | AB23: =SUM(J23:U23) -> 45.156 | AC23: Электроэнергия
E24: Мощность
D25: 5 | E25: Поступление в сеть | F25: МВт | G25: =П1.5!F15 -> 6.3 | H25: =П1.5!X15 -> 7.569067515 | I25: =П1.5!AP15 -> 8.569793117 | J25: =J28+J32 -> 11.702 | K25: =K28+K32 -> 10.949 | L25: 10.627 | M25: 8.487 | N25: 8.34 | O25: 7.326 | P25: 6.857 | Q25: 6.679 | R25: 8.612 | S25: 9.857 | T25: 10.53 | U25: 9.798 | V25: =П1.30!CT17 -> 9.145513028 | W25: =П1.5!ET15 -> 0 | X25: =П1.5!FL15 -> 0 | Y25: =П1.5!GD15 -> 0 | Z25: =П1.5!GV15 -> 0 | AB25: =SUM(J25:U25)/12 -> 9.147 | AC25: Мощность
D26: 6 | E26: Потери в электрической сети, в т.ч. относимые на: | F26: МВт | G26: =SUM(G27:G28) -> 0.06 | H26: 0.2063302348 | I26: 0.119 | J26: 0.467 | K26: 0.438 | L26: 0.424 | M26: 0.34 | N26: 0.331 | O26: 0.292 | P26: 0.276 | Q26: 0.271 | R26: 0.341 | S26: 0.394 | T26: 0.42 | U26: 0.396 | V26: 0.365 | W26: 0 | X26: 0 | Y26: 0 | Z26: =SUM(Z27:Z28) -> 0
D27: 6.1 | E27: собственное потребление | F27: МВт | G27: =П1.5!F26 -> 0 | H27: =П1.5!X26 -> 0 | I27: =П1.5!AP26 -> 0 | V27: =П1.30!CT39 -> 0 | W27: =П1.5!ET26 -> 0 | X27: =П1.5!FL26 -> 0 | Y27: =П1.5!GD26 -> 0 | Z27: =П1.5!GV26 -> 0 | AB27: =SUM(J27:U27)/12 -> 0 | AC27: Мощность
D28: 6.2 | E28: передачу сторонним потребителям (субабонентам) | F28: МВт | G28: =П1.5!F27 -> 0.06 | H28: =П1.5!X27 -> 0.2063302348 | I28: =П1.5!AP27 -> 0.119 | J28: 0.467 | K28: 0.438 | L28: 0.424 | M28: 0.34 | N28: 0.331 | O28: 0.292 | P28: 0.276 | Q28: 0.271 | R28: 0.341 | S28: 0.394 | T28: 0.42 | U28: 0.396 | V28: =П1.30!CT40 -> 0.365 | W28: =П1.5!ET27 -> 0 | X28: =П1.5!FL27 -> 0 | Y28: =П1.5!GD27 -> 0 | Z28: =П1.5!GV27 -> 0 | AB28: =SUM(J28:U28)/12 -> 0.3658333333 | AC28: Мощность
D29: 7 | E29: Относительные потери | F29: % | G29: =IF(G25=0,0,G26/G25*100) -> 0.9523809524 | H29: 2.725966368 | I29: 1.388598282 | J29: 3.990770808 | K29: 4.00036533 | L29: 3.989837207 | M29: 4.006127018 | N29: 3.96882494 | O29: 3.985803986 | P29: 4.025083856 | Q29: 4.057493637 | R29: 3.959591268 | S29: 3.997159379 | T29: 3.988603989 | U29: 4.041641151 | V29: 3.991028157 | W29: =IF(W25=0,0,W26/W25*100) -> 0 | X29: =IF(X25=0,0,X26/X25*100) -> 0 | Y29: =IF(Y25=0,0,Y26/Y25*100) -> 0 | Z29: =IF(Z25=0,0,Z26/Z25*100) -> 0
D30: 8 | E30: Отпуск из сети (полезный отпуск), в т.ч. для: | F30: МВт | G30: =G25-G26 -> 6.24 | H30: 7.36273728 | I30: 8.450793117 | J30: 11.235 | K30: 10.511 | L30: 10.203 | M30: 8.147 | N30: 8.009 | O30: 7.034 | P30: 6.581 | Q30: 6.408 | R30: 8.271 | S30: 9.463 | T30: 10.11 | U30: 9.402 | V30: 8.780513028 | W30: =W25-W26 -> 0 | X30: =X25-X26 -> 0 | Y30: =Y25-Y26 -> 0 | Z30: =Z25-Z26 -> 0
D31: 8.1 | E31: собственного потребления | F31: МВт | G31: =П1.5!F28 -> 0 | H31: =П1.5!X28 -> 0 | I31: =П1.5!AP28 -> 0 | V31: =П1.30!CT45 -> 0 | W31: =П1.5!ET28 -> 0 | X31: =П1.5!FL28 -> 0 | Y31: =П1.5!GD28 -> 0 | Z31: =П1.5!GV28 -> 0 | AB31: =SUM(J31:U31)/12 -> 0 | AC31: Мощность
D32: 8.2 | E32: передачи сторонним потребителям (субабонентам) | F32: МВт | G32: =П1.5!F29 -> 6.24 | H32: =П1.5!X29 -> 7.364061318 | I32: =П1.5!AP29 -> 8.449 | J32: 11.235 | K32: 10.511 | L32: 10.203 | M32: 8.147 | N32: 8.009 | O32: 7.034 | P32: 6.581 | Q32: 6.408 | R32: 8.271 | S32: 9.463 | T32: 10.11 | U32: 9.402 | V32: =П1.30!CT48 -> 8.781 | W32: =П1.5!ET29 -> 0 | X32: =П1.5!FL29 -> 0 | Y32: =П1.5!GD29 -> 0 | Z32: =П1.5!GV29 -> 0 | AB32: =SUM(J32:U32)/12 -> 8.781166667 | AC32: Мощность
D33: 9 | E33: Заявленная мощность | F33: МВт | G33: =SUM(G34:G35) -> 0 | H33: 0 | I33: 0 | J33: 11.235 | K33: 10.511 | L33: 10.203 | M33: 8.147 | N33: 8.009 | O33: 7.034 | P33: 6.581 | Q33: 6.408 | R33: 8.271 | S33: 9.463 | T33: 10.11 | U33: 9.402 | V33: 8.781 | W33: 0 | X33: 0 | Y33: 0 | Z33: 0
D34: 9.1 | E34: собственное потребление | F34: МВт | V34: =П1.30!CZ45 -> 0 | AB34: =SUM(J34:U34)/12 -> 0 | AC34: Мощность
D35: 9.2 | E35: сторонних потребителей (субабонентов) | F35: МВт | J35: =J32 -> 11.235 | K35: =K32 -> 10.511 | L35: 10.203 | M35: 8.147 | N35: 8.009 | O35: 7.034 | P35: 6.581 | Q35: 6.408 | R35: 8.271 | S35: 9.463 | T35: 10.11 | U35: 9.402 | V35: =П1.30!CZ48 -> 8.781 | AB35: =SUM(J35:U35)/12 -> 8.781166667 | AC35: Мощность
D36: 10 | E36: Присоединенная мощность | F36: МВА | G36: =SUM(G37:G38) -> 0 | H36: 0 | I36: 0 | J36: 0 | K36: 0 | L36: 0 | M36: 0 | N36: 0 | O36: 0 | P36: 0 | Q36: 0 | R36: 0 | S36: 0 | T36: 0 | U36: 0 | V36: 0 | W36: 0 | X36: 0 | Y36: 0 | Z36: =SUM(Z37:Z38) -> 0
D37: 10.1 | E37: собственное потребление | F37: МВА | V37: =П1.30!DF45 -> 0 | AB37: =MAX(J37:U37) -> 0 | AC37: Мощность
D38: 10.2 | E38: сторонних потребителей (субабонентов) | F38: МВА | V38: =П1.30!DF48 -> 0 | AB38: =MAX(J38:U38) -> 0 | AC38: Мощность

Sheet F_3_1 (hidden)

Sheet Форма 3.1 (L)
D7: ="Предложения по технологическому расходу электроэнергии (мощности) - потерям в электрических сетях на " & IF(god="","Не определено",god) & " год: по данным мониторинга FORM3.1.XXXX" -> Предложения по технологическому расходу электроэнергии (мощности) - потерям в электрических сетях на 2015 год: по данным мониторинга FORM3.1.XXXX
E8: (лист заполняется автоматически при наличии отчёта FORM3.1.XXXX от организации) | V8: -
D12: № п/п | E12: Наименование | F12: Единица измерения | G12: ="План " & IF(god="","Не определено",god-2) & " год" -> План 2013 год | H12: ="Факт " & IF(god="","Не определено",god-2) & " год" -> Факт 2013 год | I12: ="План " & IF(god="","Не определено",god-1) & " год" -> План 2014 год | J12: ="План " & IF(god="","Не определено",god) & " год" -> План 2015 год | V12: ="План " & IF(god="","Не определено",god) & " год" -> План 2015 год
J13: Январь | K13: Февраль | L13: Март | M13: Апрель | N13: Май | O13: Июнь | P13: Июль | Q13: Август | R13: Сентябрь | S13: Октябрь | T13: Ноябрь | U13: Декабрь
D14: 1 | E14: =D14+1 -> 2 | F14: =E14+1 -> 3 | G14: 4 | H14: 5 | I14: 6 | J14: 7 | K14: 8 | L14: 9 | M14: 10 | N14: 11 | O14: 12 | P14: 13 | Q14: 14 | R14: 15 | S14: 16 | T14: 17 | U14: 18 | V14: 19
E15: Электроэнергия
D16: 1 | E16: Поступление в сеть | F16: млн.кВтч
D17: 2 | E17: Потери в электрической сети, в т.ч. относимые на: | F17: млн.кВтч
D18: 2.1 | E18: собственное потребление | F18: млн.кВтч
D19: 2.2 | E19: передачу сторонним потребителям (субабонентам) | F19: млн.кВтч
D20: 3 | E20: Относительные потери | F20: %
D21: 4 | E21: Отпуск из сети (полезный отпуск ), в т.ч. для: | F21: млн.кВтч
D22: 4.1 | E22: собственного потребления | F22: млн.кВтч
D23: 4.2 | E23: передачи сторонним потребителям (субабонентам) | F23: млн.кВтч
E24: Мощность
D25: 5 | E25: Поступление в сеть | F25: МВт
D26: 6 | E26: Потери в электрической сети, в т.ч. относимые на: | F26: МВт
D27: 6.1 | E27: собственное потребление | F27: МВт
D28: 6.2 | E28: передачу сторонним потребителям (субабонентам) | F28: МВт
D29: 7 | E29: Относительные потери | F29: %
D30: 8 | E30: Отпуск из сети (полезный отпуск), в т.ч. для: | F30: МВт
D31: 8.1 | E31: собственного потребления | F31: МВт
D32: 8.2 | E32: передачи сторонним потребителям (субабонентам) | F32: МВт
D33: 9 | E33: Заявленная мощность | F33: МВт
D34: 9.1 | E34: собственное потребление | F34: МВт
D35: 9.2 | E35: сторонних потребителей (субабонентов) | F35: МВт
D36: 10 | E36: Присоединенная мощность | F36: МВА
D37: 10.1 | E37: собственное потребление | F37: МВА
D38: 10.2 | E38: сторонних потребителей (субабонентов) | F38: МВА

Sheet П1.30
D7: Отпуск (передача) электроэнергии
H8: + | AR8: + | CB8: +
D11: № п/п | E11: Показатели | G11: Наименование получателя платежа по ЕКТ | H11: ="Фактические данные на период, предшествующий отчётному периоду (" & IF(god="","Не определено",god-2) & " год факт)" -> Фактические данные на период, предшествующий отчётному периоду (2013 год факт) | AR11: ="Данные на период, предшествующий периоду регулирования (" & IF(god="","Не определено",god-1) & " год план)" -> Данные на период, предшествующий периоду регулирования (2014 год план) | CB11: ="Данные на период регулирования (" & IF(god="","Не определено",god) & " год план)" -> Данные на период регулирования (2015 год план)
H12: За год | N12: I полугодие | T12: II полугодие | Z12: За год | AR12: За год | AX12: I полугодие | BD12: II полугодие | BJ12: За год | CB12: За год | CH12: I полугодие | CN12: II полугодие | CT12: За год
H13: Электрическая энергия | Z13: Мощность (для расчёта) | AF13: Заявленная мощность | AL13: Присоединенная мощность потребителей | AR13: Электрическая энергия | BJ13: Мощность (для расчёта) | BP13: Заявленная мощность | BV13: Присоединенная мощность потребителей | CB13: Электрическая энергия | CT13: Мощность (для расчёта) | CZ13: Заявленная мощность | DF13: Присоединенная мощность потребителей
H14: Млн. кВтч | Z14: МВт | AF14: МВт | AL14: МВт | AR14: Млн. кВтч | BJ14: МВт | BP14: МВт | BV14: МВт | CB14: Млн. кВтч | CT14: МВт | CZ14: МВт | DF14: МВт
H15: Всего | I15: ВН | J15: в т.ч. ГН | K15: СН 1 | L15: СН 2 | M15: НН | N15: Всего | O15: ВН | P15: в т.ч. ГН | Q15: СН 1 | R15: СН 2 | S15: НН | T15: Всего | U15: ВН | V15: в т.ч. ГН | W15: СН 1 | X15: СН 2 | Y15: НН | Z15: Всего | AA15: ВН | AB15: в т.ч. ГН | AC15: СН 1 | AD15: СН 2 | AE15: НН | AF15: Всего | AG15: ВН | AH15: в т.ч. ГН | AI15: СН 1 | AJ15: СН 2 | AK15: НН | AL15: Всего | AM15: ВН | AO15: СН 1 | AP15: СН 2 | AQ15: НН | AR15: Всего | AS15: ВН | AT15: в т.ч. ГН | AU15: СН 1 | AV15: СН 2 | AW15: НН | AX15: Всего | AY15: ВН | AZ15: в т.ч. ГН | BA15: СН 1 | BB15: СН 2 | BC15: НН | BD15: Всего | BE15: ВН | BF15: в т.ч. ГН | BG15: СН 1 | BH15: СН 2 | BI15: НН | BJ15: Всего | BK15: ВН | BL15: в т.ч. ГН | BM15: СН 1 | BN15: СН 2 | BO15: НН | BP15: Всего | BQ15: ВН | BR15: в т.ч. ГН | BS15: СН 1 | BT15: СН 2 | BU15: НН | BV15: Всего | BW15: ВН | BY15: СН 1 | BZ15: СН 2 | CA15: НН | CB15: Всего | CC15: ВН | CD15: в т.ч. ГН | CE15: СН 1 | CF15: СН 2 | CG15: НН | CH15: Всего | CI15: ВН | CJ15: в т.ч. ГН | CK15: СН 1 | CL15: СН 2 | CM15: НН | CN15: Всего | CO15: ВН | CP15: в т.ч. ГН | CQ15: СН 1 | CR15: СН 2 | CS15: НН | CT15: Всего | CU15: ВН | CV15: в т.ч. ГН | CW15: СН 1 | CX15: СН 2 | CY15: НН | CZ15: Всего | DA15: ВН | DB15: в т.ч. ГН | DC15: СН 1 | DD15: СН 2 | DE15: НН | DF15: Всего | DG15: ВН | DI15: СН 1 | DJ15: СН 2 | DK15: НН
D17: 1 | E17: Поступило в сеть, всего, в том числе: | H17: =I17+K17+L17+M17 -> 46.413522 | I17: =I18+I21+I33 -> 17.752231 | K17: =K18+K21+K33 -> 0 | L17: =L18+L21+L33 -> 28.661291 | M17: =M18+M21+M33 -> 0 | N17: =O17+Q17+R17+S17 -> 23.746004 | O17: =O18+O21+O33 -> 8.709251 | Q17: =Q18+Q21+Q33 -> 0 | R17: =R18+R21+R33 -> 15.036753 | S17: =S18+S21+S33 -> 0 | T17: =U17+W17+X17+Y17 -> 22.667518 | U17: =U18+U21+U33 -> 9.04298 | W17: =W18+W21+W33 -> 0 | X17: =X18+X21+X33 -> 13.624538 | Y17: =Y18+Y21+Y33 -> 0 | Z17: =AA17+AC17+AD17+AE17 -> 7.569067515 | AA17: =AA18+AA21+AA33 -> 2.89501484 | AC17: =AC18+AC21+AC33 -> 0 | AD17: =AD18+AD21+AD33 -> 4.674052674 | AE17: =AE18+AE21+AE33 -> 0 | AF17: =AG17+AI17+AJ17+AK17 -> 7.569067515 | AG17: =AG18+AG21+AG33 -> 2.89501484 | AI17: =AI18+AI21+AI33 -> 0 | AJ17: =AJ18+AJ21+AJ33 -> 4.674052674 | AK17: =AK18+AK21+AK33 -> 0 | AR17: =AS17+AU17+AV17+AW17 -> 44.565 | AS17: =AS18+AS21+AS33 -> 17.608 | AU17: =AU18+AU21+AU33 -> 0 | AV17: =AV18+AV21+AV33 -> 26.957 | AW17: =AW18+AW21+AW33 -> 0 | AX17: =AY17+BA17+BB17+BC17 -> 22.531 | AY17: =AY18+AY21+AY33 -> 8.71 | BA17: =BA18+BA21+BA33 -> 0 | BB17: =BB18+BB21+BB33 -> 13.821 | BC17: =BC18+BC21+BC33 -> 0 | BD17: =BE17+BG17+BH17+BI17 -> 22.034 | BE17: =BE18+BE21+BE33 -> 8.898 | BG17: =BG18+BG21+BG33 -> 0 | BH17: =BH18+BH21+BH33 -> 13.136 | BI17: =BI18+BI21+BI33 -> 0 | BJ17: =BK17+BM17+BN17+BO17 -> 8.569793117 | BK17: =BK18+BK21+BK33 -> 3.820793218 | BM17: =BM18+BM21+BM33 -> 0 | BN17: =BN18+BN21+BN33 -> 4.748999899 | BO17: =BO18+BO21+BO33 -> 0 | BP17: =BQ17+BS17+BT17+BU17 -> 8.569793117 | BQ17: =BQ18+BQ21+BQ33 -> 3.820793218 | BS17: =BS18+BS21+BS33 -> 0 | BT17: =BT18+BT21+BT33 -> 4.748999899 | BU17: =BU18+BU21+BU33 -> 0 | CB17: =CC17+CE17+CF17+CG17 -> 47.029275 | CC17: =CC18+CC21+CC33 -> 17.57709 | CE17: =CE18+CE21+CE33 -> 0 | CF17: =CF18+CF21+CF33 -> 29.452185 | CG17: =CG18+CG21+CG33 -> 0 | CH17: =CI17+CK17+CL17+CM17 -> 24.370005 | CI17: =CI18+CI21+CI33 -> 9.1897 | CK17: =CK18+CK21+CK33 -> 0 | CL17: =CL18+CL21+CL33 -> 15.180305 | CM17: =CM18+CM21+CM33 -> 0 | CN17: =CO17+CQ17+CR17+CS17 -> 22.65927 | CO17: =CO18+CO21+CO33 -> 8.38739 | CQ17: =CQ18+CQ21+CQ33 -> 0 | CR17: =CR18+CR21+CR33 -> 14.27188 | CS17: =CS18+CS21+CS33 -> 0 | CT17: =CU17+CW17+CX17+CY17 -> 9.145513028 | CU17: =CU18+CU21+CU33 -> 4.059116514 | CW17: =CW18+CW21+CW33 -> 0 | CX17: =CX18+CX21+CX33 -> 5.086396513 | CY17: =CY18+CY21+CY33 -> 0 | CZ17: =DA17+DC17+DD17+DE17 -> 9.145513028 | DA17: =DA18+DA21+DA33 -> 4.059116514 | DC17: =DC18+DC21+DC33 -> 0 | DD17: =DD18+DD21+DD33 -> 5.086396513 | DE17: =DE18+DE21+DE33 -> 0
D18: 1.1 | E18: От несетевых организаций | H18: =I18+K18+L18+M18 -> 0 | I18: =I19+I20 -> 0 | K18: =K19+K20 -> 0 | L18: =L19+L20 -> 0 | M18: =M19+M20 -> 0 | N18: 0 | O18: =O19+O20 -> 0 | Q18: =Q19+Q20 -> 0 | R18: =R19+R20 -> 0 | S18: =S19+S20 -> 0 | T18: 0 | U18: =U19+U20 -> 0 | W18: =W19+W20 -> 0 | X18: =X19+X20 -> 0 | Y18: =Y19+Y20 -> 0 | Z18: =AA18+AC18+AD18+AE18 -> 0 | AA18: =AA19+AA20 -> 0 | AC18: =AC19+AC20 -> 0 | AD18: =AD19+AD20 -> 0 | AE18: =AE19+AE20 -> 0 | AF18: =AG18+AI18+AJ18+AK18 -> 0 | AG18: =AG19+AG20 -> 0 | AI18: =AI19+AI20 -> 0 | AJ18: =AJ19+AJ20 -> 0 | AK18: =AK19+AK20 -> 0 | AR18: =AS18+AU18+AV18+AW18 -> 0 | AS18: =AS19+AS20 -> 0 | AU18: =AU19+AU20 -> 0 | AV18: =AV19+AV20 -> 0 | AW18: =AW19+AW20 -> 0 | AX18: 0 | AY18: =AY19+AY20 -> 0 | BA18: =BA19+BA20 -> 0 | BB18: =BB19+BB20 -> 0 | BC18: =BC19+BC20 -> 0 | BD18: 0 | BE18: =BE19+BE20 -> 0 | BG18: =BG19+BG20 -> 0 | BH18: =BH19+BH20 -> 0 | BI18: =BI19+BI20 -> 0 | BJ18: =BK18+BM18+BN18+BO18 -> 0 | BK18: =BK19+BK20 -> 0 | BM18: =BM19+BM20 -> 0 | BN18: =BN19+BN20 -> 0 | BO18: =BO19+BO20 -> 0 | BP18: =BQ18+BS18+BT18+BU18 -> 0 | BQ18: =BQ19+BQ20 -> 0 | BS18: =BS19+BS20 -> 0 | BT18: =BT19+BT20 -> 0 | BU18: =BU19+BU20 -> 0 | CB18: =CC18+CE18+CF18+CG18 -> 0 | CC18: =CC19+CC20 -> 0 | CE18: =CE19+CE20 -> 0 | CF18: =CF19+CF20 -> 0 | CG18: =CG19+CG20 -> 0 | CH18: 0 | CI18: =CI19+CI20 -> 0 | CK18: =CK19+CK20 -> 0 | CL18: =CL19+CL20 -> 0 | CM18: =CM19+CM20 -> 0 | CN18: 0 | CO18: =CO19+CO20 -> 0 | CQ18: =CQ19+CQ20 -> 0 | CR18: =CR19+CR20 -> 0 | CS18: =CS19+CS20 -> 0 | CT18: =CU18+CW18+CX18+CY18 -> 0 | CU18: =CU19+CU20 -> 0 | CW18: =CW19+CW20 -> 0 | CX18: =CX19+CX20 -> 0 | CY18: =CY19+CY20 -> 0 | CZ18: =DA18+DC18+DD18+DE18 -> 0 | DA18: =DA19+DA20 -> 0 | DC18: =DC19+DC20 -> 0 | DD18: =DD19+DD20 -> 0 | DE18: =DE19+DE20 -> 0
D19: 1.1.1 | E19: От региональной генерации | H19: 0 | N19: 0 | T19: 0 | Z19: 0 | AF19: 0 | AR19: 0 | AX19: 0 | BD19: 0 | BJ19: 0 | BP19: 0 | CB19: 0 | CH19: 0 | CN19: 0 | CT19: 0 | CZ19: 0
D20: 1.1.2 | E20: От генерации - участника ОРЭМ | H20: 0 | N20: 0 | T20: 0 | Z20: 0 | AF20: 0 | AR20: 0 | AX20: 0 | BD20: 0 | BJ20: 0 | BP20: 0 | CB20: 0 | CH20: 0 | CN20: 0 | CT20: 0 | CZ20: 0
D21: 1.2 | E21: От сетевых компаний, в том числе: | H21: 46.413522 | I21: =I22+I23+I24 -> 17.752231 | K21: =K22+K23+K24 -> 0 | L21: =L22+L23+L24 -> 28.661291 | M21: =M22+M23+M24 -> 0 | N21: 23.746004 | O21: =O22+O23+O24 -> 8.709251 | Q21: =Q22+Q23+Q24 -> 0 | R21: =R22+R23+R24 -> 15.036753 | S21: =S22+S23+S24 -> 0 | T21: 22.667518 | U21: =U22+U23+U24 -> 9.04298 | W21: =W22+W23+W24 -> 0 | X21: =X22+X23+X24 -> 13.624538 | Y21: =Y22+Y23+Y24 -> 0 | Z21: 7.569067515 | AA21: =AA22+AA23+AA24 -> 2.89501484 | AC21: =AC22+AC23+AC24 -> 0 | AD21: =AD22+AD23+AD24 -> 4.674052674 | AE21: =AE22+AE23+AE24 -> 0 | AF21: 7.569067515 | AG21: =AG22+AG23+AG24 -> 2.89501484 | AI21: =AI22+AI23+AI24 -> 0 | AJ21: =AJ22+AJ23+AJ24 -> 4.674052674 | AK21: =AK22+AK23+AK24 -> 0 | AR21: 44.565 | AS21: =AS22+AS23+AS24 -> 17.608 | AU21: =AU22+AU23+AU24 -> 0 | AV21: =AV22+AV23+AV24 -> 26.957 | AW21: =AW22+AW23+AW24 -> 0 | AX21: 22.531 | AY21: =AY22+AY23+AY24 -> 8.71 | BA21: =BA22+BA23+BA24 -> 0 | BB21: =BB22+BB23+BB24 -> 13.821 | BC21: =BC22+BC23+BC24 -> 0 | BD21: 22.034 | BE21: =BE22+BE23+BE24 -> 8.898 | BG21: =BG22+BG23+BG24 -> 0 | BH21: =BH22+BH23+BH24 -> 13.136 | BI21: =BI22+BI23+BI24 -> 0 | BJ21: 8.569793117 | BK21: =BK22+BK23+BK24 -> 3.820793218 | BM21: =BM22+BM23+BM24 -> 0 | BN21: =BN22+BN23+BN24 -> 4.748999899 | BO21: =BO22+BO23+BO24 -> 0 | BP21: 8.569793117 | BQ21: =BQ22+BQ23+BQ24 -> 3.820793218 | BS21: =BS22+BS23+BS24 -> 0 | BT21: =BT22+BT23+BT24 -> 4.748999899 | BU21: =BU22+BU23+BU24 -> 0 | CB21: 47.029275 | CC21: =CC22+CC23+CC24 -> 17.57709 | CE21: =CE22+CE23+CE24 -> 0 | CF21: =CF22+CF23+CF24 -> 29.452185 | CG21: =CG22+CG23+CG24 -> 0 | CH21: 24.370005 | CI21: =CI22+CI23+CI24 -> 9.1897 | CK21: =CK22+CK23+CK24 -> 0 | CL21: =CL22+CL23+CL24 -> 15.180305 | CM21: =CM22+CM23+CM24 -> 0 | CN21: 22.65927 | CO21: =CO22+CO23+CO24 -> 8.38739 | CQ21: =CQ22+CQ23+CQ24 -> 0 | CR21: =CR22+CR23+CR24 -> 14.27188 | CS21: =CS22+CS23+CS24 -> 0 | CT21: 9.145513028 | CU21: =CU22+CU23+CU24 -> 4.059116514 | CW21: =CW22+CW23+CW24 -> 0 | CX21: =CX22+CX23+CX24 -> 5.086396513 | CY21: =CY22+CY23+CY24 -> 0 | CZ21: 9.145513028 | DA21: =DA22+DA23+DA24 -> 4.059116514 | DC21: =DC22+DC23+DC24 -> 0 | DD21: =DD22+DD23+DD24 -> 5.086396513 | DE21: =DE22+DE23+DE24 -> 0
D22: 1.2.1 | E22: Из сети ЕНЭС | H22: 0 | N22: 0 | T22: 0 | Z22: 0 | AF22: 0 | AR22: 0 | AX22: 0 | BD22: 0 | BJ22: 0 | BP22: 0 | CB22: 0 | CH22: 0 | CN22: 0 | CT22: 0 | CZ22: 0
D23: 1.2.2 | E23: Из сети РСК | H23: 0 | N23: 0 | T23: 0 | Z23: 0 | AF23: 0 | AR23: 0 | AX23: 0 | BD23: 0 | BJ23: 0 | BP23: 0 | CB23: 0 | CH23: 0 | CN23: 0 | CT23: 0 | CZ23: 0
D24: 1.2.3 | E24: Из сети прочих ТСО, в том числе: | H24: 46.413522 | I24: =SUM(I25:I32) -> 17.752231 | K24: =SUM(K25:K32) -> 0 | L24: =SUM(L25:L32) -> 28.661291 | M24: =SUM(M25:M32) -> 0 | N24: 23.746004 | O24: =SUM(O25:O32) -> 8.709251 | Q24: =SUM(Q25:Q32) -> 0 | R24: =SUM(R25:R32) -> 15.036753 | S24: =SUM(S25:S32) -> 0 | T24: 22.667518 | U24: =SUM(U25:U32) -> 9.04298 | W24: =SUM(W25:W32) -> 0 | X24: =SUM(X25:X32) -> 13.624538 | Y24: =SUM(Y25:Y32) -> 0 | Z24: 7.569067515 | AA24: =SUM(AA25:AA32) -> 2.89501484 | AC24: =SUM(AC25:AC32) -> 0 | AD24: =SUM(AD25:AD32) -> 4.674052674 | AE24: =SUM(AE25:AE32) -> 0 | AF24: 7.569067515 | AG24: =SUM(AG25:AG32) -> 2.89501484 | AI24: =SUM(AI25:AI32) -> 0 | AJ24: =SUM(AJ25:AJ32) -> 4.674052674 | AK24: =SUM(AK25:AK32) -> 0 | AR24: 44.565 | AS24: =SUM(AS25:AS32) -> 17.608 | AU24: =SUM(AU25:AU32) -> 0 | AV24: =SUM(AV25:AV32) -> 26.957 | AW24: =SUM(AW25:AW32) -> 0 | AX24: 22.531 | AY24: =SUM(AY25:AY32) -> 8.71 | BA24: =SUM(BA25:BA32) -> 0 | BB24: =SUM(BB25:BB32) -> 13.821 | BC24: =SUM(BC25:BC32) -> 0 | BD24: 22.034 | BE24: =SUM(BE25:BE32) -> 8.898 | BG24: =SUM(BG25:BG32) -> 0 | BH24: =SUM(BH25:BH32) -> 13.136 | BI24: =SUM(BI25:BI32) -> 0 | BJ24: 8.569793117 | BK24: =SUM(BK25:BK32) -> 3.820793218 | BM24: =SUM(BM25:BM32) -> 0 | BN24: =SUM(BN25:BN32) -> 4.748999899 | BO24: =SUM(BO25:BO32) -> 0 | BP24: 8.569793117 | BQ24: =SUM(BQ25:BQ32) -> 3.820793218 | BS24: =SUM(BS25:BS32) -> 0 | BT24: =SUM(BT25:BT32) -> 4.748999899 | BU24: =SUM(BU25:BU32) -> 0 | CB24: 47.029275 | CC24: =SUM(CC25:CC32) -> 17.57709 | CE24: =SUM(CE25:CE32) -> 0 | CF24: =SUM(CF25:CF32) -> 29.452185 | CG24: =SUM(CG25:CG32) -> 0 | CH24: 24.370005 | CI24: =SUM(CI25:CI32) -> 9.1897 | CK24: =SUM(CK25:CK32) -> 0 | CL24: =SUM(CL25:CL32) -> 15.180305 | CM24: =SUM(CM25:CM32) -> 0 | CN24: 22.65927 | CO24: =SUM(CO25:CO32) -> 8.38739 | CQ24: =SUM(CQ25:CQ32) -> 0 | CR24: =SUM(CR25:CR32) -> 14.27188 | CS24: =SUM(CS25:CS32) -> 0 | CT24: 9.145513028 | CU24: =SUM(CU25:CU32) -> 4.059116514 | CW24: =SUM(CW25:CW32) -> 0 | CX24: =SUM(CX25:CX32) -> 5.086396513 | CY24: =SUM(CY25:CY32) -> 0 | CZ24: 9.145513028 | DA24: =SUM(DA25:DA32) -> 4.059116514 | DC24: =SUM(DC25:DC32) -> 0 | DD24: =SUM(DD25:DD32) -> 5.086396513 | DE24: =SUM(DE25:DE32) -> 0
D25: 1.2.3.0
C26: r | D26: 1.2.3.1 | E26: ОАО "Тюменьэнерго" | H26: =I26+K26+L26+M26 -> 33.729741 | I26: =O26+U26 -> 11.956963 | L26: =R26+X26 -> 21.772778 | N26: =O26+Q26+R26+S26 -> 17.324986 | O26: =(1180.26+1086.1+1136.32+947.82+814.16+771.84)/1000 -> 5.9365 | R26: =(2362.317+2032.015+2149.287+1685.185+1722.882+1436.8)/1000 -> 11.388486 | T26: =U26+W26+X26+Y26 -> 16.404755 | U26: =(865.9+875.54+869.94+1123.725+1069.352+1216.006)/1000 -> 6.020463 | X26: =(1356.729+1249.507+1727.596+1995.333+2212.149+1842.978)/1000 -> 10.384292 | Z26: =AA26+AC26+AD26+AE26 -> 5.500610078 | AA26: =I26/6132*1000 -> 1.949928735 | AD26: =L26/6132*1000 -> 3.550681344 | AF26: =AG26+AI26+AJ26+AK26 -> 5.500610078 | AG26: =I26/6132*1000 -> 1.949928735 | AJ26: =L26/6132*1000 -> 3.550681344 | AR26: =AS26+AU26+AV26+AW26 -> 34.855 | AS26: =AY26+BE26 -> 11.818 | AV26: =BB26+BH26 -> 23.037 | AX26: =AY26+BA26+BB26+BC26 -> 17.801 | AY26: 5.94 | BB26: 11.861 | BD26: =BE26+BG26+BH26+BI26 -> 17.054 | BE26: 5.878 | BH26: 11.176 | BJ26: =BK26+BM26+BN26+BO26 -> 6.12 | BK26: 2.36 | BN26: 3.76 | BP26: =BQ26+BS26+BT26+BU26 -> 6.12 | BQ26: =BK26 -> 2.36 | BT26: =BN26 -> 3.76 | CB26: =CC26+CE26+CF26+CG26 -> 35.029275 | CC26: =CI26+CO26 -> 11.87709 | CD26: =CJ26+CP26 -> 0 | CF26: =CL26+CR26 -> 23.152185 | CH26: =CI26+CK26+CL26+CM26 -> 17.890005 | CI26: =5.94*1.005 -> 5.9697 | CL26: =11.861*1.005 -> 11.920305 | CN26: =CO26+CQ26+CR26+CS26 -> 17.13927 | CO26: =5.878*1.005 -> 5.90739 | CR26: =11.176*1.005 -> 11.23188 | CT26: =CU26+CW26+CX26+CY26 -> 6.42195 | CU26: =2.63*1.005 -> 2.64315 | CX26: =3.76*1.005 -> 3.7788 | CZ26: =DA26+DC26+DD26+DE26 -> 6.42195 | DA26: =CU26 -> 2.64315 | DD26: =CX26 -> 3.7788
C27: r | D27: 1.2.3.2 | E27: ОАО "СУЭНКО" | H27: 2.569953 | L27: 2.569953 | N27: 1.320316 | R27: =(266.078+223.036+238.458+202.249+205.09+185.405)/1000 -> 1.320316 | T27: 1.249637 | X27: =(165.336+170.409+194.937+224.999+226.74+267.216)/1000 -> 1.249637 | Z27: 0.4191051859 | AD27: =L27/6132*1000 -> 0.4191051859 | AF27: 0.4191051859 | AJ27: 0.4191051859 | AR27: 2.71 | AV27: =BB27+BH27 -> 2.71 | AX27: 1.4 | BB27: 1.4 | BD27: 1.31 | BH27: 1.31 | BJ27: 0.683721869 | BN27: =AV27/367/24/0.45*1000 -> 0.683721869 | BP27: 0.683721869 | BT27: 0.683721869 | CB27: 2.48 | CD27: =CJ27+CP27 -> 0 | CF27: 2.48 | CH27: 1.32 | CL27: 1.32 | CN27: 1.16 | CR27: =1.25-0.09 -> 1.16 | CT27: 0.5147364051 | CX27: =CF27/365/24/0.55*1000 -> 0.5147364051 | CZ27: 0.5147364051 | DD27: =CX27 -> 0.5147364051
C28: r | D28: 1.2.3.3 | E28: филиал ОАО "РЖД"- Свердловская ж.д. (Тюменская дистанция) | H28: 5.795268 | I28: =O28+U28 -> 5.795268 | N28: 2.772751 | O28: =(572.221+427.028+501.022+373.185+510.61+388.685)/1000 -> 2.772751 | T28: 3.022517 | U28: =(368.694+394.307+487.457+568.308+519.784+683.967)/1000 -> 3.022517 | Z28: 0.9450861057 | AA28: =I28/6132*1000 -> 0.9450861057 | AF28: 0.9450861057 | AG28: =I28/6132*1000 -> 0.9450861057 | AR28: 5.79 | AS28: =AY28+BE28 -> 5.79 | AX28: 2.77 | AY28: 2.77 | BD28: 3.02 | BE28: 3.02 | BJ28: 1.460793218 | BK28: =AS28/367/24/0.45*1000 -> 1.460793218 | BP28: 1.460793218 | BQ28: =BK28 -> 1.460793218 | CB28: 5.7 | CC28: =CI28+CO28 -> 5.7 | CD28: =CJ28+CP28 -> 0 | CH28: 3.22 | CI28: =2.77+0.54-0.09 -> 3.22 | CN28: 2.48 | CO28: =3.02-0.54 -> 2.48 | CT28: 1.415966514 | CU28: =CC28/365/24/0.45*1000-0.03 -> 1.415966514 | CZ28: 1.415966514 | DA28: =CU28 -> 1.415966514
C29: r | D29: 1.2.3.4 | E29: ООО "Элтранс" | H29: 1.209626 | L29: 1.209626 | N29: 0.586537 | R29: =(93.38+79.239+104.771+75.205+109.391+124.551)/1000 -> 0.586537 | T29: 0.623089 | X29: =(125.435+93.039+116.28+113.497+88.019+86.819)/1000 -> 0.623089 | Z29: 0.197264514 | AD29: =L29/6132*1000 -> 0.197264514 | AF29: 0.197264514 | AJ29: 0.197264514 | AR29: 0.2 | AV29: =BB29+BH29 -> 0.2 | AX29: 0.1 | BB29: 0.1 | BD29: 0.1 | BH29: 0.1 | BJ29: 0.05045917852 | BN29: =AV29/367/24/0.45*1000 -> 0.05045917852 | BP29: 0.05045917852 | BT29: 0.05045917852 | CB29: 1.21 | CF29: 1.21 | CH29: 0.59 | CL29: 0.59 | CN29: 0.62 | CR29: 0.62 | CT29: 0.2511415525 | CX29: =CF29/365/24/0.55*1000 -> 0.2511415525 | CZ29: 0.2511415525 | DD29: =CX29 -> 0.2511415525
C30: r | D30: 1.2.3.5 | E30: ООО "Тарманское-Центральное" | H30: 2.212513 | L30: 2.212513 | N30: 1.205905 | R30: =(318.384+245.549+251.103+159.724+173.72+57.425)/1000 -> 1.205905 | T30: 1.006608 | X30: =(48.357+61.034+117.047+234.346+261.176+284.648)/1000 -> 1.006608 | Z30: 0.3608142531 | AD30: =L30/6132*1000 -> 0.3608142531 | AF30: 0.3608142531 | AJ30: 0.3608142531 | AR30: 0.11 | AV30: =BB30+BH30 -> 0.11 | AX30: 0.06 | BB30: 0.06 | BD30: 0.05 | BH30: 0.05 | BJ30: 0.02775254819 | BN30: =AV30/367/24/0.45*1000 -> 0.02775254819 | BP30: 0.02775254819 | BT30: 0.02775254819 | CB30: 1.71 | CF30: 1.71 | CH30: 0.81 | CL30: =1.01-0.2 -> 0.81 | CN30: 0.9 | CR30: 0.9 | CT30: 0.3549190535 | CX30: =CF30/365/24/0.55*1000 -> 0.3549190535 | CZ30: 0.3549190535 | DD30: =CX30 -> 0.3549190535
C31: r | D31: 1.2.3.6 | E31: ООО " Тюменская электросетевая компания" | H31: 0.896421 | L31: 0.896421 | N31: 0.535509 | R31: =(206.412+96.997+80.076+59.942+51.294+40.788)/1000 -> 0.535509 | T31: 0.360912 | X31: =(32.96+30.9+51.5+76.014+70.246+99.292)/1000 -> 0.360912 | Z31: 0.1461873777 | AD31: =L31/6132*1000 -> 0.1461873777 | AF31: 0.1461873777 | AJ31: 0.1461873777 | AR31: 0.9 | AV31: 0.9 | AX31: 0.4 | BB31: =0.54-0.14 -> 0.4 | BD31: 0.5 | BH31: =0.36+0.14 -> 0.5 | BJ31: 0.2270663034 | BN31: =AV31/367/24/0.45*1000 -> 0.2270663034 | BP31: 0.2270663034 | BT31: 0.2270663034 | CB31: 0.9 | CF31: 0.9 | CH31: 0.54 | CL31: 0.54 | CN31: 0.36 | CR31: 0.36 | CT31: 0.1867995019 | CX31: =CF31/365/24/0.55*1000 -> 0.1867995019 | CZ31: 0.1867995019 | DD31: =CX31 -> 0.1867995019
E32: Добавить ТСО
D33: 1.3 | E33: Поступление из смежных субъектов | H33: =I33+K33+L33+M33 -> 0 | N33: =O33+Q33+R33+S33 -> 0 | T33: =U33+W33+X33+Y33 -> 0 | Z33: =AA33+AC33+AD33+AE33 -> 0 | AF33: =AG33+AI33+AJ33+AK33 -> 0 | AR33: =AS33+AU33+AV33+AW33 -> 0 | AX33: =AY33+BA33+BB33+BC33 -> 0 | BD33: =BE33+BG33+BH33+BI33 -> 0 | BJ33: =BK33+BM33+BN33+BO33 -> 0 | BP33: =BQ33+BS33+BT33+BU33 -> 0 | CB33: =CC33+CE33+CF33+CG33 -> 0 | CH33: =CI33+CK33+CL33+CM33 -> 0 | CN33: =CO33+CQ33+CR33+CS33 -> 0 | CT33: =CU33+CW33+CX33+CY33 -> 0 | CZ33: =DA33+DC33+DD33+DE33 -> 0
D34: 2 | E34: Поступление в сеть на другие уровни напряжения (трансформация), в т.ч. из: | H34: =SUM(I34:M34) -> 29.778066 | K34: =SUM(K35:K37) -> 0 | L34: =SUM(L35:L37) -> 17.343401 | M34: =SUM(M35:M37) -> 12.434665 | N34: =SUM(O34:S34) -> 15.403898 | Q34: =SUM(Q35:Q37) -> 0 | R34: =SUM(R35:R37) -> 8.594731 | S34: =SUM(S35:S37) -> 6.809167 | T34: =SUM(U34:Y34) -> 14.374168 | W34: =SUM(W35:W37) -> 0 | X34: =SUM(X35:X37) -> 8.74867 | Y34: =SUM(Y35:Y37) -> 5.625498 | Z34: =SUM(AA34:AE34) -> 4.856175147 | AC34: =SUM(AC35:AC37) -> 0 | AD34: =SUM(AD35:AD37) -> 2.828343281 | AE34: =SUM(AE35:AE37) -> 2.027831866 | AF34: =SUM(AG34:AK34) -> 4.856175147 | AI34: =SUM(AI35:AI37) -> 0 | AJ34: =SUM(AJ35:AJ37) -> 2.828343281 | AK34: =SUM(AK35:AK37) -> 2.027831866 | AR34: =SUM(AS34:AW34) -> 29.23103 | AU34: =SUM(AU35:AU37) -> 0 | AV34: =SUM(AV35:AV37) -> 17.408 | AW34: =SUM(AW35:AW37) -> 11.82303 | AX34: =SUM(AY34:BC34) -> 15.19518 | BA34: =SUM(BA35:BA37) -> 0 | BB34: =SUM(BB35:BB37) -> 8.61 | BC34: =SUM(BC35:BC37) -> 6.58518 | BD34: =SUM(BE34:BI34) -> 14.03585 | BG34: =SUM(BG35:BG37) -> 0 | BH34: =SUM(BH35:BH37) -> 8.798 | BI34: =SUM(BI35:BI37) -> 5.23785 | BJ34: =SUM(BK34:BO34) -> 6.193586336 | BM34: =SUM(BM35:BM37) -> 0 | BN34: =SUM(BN35:BN37) -> 3.794793218 | BO34: =SUM(BO35:BO37) -> 2.398793117 | BP34: =SUM(BQ34:BU34) -> 6.193586336 | BS34: =SUM(BS35:BS37) -> 0 | BT34: =SUM(BT35:BT37) -> 3.794793218 | BU34: =SUM(BU35:BU37) -> 2.398793117 | CB34: =SUM(CC34:CG34) -> 29.593965 | CE34: =SUM(CE35:CE37) -> 0 | CF34: =SUM(CF35:CF37) -> 17.16319 | CG34: =SUM(CG35:CG37) -> 12.430775 | CH34: =SUM(CI34:CM34) -> 15.782205 | CK34: =SUM(CK35:CK37) -> 0 | CL34: =SUM(CL35:CL37) -> 8.9752 | CM34: =SUM(CM35:CM37) -> 6.807005 | CN34: =SUM(CO34:CS34) -> 13.81176 | CQ34: =SUM(CQ35:CQ37) -> 0 | CR34: =SUM(CR35:CR37) -> 8.18799 | CS34: =SUM(CS35:CS37) -> 5.62377 | CT34: =SUM(CU34:CY34) -> 6.519629542 | CW34: =SUM(CW35:CW37) -> 0 | CX34: =SUM(CX35:CX37) -> 3.979116514 | CY34: =SUM(CY35:CY37) -> 2.540513028 | CZ34: =SUM(DA34:DE34) -> 6.519629542 | DC34: =SUM(DC35:DC37) -> 0 | DD34: =SUM(DD35:DD37) -> 3.979116514 | DE34: =SUM(DE35:DE37) -> 2.540513028
D35: 2.1 | E35: ВН | H35: =SUM(I35:M35) -> 17.343401 | L35: =I17-I38 -> 17.343401 | N35: =SUM(O35:S35) -> 8.594731 | R35: =O17-O38 -> 8.594731 | T35: =SUM(U35:Y35) -> 8.74867 | X35: =U17-U38 -> 8.74867 | Z35: =SUM(AA35:AE35) -> 2.828343281 | AD35: =AA17-AA38 -> 2.828343281 | AF35: =SUM(AG35:AK35) -> 2.828343281 | AJ35: =AG17-AG38 -> 2.828343281 | AR35: =SUM(AS35:AW35) -> 17.408 | AV35: =AS17-AS38 -> 17.408 | AX35: =SUM(AY35:BC35) -> 8.61 | BB35: =AY17-AY38 -> 8.61 | BD35: =SUM(BE35:BI35) -> 8.798 | BH35: =BE17-BE38 -> 8.798 | BJ35: =SUM(BK35:BO35) -> 3.794793218 | BN35: =BK17-BK38 -> 3.794793218 | BP35: =SUM(BQ35:BU35) -> 3.794793218 | BT35: =BQ17-BQ38 -> 3.794793218 | CB35: =SUM(CC35:CG35) -> 17.16319 | CF35: =CC17-CC38 -> 17.16319 | CH35: =SUM(CI35:CM35) -> 8.9752 | CL35: =CI17-CI38 -> 8.9752 | CN35: =SUM(CO35:CS35) -> 8.18799 | CR35: =CO17-CO38 -> 8.18799 | CT35: =SUM(CU35:CY35) -> 3.979116514 | CX35: =CU17-CU38 -> 3.979116514 | CZ35: =SUM(DA35:DE35) -> 3.979116514 | DD35: =DA17-DA38 -> 3.979116514
D36: 2.2 | E36: СН 1 | H36: =SUM(I36:M36) -> 0 | N36: =SUM(O36:S36) -> 0 | T36: =SUM(U36:Y36) -> 0 | Z36: =SUM(AA36:AE36) -> 0 | AF36: =SUM(AG36:AK36) -> 0 | AR36: =SUM(AS36:AW36) -> 0 | AX36: =SUM(AY36:BC36) -> 0 | BD36: =SUM(BE36:BI36) -> 0 | BJ36: =SUM(BK36:BO36) -> 0 | BP36: =SUM(BQ36:BU36) -> 0 | CB36: =SUM(CC36:CG36) -> 0 | CH36: =SUM(CI36:CM36) -> 0 | CN36: =SUM(CO36:CS36) -> 0 | CT36: =SUM(CU36:CY36) -> 0 | CZ36: =SUM(DA36:DE36) -> 0
D37: 2.3 | E37: СН 2 | H37: =SUM(I37:M37) -> 12.434665 | M37: =L17+L34-L48-L38 -> 12.434665 | N37: =SUM(O37:S37) -> 6.809167 | S37: =R17+R34-R48-R38 -> 6.809167 | T37: =SUM(U37:Y37) -> 5.625498 | Y37: =X17+X34-X48-X38 -> 5.625498 | Z37: =SUM(AA37:AE37) -> 2.027831866 | AE37: =AD17+AD34-AD48-AD38 -> 2.027831866 | AF37: =SUM(AG37:AK37) -> 2.027831866 | AK37: =AJ17+AJ34-AJ48-AJ38 -> 2.027831866 | AR37: =SUM(AS37:AW37) -> 11.82303 | AW37: =AV17+AV34-AV48-AV38 -> 11.82303 | AX37: =SUM(AY37:BC37) -> 6.58518 | BC37: =BB17+BB34-BB48-BB38 -> 6.58518 | BD37: =SUM(BE37:BI37) -> 5.23785 | BI37: =BH17+BH34-BH48-BH38 -> 5.23785 | BJ37: =SUM(BK37:BO37) -> 2.398793117 | BO37: =BN17+BN34-BN48-BN38 -> 2.398793117 | BP37: =SUM(BQ37:BU37) -> 2.398793117 | BU37: =BT17+BT34-BT48-BT38 -> 2.398793117 | CB37: =SUM(CC37:CG37) -> 12.430775 | CG37: =CF17+CF34-CF48-CF38 -> 12.430775 | CH37: =SUM(CI37:CM37) -> 6.807005 | CM37: =CL17+CL34-CL48-CL38 -> 6.807005 | CN37: =SUM(CO37:CS37) -> 5.62377 | CS37: =CR17+CR34-CR48-CR38 -> 5.62377 | CT37: =SUM(CU37:CY37) -> 2.540513028 | CY37: =CX17+CX34-CX48-CX38 -> 2.540513028 | CZ37: =SUM(DA37:DE37) -> 2.540513028 | DE37: =DD17+DD34-DD48-DD38 -> 2.540513028
D38: 3 | E38: Потери, в том числе: | H38: =I38+K38+L38+M38 -> 1.265217 | I38: =SUM(I39:I40) -> 0.40883 | K38: =SUM(K39:K40) -> 0 | L38: =SUM(L39:L40) -> 0.856387 | M38: =SUM(M39:M40) -> 0 | N38: =O38+Q38+R38+S38 -> 0.350968 | O38: =SUM(O39:O40) -> 0.11452 | Q38: =SUM(Q39:Q40) -> 0 | R38: =SUM(R39:R40) -> 0.236448 | S38: =SUM(S39:S40) -> 0 | T38: =U38+W38+X38+Y38 -> 0.914249 | U38: =SUM(U39:U40) -> 0.29431 | W38: =SUM(W39:W40) -> 0 | X38: =SUM(X39:X40) -> 0.619939 | Y38: =SUM(Y39:Y40) -> 0 | Z38: =AA38+AC38+AD38+AE38 -> 0.2063302348 | AA38: =SUM(AA39:AA40) -> 0.06667155903 | AC38: =SUM(AC39:AC40) -> 0 | AD38: =SUM(AD39:AD40) -> 0.1396586758 | AE38: =SUM(AE39:AE40) -> 0 | AF38: =AG38+AI38+AJ38+AK38 -> 0.2063302348 | AG38: =SUM(AG39:AG40) -> 0.06667155903 | AI38: =SUM(AI39:AI40) -> 0 | AJ38: =SUM(AJ39:AJ40) -> 0.1396586758 | AK38: =SUM(AK39:AK40) -> 0 | AR38: =AS38+AU38+AV38+AW38 -> 0.61 | AS38: =SUM(AS39:AS40) -> 0.2 | AU38: =SUM(AU39:AU40) -> 0 | AV38: =SUM(AV39:AV40) -> 0.41 | AW38: =SUM(AW39:AW40) -> 0 | AX38: =AY38+BA38+BB38+BC38 -> 0.3 | AY38: =SUM(AY39:AY40) -> 0.1 | BA38: =SUM(BA39:BA40) -> 0 | BB38: =SUM(BB39:BB40) -> 0.2 | BC38: =SUM(BC39:BC40) -> 0 | BD38: =BE38+BG38+BH38+BI38 -> 0.31 | BE38: =SUM(BE39:BE40) -> 0.1 | BG38: =SUM(BG39:BG40) -> 0 | BH38: =SUM(BH39:BH40) -> 0.21 | BI38: =SUM(BI39:BI40) -> 0 | BJ38: =BK38+BM38+BN38+BO38 -> 0.119 | BK38: =SUM(BK39:BK40) -> 0.026 | BM38: =SUM(BM39:BM40) -> 0 | BN38: =SUM(BN39:BN40) -> 0.093 | BO38: =SUM(BO39:BO40) -> 0 | BP38: =BQ38+BS38+BT38+BU38 -> 0.119 | BQ38: =SUM(BQ39:BQ40) -> 0.026 | BS38: =SUM(BS39:BS40) -> 0 | BT38: =SUM(BT39:BT40) -> 0.093 | BU38: =SUM(BU39:BU40) -> 0 | CB38: =CC38+CE38+CF38+CG38 -> 1.8815 | CC38: =SUM(CC39:CC40) -> 0.4139 | CE38: =SUM(CE39:CE40) -> 0 | CF38: =SUM(CF39:CF40) -> 1.4676 | CG38: =SUM(CG39:CG40) -> 0 | CH38: =CI38+CK38+CL38+CM38 -> 0.975 | CI38: =SUM(CI39:CI40) -> 0.2145 | CK38: =SUM(CK39:CK40) -> 0 | CL38: =SUM(CL39:CL40) -> 0.7605 | CM38: =SUM(CM39:CM40) -> 0 | CN38: =CO38+CQ38+CR38+CS38 -> 0.9065 | CO38: =SUM(CO39:CO40) -> 0.1994 | CQ38: =SUM(CQ39:CQ40) -> 0 | CR38: =SUM(CR39:CR40) -> 0.7071 | CS38: =SUM(CS39:CS40) -> 0 | CT38: =CU38+CW38+CX38+CY38 -> 0.365 | CU38: =SUM(CU39:CU40) -> 0.08 | CW38: =SUM(CW39:CW40) -> 0 | CX38: =SUM(CX39:CX40) -> 0.285 | CY38: =SUM(CY39:CY40) -> 0 | CZ38: =DA38+DC38+DD38+DE38 -> 0.365 | DA38: =SUM(DA39:DA40) -> 0.08 | DC38: =SUM(DC39:DC40) -> 0 | DD38: =SUM(DD39:DD40) -> 0.285 | DE38: =SUM(DE39:DE40) -> 0
D39: 3.1 | E39: относимые на основное производство | H39: =I39+K39+L39+M39 -> 0 | N39: =O39+Q39+R39+S39 -> 0 | T39: =U39+W39+X39+Y39 -> 0 | Z39: =AA39+AC39+AD39+AE39 -> 0 | AF39: =AG39+AI39+AJ39+AK39 -> 0 | AR39: =AS39+AU39+AV39+AW39 -> 0 | AX39: =AY39+BA39+BB39+BC39 -> 0 | BD39: =BE39+BG39+BH39+BI39 -> 0 | BJ39: =BK39+BM39+BN39+BO39 -> 0 | BP39: =BQ39+BS39+BT39+BU39 -> 0 | CB39: =CC39+CE39+CF39+CG39 -> 0 | CH39: =CI39+CK39+CL39+CM39 -> 0 | CN39: =CO39+CQ39+CR39+CS39 -> 0 | CT39: =CU39+CW39+CX39+CY39 -> 0 | CZ39: =DA39+DC39+DD39+DE39 -> 0
D40: 3.2 | E40: относимые на сторонних потребителей | H40: =I40+K40+L40+M40 -> 1.265217 | I40: =I42 -> 0.40883 | L40: =L42 -> 0.856387 | N40: =O40+Q40+R40+S40 -> 0.350968 | O40: =O42 -> 0.11452 | R40: =R42 -> 0.236448 | T40: =U40+W40+X40+Y40 -> 0.914249 | U40: =U42 -> 0.29431 | X40: =X42 -> 0.619939 | Z40: =AA40+AC40+AD40+AE40 -> 0.2063302348 | AA40: =AA42 -> 0.06667155903 | AD40: =AD42 -> 0.1396586758 | AF40: =AG40+AI40+AJ40+AK40 -> 0.2063302348 | AG40: =AG42 -> 0.06667155903 | AJ40: =AJ42 -> 0.1396586758 | AR40: =AS40+AU40+AV40+AW40 -> 0.61 | AS40: =AS42 -> 0.2 | AV40: =AV42 -> 0.41 | AX40: =AY40+BA40+BB40+BC40 -> 0.3 | AY40: =AY42 -> 0.1 | BB40: =BB42 -> 0.2 | BD40: =BE40+BG40+BH40+BI40 -> 0.31 | BE40: =BE42 -> 0.1 | BH40: =BH42 -> 0.21 | BJ40: =BK40+BM40+BN40+BO40 -> 0.119 | BK40: =BK42 -> 0.026 | BN40: =BN42 -> 0.093 | BP40: =BQ40+BS40+BT40+BU40 -> 0.119 | BQ40: =BQ42 -> 0.026 | BT40: =BT42 -> 0.093 | CB40: =CC40+CE40+CF40+CG40 -> 1.8815 | CC40: =CC42 -> 0.4139 | CF40: =CF42 -> 1.4676 | CH40: =CI40+CK40+CL40+CM40 -> 0.975 | CI40: =CI42 -> 0.2145 | CL40: =CL42 -> 0.7605 | CN40: =CO40+CQ40+CR40+CS40 -> 0.9065 | CO40: =CO42 -> 0.1994 | CR40: =CR42 -> 0.7071 | CT40: =CU40+CW40+CX40+CY40 -> 0.365 | CU40: =CU42 -> 0.08 | CX40: =CX42 -> 0.285 | CZ40: =DA40+DC40+DD40+DE40 -> 0.365 | DA40: =DA42 -> 0.08 | DD40: =DD42 -> 0.285
D41: 3.0.0
C42: r | D42: 3.0.1 | E42: ОАО "Тюменская энергосбытовая компания" | H42: =I42+K42+L42+M42 -> 1.265217 | I42: =O42+U42 -> 0.40883 | L42: =R42+X42 -> 0.856387 | N42: =O42+Q42+R42+S42 -> 0.350968 | O42: =(31.179+6.097+4.054+19.199+53.415+0.576)/1000 -> 0.11452 | R42: =(68.634+30.837+3.377+32.992+64.477+36.131)/1000 -> 0.236448 | T42: =U42+W42+X42+Y42 -> 0.914249 | U42: =(16.96+0+58.285+74.369+72.013+72.683)/1000 -> 0.29431 | X42: =(50.796+33.373+38.729+129.725+111.707+255.609)/1000 -> 0.619939 | Z42: =AA42+AC42+AD42+AE42 -> 0.2063302348 | AA42: =I42/6132*1000 -> 0.06667155903 | AD42: =L42/6132*1000 -> 0.1396586758 | AF42: =AG42+AI42+AJ42+AK42 -> 0.2063302348 | AG42: =I42/6132*1000 -> 0.06667155903 | AJ42: =L42/6132*1000 -> 0.1396586758 | AR42: =AS42+AU42+AV42+AW42 -> 0.61 | AS42: =AY42+BE42 -> 0.2 | AV42: =BB42+BH42 -> 0.41 | AX42: =AY42+BA42+BB42+BC42 -> 0.3 | AY42: 0.1 | BB42: 0.2 | BD42: =BE42+BG42+BH42+BI42 -> 0.31 | BE42: 0.1 | BH42: 0.21 | BJ42: =BK42+BM42+BN42+BO42 -> 0.119 | BK42: 0.026 | BN42: =0.119-BK42 -> 0.093 | BP42: =BQ42+BS42+BT42+BU42 -> 0.119 | BQ42: 0.026 | BT42: =0.119-BQ42 -> 0.093 | CB42: =CC42+CE42+CF42+CG42 -> 1.8815 | CC42: =CI42+CO42 -> 0.4139 | CF42: =CL42+CR42 -> 1.4676 | CH42: =CI42+CK42+CL42+CM42 -> 0.975 | CI42: 0.2145 | CL42: 0.7605 | CN42: =CO42+CQ42+CR42+CS42 -> 0.9065 | CO42: 0.1994 | CR42: 0.7071 | CT42: =CU42+CW42+CX42+CY42 -> 0.365 | CU42: 0.08 | CX42: =0.365-0.08 -> 0.285 | CZ42: =DA42+DC42+DD42+DE42 -> 0.365 | DA42: =CU42 -> 0.08 | DD42: =CX42 -> 0.285
E43: Добавить организацию-продавца потерь
H44: =I44+K44+L44+M44 -> 1.265217 | I44: =SUM(I41:I43) -> 0.40883 | K44: =SUM(K41:K43) -> 0 | L44: =SUM(L41:L43) -> 0.856387 | M44: =SUM(M41:M43) -> 0 | N44: =O44+Q44+R44+S44 -> 0.350968 | O44: =SUM(O41:O43) -> 0.11452 | Q44: =SUM(Q41:Q43) -> 0 | R44: =SUM(R41:R43) -> 0.236448 | S44: =SUM(S41:S43) -> 0 | T44: =U44+W44+X44+Y44 -> 0.914249 | U44: =SUM(U41:U43) -> 0.29431 | W44: =SUM(W41:W43) -> 0 | X44: =SUM(X41:X43) -> 0.619939 | Y44: =SUM(Y41:Y43) -> 0 | Z44: =AA44+AC44+AD44+AE44 -> 0.2063302348 | AA44: =SUM(AA41:AA43) -> 0.06667155903 | AC44: =SUM(AC41:AC43) -> 0 | AD44: =SUM(AD41:AD43) -> 0.1396586758 | AE44: =SUM(AE41:AE43) -> 0 | AF44: =AG44+AI44+AJ44+AK44 -> 0.2063302348 | AG44: =SUM(AG41:AG43) -> 0.06667155903 | AI44: =SUM(AI41:AI43) -> 0 | AJ44: =SUM(AJ41:AJ43) -> 0.1396586758 | AK44: =SUM(AK41:AK43) -> 0 | AR44: =AS44+AU44+AV44+AW44 -> 0.61 | AS44: =SUM(AS41:AS43) -> 0.2 | AU44: =SUM(AU41:AU43) -> 0 | AV44: =SUM(AV41:AV43) -> 0.41 | AW44: =SUM(AW41:AW43) -> 0 | AX44: =AY44+BA44+BB44+BC44 -> 0.3 | AY44: =SUM(AY41:AY43) -> 0.1 | BA44: =SUM(BA41:BA43) -> 0 | BB44: =SUM(BB41:BB43) -> 0.2 | BC44: =SUM(BC41:BC43) -> 0 | BD44: =BE44+BG44+BH44+BI44 -> 0.31 | BE44: =SUM(BE41:BE43) -> 0.1 | BG44: =SUM(BG41:BG43) -> 0 | BH44: =SUM(BH41:BH43) -> 0.21 | BI44: =SUM(BI41:BI43) -> 0 | BJ44: =BK44+BM44+BN44+BO44 -> 0.119 | BK44: =SUM(BK41:BK43) -> 0.026 | BM44: =SUM(BM41:BM43) -> 0 | BN44: =SUM(BN41:BN43) -> 0.093 | BO44: =SUM(BO41:BO43) -> 0 | BP44: =BQ44+BS44+BT44+BU44 -> 0.119 | BQ44: =SUM(BQ41:BQ43) -> 0.026 | BS44: =SUM(BS41:BS43) -> 0 | BT44: =SUM(BT41:BT43) -> 0.093 | BU44: =SUM(BU41:BU43) -> 0 | CB44: =CC44+CE44+CF44+CG44 -> 1.8815 | CC44: =SUM(CC41:CC43) -> 0.4139 | CE44: =SUM(CE41:CE43) -> 0 | CF44: =SUM(CF41:CF43) -> 1.4676 | CG44: =SUM(CG41:CG43) -> 0 | CH44: =CI44+CK44+CL44+CM44 -> 0.975 | CI44: =SUM(CI41:CI43) -> 0.2145 | CK44: =SUM(CK41:CK43) -> 0 | CL44: =SUM(CL41:CL43) -> 0.7605 | CM44: =SUM(CM41:CM43) -> 0 | CN44: =CO44+CQ44+CR44+CS44 -> 0.9065 | CO44: =SUM(CO41:CO43) -> 0.1994 | CQ44: =SUM(CQ41:CQ43) -> 0 | CR44: =SUM(CR41:CR43) -> 0.7071 | CS44: =SUM(CS41:CS43) -> 0 | CT44: =CU44+CW44+CX44+CY44 -> 0.365 | CU44: =SUM(CU41:CU43) -> 0.08 | CW44: =SUM(CW41:CW43) -> 0 | CX44: =SUM(CX41:CX43) -> 0.285 | CY44: =SUM(CY41:CY43) -> 0 | CZ44: =DA44+DC44+DD44+DE44 -> 0.365 | DA44: =SUM(DA41:DA43) -> 0.08 | DC44: =SUM(DC41:DC43) -> 0 | DD44: =SUM(DD41:DD43) -> 0.285 | DE44: =SUM(DE41:DE43) -> 0
D45: 4 | E45: Расход электроэнергии на производственные и хозяйственные нужды (собственное потребление организаций, для которых оказание услуг по передаче не является основным видом деятельности) | H45: =I45+K45+L45+M45 -> 0 | I45: =SUM(I46:I47) -> 0 | J45: =SUM(J46:J47) -> 0 | K45: =SUM(K46:K47) -> 0 | L45: =SUM(L46:L47) -> 0 | M45: =SUM(M46:M47) -> 0 | N45: =O45+Q45+R45+S45 -> 0 | O45: =SUM(O46:O47) -> 0 | P45: =SUM(P46:P47) -> 0 | Q45: =SUM(Q46:Q47) -> 0 | R45: =SUM(R46:R47) -> 0 | S45: =SUM(S46:S47) -> 0 | T45: =U45+W45+X45+Y45 -> 0 | U45: =SUM(U46:U47) -> 0 | V45: =SUM(V46:V47) -> 0 | W45: =SUM(W46:W47) -> 0 | X45: =SUM(X46:X47) -> 0 | Y45: =SUM(Y46:Y47) -> 0 | Z45: =AA45+AC45+AD45+AE45 -> 0 | AA45: =SUM(AA46:AA47) -> 0 | AB45: =SUM(AB46:AB47) -> 0 | AC45: =SUM(AC46:AC47) -> 0 | AD45: =SUM(AD46:AD47) -> 0 | AE45: =SUM(AE46:AE47) -> 0 | AF45: =AG45+AI45+AJ45+AK45 -> 0 | AG45: =SUM(AG46:AG47) -> 0 | AH45: =SUM(AH46:AH47) -> 0 | AI45: =SUM(AI46:AI47) -> 0 | AJ45: =SUM(AJ46:AJ47) -> 0 | AK45: =SUM(AK46:AK47) -> 0 | AL45: =AM45+AO45+AP45+AQ45 -> 0 | AM45: =SUM(AM46:AM47) -> 0 | AO45: =SUM(AO46:AO47) -> 0 | AP45: =SUM(AP46:AP47) -> 0 | AQ45: =SUM(AQ46:AQ47) -> 0 | AR45: =AS45+AU45+AV45+AW45 -> 0 | AS45: =SUM(AS46:AS47) -> 0 | AT45: =SUM(AT46:AT47) -> 0 | AU45: =SUM(AU46:AU47) -> 0 | AV45: =SUM(AV46:AV47) -> 0 | AW45: =SUM(AW46:AW47) -> 0 | AX45: =AY45+BA45+BB45+BC45 -> 0 | AY45: =SUM(AY46:AY47) -> 0 | AZ45: =SUM(AZ46:AZ47) -> 0 | BA45: =SUM(BA46:BA47) -> 0 | BB45: =SUM(BB46:BB47) -> 0 | BC45: =SUM(BC46:BC47) -> 0 | BD45: =BE45+BG45+BH45+BI45 -> 0 | BE45: =SUM(BE46:BE47) -> 0 | BF45: =SUM(BF46:BF47) -> 0 | BG45: =SUM(BG46:BG47) -> 0 | BH45: =SUM(BH46:BH47) -> 0 | BI45: =SUM(BI46:BI47) -> 0 | BJ45: =BK45+BM45+BN45+BO45 -> 0 | BK45: =SUM(BK46:BK47) -> 0 | BL45: =SUM(BL46:BL47) -> 0 | BM45: =SUM(BM46:BM47) -> 0 | BN45: =SUM(BN46:BN47) -> 0 | BO45: =SUM(BO46:BO47) -> 0 | BP45: =BQ45+BS45+BT45+BU45 -> 0 | BQ45: =SUM(BQ46:BQ47) -> 0 | BR45: =SUM(BR46:BR47) -> 0 | BS45: =SUM(BS46:BS47) -> 0 | BT45: =SUM(BT46:BT47) -> 0 | BU45: =SUM(BU46:BU47) -> 0 | BV45: =BW45+BY45+BZ45+CA45 -> 0 | BW45: =SUM(BW46:BW47) -> 0 | BY45: =SUM(BY46:BY47) -> 0 | BZ45: =SUM(BZ46:BZ47) -> 0 | CA45: =SUM(CA46:CA47) -> 0 | CB45: =CC45+CE45+CF45+CG45 -> 0 | CC45: =SUM(CC46:CC47) -> 0 | CD45: =SUM(CD46:CD47) -> 0 | CE45: =SUM(CE46:CE47) -> 0 | CF45: =SUM(CF46:CF47) -> 0 | CG45: =SUM(CG46:CG47) -> 0 | CH45: =CI45+CK45+CL45+CM45 -> 0 | CI45: =SUM(CI46:CI47) -> 0 | CJ45: =SUM(CJ46:CJ47) -> 0 | CK45: =SUM(CK46:CK47) -> 0 | CL45: =SUM(CL46:CL47) -> 0 | CM45: =SUM(CM46:CM47) -> 0 | CN45: =CO45+CQ45+CR45+CS45 -> 0 | CO45: =SUM(CO46:CO47) -> 0 | CP45: =SUM(CP46:CP47) -> 0 | CQ45: =SUM(CQ46:CQ47) -> 0 | CR45: =SUM(CR46:CR47) -> 0 | CS45: =SUM(CS46:CS47) -> 0 | CT45: =CU45+CW45+CX45+CY45 -> 0 | CU45: =SUM(CU46:CU47) -> 0 | CV45: =SUM(CV46:CV47) -> 0 | CW45: =SUM(CW46:CW47) -> 0 | CX45: =SUM(CX46:CX47) -> 0 | CY45: =SUM(CY46:CY47) -> 0 | CZ45: =DA45+DC45+DD45+DE45 -> 0 | DA45: =SUM(DA46:DA47) -> 0 | DB45: =SUM(DB46:DB47) -> 0 | DC45: =SUM(DC46:DC47) -> 0 | DD45: =SUM(DD46:DD47) -> 0 | DE45: =SUM(DE46:DE47) -> 0 | DF45: =DG45+DI45+DJ45+DK45 -> 0 | DG45: =SUM(DG46:DG47) -> 0 | DI45: =SUM(DI46:DI47) -> 0 | DJ45: =SUM(DJ46:DJ47) -> 0 | DK45: =SUM(DK46:DK47) -> 0
D46: 4.0
E47: Добавить организацию-продавца
D48: 5 | E48: Отпущено из сети, всего, в том числе: | H48: =I48+K48+L48+M48 -> 45.148302 | I48: =I49+I53+I56+I65 -> 0 | J48: =J49+J53+J56+J65 -> 0 | K48: =K49+K53+K56+K65 -> 0 | L48: =L49+L53+L56+L65 -> 32.71364 | M48: =M49+M53+M56+M65 -> 12.434662 | N48: =O48+Q48+R48+S48 -> 23.395033 | O48: =O49+O53+O56+O65 -> 0 | P48: =P49+P53+P56+P65 -> 0 | Q48: =Q49+Q53+Q56+Q65 -> 0 | R48: =R49+R53+R56+R65 -> 16.585869 | S48: =S49+S53+S56+S65 -> 6.809164 | T48: =U48+W48+X48+Y48 -> 21.753269 | U48: =U49+U53+U56+U65 -> 0 | V48: =V49+V53+V56+V65 -> 0 | W48: =W49+W53+W56+W65 -> 0 | X48: =X49+X53+X56+X65 -> 16.127771 | Y48: =Y49+Y53+Y56+Y65 -> 5.625498 | Z48: =AA48+AC48+AD48+AE48 -> 7.362736791 | AA48: =AA49+AA53+AA56+AA65 -> 0 | AB48: =AB49+AB53+AB56+AB65 -> 0 | AC48: =AC49+AC53+AC56+AC65 -> 0 | AD48: =AD49+AD53+AD56+AD65 -> 5.334905414 | AE48: =AE49+AE53+AE56+AE65 -> 2.027831376 | AF48: =AG48+AI48+AJ48+AK48 -> 7.362736791 | AG48: =AG49+AG53+AG56+AG65 -> 0 | AH48: =AH49+AH53+AH56+AH65 -> 0 | AI48: =AI49+AI53+AI56+AI65 -> 0 | AJ48: =AJ49+AJ53+AJ56+AJ65 -> 5.334905414 | AK48: =AK49+AK53+AK56+AK65 -> 2.027831376 | AL48: =AM48+AO48+AP48+AQ48 -> 0 | AM48: =AM49+AM53+AM56+AM65 -> 0 | AO48: =AO49+AO53+AO56+AO65 -> 0 | AP48: =AP49+AP53+AP56+AP65 -> 0 | AQ48: =AQ49+AQ53+AQ56+AQ65 -> 0 | AR48: =AS48+AU48+AV48+AW48 -> 43.95681 | AS48: =AS49+AS53+AS56+AS65 -> 0 | AT48: =AT49+AT53+AT56+AT65 -> 0 | AU48: =AU49+AU53+AU56+AU65 -> 0 | AV48: =AV49+AV53+AV56+AV65 -> 32.13197 | AW48: =AW49+AW53+AW56+AW65 -> 11.82484 | AX48: =AY48+BA48+BB48+BC48 -> 22.23245 | AY48: =AY49+AY53+AY56+AY65 -> 0 | AZ48: =AZ49+AZ53+AZ56+AZ65 -> 0 | BA48: =BA49+BA53+BA56+BA65 -> 0 | BB48: =BB49+BB53+BB56+BB65 -> 15.64582 | BC48: =BC49+BC53+BC56+BC65 -> 6.58663 | BD48: =BE48+BG48+BH48+BI48 -> 21.72436 | BE48: =BE49+BE53+BE56+BE65 -> 0 | BF48: =BF49+BF53+BF56+BF65 -> 0 | BG48: =BG49+BG53+BG56+BG65 -> 0 | BH48: =BH49+BH53+BH56+BH65 -> 16.48615 | BI48: =BI49+BI53+BI56+BI65 -> 5.23821 | BJ48: =BK48+BM48+BN48+BO48 -> 8.449 | BK48: =BK49+BK53+BK56+BK65 -> 0 | BL48: =BL49+BL53+BL56+BL65 -> 0 | BM48: =BM49+BM53+BM56+BM65 -> 0 | BN48: =BN49+BN53+BN56+BN65 -> 6.052 | BO48: =BO49+BO53+BO56+BO65 -> 2.397 | BP48: =BQ48+BS48+BT48+BU48 -> 8.449 | BQ48: =BQ49+BQ53+BQ56+BQ65 -> 0 | BR48: =BR49+BR53+BR56+BR65 -> 0 | BS48: =BS49+BS53+BS56+BS65 -> 0 | BT48: =BT49+BT53+BT56+BT65 -> 6.052 | BU48: =BU49+BU53+BU56+BU65 -> 2.397 | BV48: =BW48+BY48+BZ48+CA48 -> 0 | BW48: =BW49+BW53+BW56+BW65 -> 0 | BY48: =BY49+BY53+BY56+BY65 -> 0 | BZ48: =BZ49+BZ53+BZ56+BZ65 -> 0 | CA48: =CA49+CA53+CA56+CA65 -> 0 | CB48: =CC48+CE48+CF48+CG48 -> 45.156 | CC48: =CC49+CC53+CC56+CC65 -> 0 | CD48: =CD49+CD53+CD56+CD65 -> 0 | CE48: =CE49+CE53+CE56+CE65 -> 0 | CF48: =CF49+CF53+CF56+CF65 -> 32.717 | CG48: =CG49+CG53+CG56+CG65 -> 12.439 | CH48: =CI48+CK48+CL48+CM48 -> 23.4 | CI48: =CI49+CI53+CI56+CI65 -> 0 | CJ48: =CJ49+CJ53+CJ56+CJ65 -> 0 | CK48: =CK49+CK53+CK56+CK65 -> 0 | CL48: =CL49+CL53+CL56+CL65 -> 16.588 | CM48: =CM49+CM53+CM56+CM65 -> 6.812 | CN48: =CO48+CQ48+CR48+CS48 -> 21.756 | CO48: =CO49+CO53+CO56+CO65 -> 0 | CP48: =CP49+CP53+CP56+CP65 -> 0 | CQ48: =CQ49+CQ53+CQ56+CQ65 -> 0 | CR48: =CR49+CR53+CR56+CR65 -> 16.129 | CS48: =CS49+CS53+CS56+CS65 -> 5.627 | CT48: =CU48+CW48+CX48+CY48 -> 8.781 | CU48: =CU49+CU53+CU56+CU65 -> 0 | CV48: =CV49+CV53+CV56+CV65 -> 0 | CW48: =CW49+CW53+CW56+CW65 -> 0 | CX48: =CX49+CX53+CX56+CX65 -> 6.24 | CY48: =CY49+CY53+CY56+CY65 -> 2.541 | CZ48: =DA48+DC48+DD48+DE48 -> 8.781 | DA48: =DA49+DA53+DA56+DA65 -> 0 | DB48: =DB49+DB53+DB56+DB65 -> 0 | DC48: =DC49+DC53+DC56+DC65 -> 0 | DD48: =DD49+DD53+DD56+DD65 -> 6.24 | DE48: =DE49+DE53+DE56+DE65 -> 2.541 | DF48: =DG48+DI48+DJ48+DK48 -> 0 | DG48: =DG49+DG53+DG56+DG65 -> 0 | DI48: =DI49+DI53+DI56+DI65 -> 0 | DJ48: =DJ49+DJ53+DJ56+DJ65 -> 0 | DK48: =DK49+DK53+DK56+DK65 -> 0
D49: 5.1 | E49: В сети прочих сетевых компаний, в том числе: | H49: =I49+K49+L49+M49 -> 0.478672 | I49: =SUM(I50:I52) -> 0 | K49: =SUM(K50:K52) -> 0 | L49: =SUM(L50:L52) -> 0.478672 | M49: =SUM(M50:M52) -> 0 | N49: =O49+Q49+R49+S49 -> 0.257504 | O49: =SUM(O50:O52) -> 0 | Q49: =SUM(Q50:Q52) -> 0 | R49: =SUM(R50:R52) -> 0.257504 | S49: =SUM(S50:S52) -> 0 | T49: =U49+W49+X49+Y49 -> 0.221168 | U49: =SUM(U50:U52) -> 0 | W49: =SUM(W50:W52) -> 0 | X49: =SUM(X50:X52) -> 0.221168 | Y49: =SUM(Y50:Y52) -> 0 | Z49: =AA49+AC49+AD49+AE49 -> 0.07806131768 | AA49: =SUM(AA50:AA52) -> 0 | AC49: =SUM(AC50:AC52) -> 0 | AD49: =SUM(AD50:AD52) -> 0.07806131768 | AE49: =SUM(AE50:AE52) -> 0 | AF49: =AG49+AI49+AJ49+AK49 -> 0.07806131768 | AG49: =SUM(AG50:AG52) -> 0 | AI49: =SUM(AI50:AI52) -> 0 | AJ49: =SUM(AJ50:AJ52) -> 0.07806131768 | AK49: =SUM(AK50:AK52) -> 0 | AL49: =AM49+AO49+AP49+AQ49 -> 0 | AM49: =SUM(AM50:AM52) -> 0 | AO49: =SUM(AO50:AO52) -> 0 | AP49: =SUM(AP50:AP52) -> 0 | AQ49: =SUM(AQ50:AQ52) -> 0 | AR49: =AS49+AU49+AV49+AW49 -> 0.48051 | AS49: =SUM(AS50:AS52) -> 0 | AU49: =SUM(AU50:AU52) -> 0 | AV49: =SUM(AV50:AV52) -> 0.48051 | AW49: =SUM(AW50:AW52) -> 0 | AX49: =AY49+BA49+BB49+BC49 -> 0.25751 | AY49: =SUM(AY50:AY52) -> 0 | BA49: =SUM(BA50:BA52) -> 0 | BB49: =SUM(BB50:BB52) -> 0.25751 | BC49: =SUM(BC50:BC52) -> 0 | BD49: =BE49+BG49+BH49+BI49 -> 0.223 | BE49: =SUM(BE50:BE52) -> 0 | BG49: =SUM(BG50:BG52) -> 0 | BH49: =SUM(BH50:BH52) -> 0.223 | BI49: =SUM(BI50:BI52) -> 0 | BJ49: =BK49+BM49+BN49+BO49 -> 0.1 | BK49: =SUM(BK50:BK52) -> 0 | BM49: =SUM(BM50:BM52) -> 0 | BN49: =SUM(BN50:BN52) -> 0.1 | BO49: =SUM(BO50:BO52) -> 0 | BP49: =BQ49+BS49+BT49+BU49 -> 0.1 | BQ49: =SUM(BQ50:BQ52) -> 0 | BS49: =SUM(BS50:BS52) -> 0 | BT49: =SUM(BT50:BT52) -> 0.1 | BU49: =SUM(BU50:BU52) -> 0 | BV49: =BW49+BY49+BZ49+CA49 -> 0 | BW49: =SUM(BW50:BW52) -> 0 | BY49: =SUM(BY50:BY52) -> 0 | BZ49: =SUM(BZ50:BZ52) -> 0 | CA49: =SUM(CA50:CA52) -> 0 | CB49: =CC49+CE49+CF49+CG49 -> 0.478 | CC49: =SUM(CC50:CC52) -> 0 | CE49: =SUM(CE50:CE52) -> 0 | CF49: =SUM(CF50:CF52) -> 0.478 | CG49: =SUM(CG50:CG52) -> 0 | CH49: =CI49+CK49+CL49+CM49 -> 0.257 | CI49: =SUM(CI50:CI52) -> 0 | CK49: =SUM(CK50:CK52) -> 0 | CL49: =SUM(CL50:CL52) -> 0.257 | CM49: =SUM(CM50:CM52) -> 0 | CN49: =CO49+CQ49+CR49+CS49 -> 0.221 | CO49: =SUM(CO50:CO52) -> 0 | CQ49: =SUM(CQ50:CQ52) -> 0 | CR49: =SUM(CR50:CR52) -> 0.221 | CS49: =SUM(CS50:CS52) -> 0 | CT49: =CU49+CW49+CX49+CY49 -> 0.1 | CU49: =SUM(CU50:CU52) -> 0 | CW49: =SUM(CW50:CW52) -> 0 | CX49: =SUM(CX50:CX52) -> 0.1 | CY49: =SUM(CY50:CY52) -> 0 | CZ49: =DA49+DC49+DD49+DE49 -> 0.1 | DA49: =SUM(DA50:DA52) -> 0 | DC49: =SUM(DC50:DC52) -> 0 | DD49: =SUM(DD50:DD52) -> 0.1 | DE49: =SUM(DE50:DE52) -> 0 | DF49: =DG49+DI49+DJ49+DK49 -> 0 | DG49: =SUM(DG50:DG52) -> 0 | DI49: =SUM(DI50:DI52) -> 0 | DJ49: =SUM(DJ50:DJ52) -> 0 | DK49: =SUM(DK50:DK52) -> 0
D50: 5.1.0
C51: r | D51: 5.1.1 | E51: ООО "Транзит-Электро-Тюмень" | H51: =I51+K51+L51+M51 -> 0.478672 | L51: =R51+X51 -> 0.478672 | N51: =O51+Q51+R51+S51 -> 0.257504 | R51: =(54.08+43.056+49.088+37.232+32.448+41.6)/1000 -> 0.257504 | T51: =U51+W51+X51+Y51 -> 0.221168 | X51: =(31.754+39.432+37.247+38.186+36.038+38.511)/1000 -> 0.221168 | Z51: =AA51+AC51+AD51+AE51 -> 0.07806131768 | AD51: =L51/6132*1000 -> 0.07806131768 | AF51: =AG51+AI51+AJ51+AK51 -> 0.07806131768 | AJ51: =L51/6132*1000 -> 0.07806131768 | AL51: =AM51+AO51+AP51+AQ51 -> 0 | AR51: =AS51+AU51+AV51+AW51 -> 0.48051 | AV51: =BB51+BH51 -> 0.48051 | AX51: =AY51+BA51+BB51+BC51 -> 0.25751 | BB51: =(54.08+43.06+49.09+37.23+32.45+41.6)/1000 -> 0.25751 | BD51: =BE51+BG51+BH51+BI51 -> 0.223 | BH51: =(31.75+39.43+37.25+38.19+38.19+38.19)/1000 -> 0.223 | BJ51: =BK51+BM51+BN51+BO51 -> 0.1 | BN51: 0.1 | BP51: =BQ51+BS51+BT51+BU51 -> 0.1 | BT51: 0.1 | BV51: =BW51+BY51+BZ51+CA51 -> 0 | CB51: =CC51+CE51+CF51+CG51 -> 0.478 | CF51: =CL51+CR51 -> 0.478 | CH51: =CI51+CK51+CL51+CM51 -> 0.257 | CL51: 0.257 | CN51: =CO51+CQ51+CR51+CS51 -> 0.221 | CR51: 0.221 | CT51: =CU51+CW51+CX51+CY51 -> 0.1 | CX51: 0.1 | CZ51: =DA51+DC51+DD51+DE51 -> 0.1 | DD51: 0.1 | DF51: =DG51+DI51+DJ51+DK51 -> 0
E52: Добавить сетевую компанию
D53: 5.2 | E53: Сетевым компаниям, опосредованно присоединённым через сети прочих потребителей, в том числе: | H53: =I53+K53+L53+M53 -> 0 | I53: =SUM(I54:I55) -> 0 | K53: =SUM(K54:K55) -> 0 | L53: =SUM(L54:L55) -> 0 | M53: =SUM(M54:M55) -> 0 | N53: =O53+Q53+R53+S53 -> 0 | O53: =SUM(O54:O55) -> 0 | Q53: =SUM(Q54:Q55) -> 0 | R53: =SUM(R54:R55) -> 0 | S53: =SUM(S54:S55) -> 0 | T53: =U53+W53+X53+Y53 -> 0 | U53: =SUM(U54:U55) -> 0 | W53: =SUM(W54:W55) -> 0 | X53: =SUM(X54:X55) -> 0 | Y53: =SUM(Y54:Y55) -> 0 | Z53: =AA53+AC53+AD53+AE53 -> 0 | AA53: =SUM(AA54:AA55) -> 0 | AC53: =SUM(AC54:AC55) -> 0 | AD53: =SUM(AD54:AD55) -> 0 | AE53: =SUM(AE54:AE55) -> 0 | AF53: =AG53+AI53+AJ53+AK53 -> 0 | AG53: =SUM(AG54:AG55) -> 0 | AI53: =SUM(AI54:AI55) -> 0 | AJ53: =SUM(AJ54:AJ55) -> 0 | AK53: =SUM(AK54:AK55) -> 0 | AL53: =AM53+AO53+AP53+AQ53 -> 0 | AM53: =SUM(AM54:AM55) -> 0 | AO53: =SUM(AO54:AO55) -> 0 | AP53: =SUM(AP54:AP55) -> 0 | AQ53: =SUM(AQ54:AQ55) -> 0 | AR53: =AS53+AU53+AV53+AW53 -> 0 | AS53: =SUM(AS54:AS55) -> 0 | AU53: =SUM(AU54:AU55) -> 0 | AV53: =SUM(AV54:AV55) -> 0 | AW53: =SUM(AW54:AW55) -> 0 | AX53: =AY53+BA53+BB53+BC53 -> 0 | AY53: =SUM(AY54:AY55) -> 0 | BA53: =SUM(BA54:BA55) -> 0 | BB53: =SUM(BB54:BB55) -> 0 | BC53: =SUM(BC54:BC55) -> 0 | BD53: =BE53+BG53+BH53+BI53 -> 0 | BE53: =SUM(BE54:BE55) -> 0 | BG53: =SUM(BG54:BG55) -> 0 | BH53: =SUM(BH54:BH55) -> 0 | BI53: =SUM(BI54:BI55) -> 0 | BJ53: =BK53+BM53+BN53+BO53 -> 0 | BK53: =SUM(BK54:BK55) -> 0 | BM53: =SUM(BM54:BM55) -> 0 | BN53: =SUM(BN54:BN55) -> 0 | BO53: =SUM(BO54:BO55) -> 0 | BP53: =BQ53+BS53+BT53+BU53 -> 0 | BQ53: =SUM(BQ54:BQ55) -> 0 | BS53: =SUM(BS54:BS55) -> 0 | BT53: =SUM(BT54:BT55) -> 0 | BU53: =SUM(BU54:BU55) -> 0 | BV53: =BW53+BY53+BZ53+CA53 -> 0 | BW53: =SUM(BW54:BW55) -> 0 | BY53: =SUM(BY54:BY55) -> 0 | BZ53: =SUM(BZ54:BZ55) -> 0 | CA53: =SUM(CA54:CA55) -> 0 | CB53: =CC53+CE53+CF53+CG53 -> 0 | CC53: =SUM(CC54:CC55) -> 0 | CE53: =SUM(CE54:CE55) -> 0 | CF53: =SUM(CF54:CF55) -> 0 | CG53: =SUM(CG54:CG55) -> 0 | CH53: =CI53+CK53+CL53+CM53 -> 0 | CI53: =SUM(CI54:CI55) -> 0 | CK53: =SUM(CK54:CK55) -> 0 | CL53: =SUM(CL54:CL55) -> 0 | CM53: =SUM(CM54:CM55) -> 0 | CN53: =CO53+CQ53+CR53+CS53 -> 0 | CO53: =SUM(CO54:CO55) -> 0 | CQ53: =SUM(CQ54:CQ55) -> 0 | CR53: =SUM(CR54:CR55) -> 0 | CS53: =SUM(CS54:CS55) -> 0 | CT53: =CU53+CW53+CX53+CY53 -> 0 | CU53: =SUM(CU54:CU55) -> 0 | CW53: =SUM(CW54:CW55) -> 0 | CX53: =SUM(CX54:CX55) -> 0 | CY53: =SUM(CY54:CY55) -> 0 | CZ53: =DA53+DC53+DD53+DE53 -> 0 | DA53: =SUM(DA54:DA55) -> 0 | DC53: =SUM(DC54:DC55) -> 0 | DD53: =SUM(DD54:DD55) -> 0 | DE53: =SUM(DE54:DE55) -> 0 | DF53: =DG53+DI53+DJ53+DK53 -> 0 | DG53: =SUM(DG54:DG55) -> 0 | DI53: =SUM(DI54:DI55) -> 0 | DJ53: =SUM(DJ54:DJ55) -> 0 | DK53: =SUM(DK54:DK55) -> 0
D54: 5.2.0
E55: Добавить сетевую компанию
D56: 5.3 | E56: Конечным потребителям, в том числе: | H56: =I56+K56+L56+M56 -> 44.66963 | I56: =SUM(I57:I64) -> 0 | J56: =SUM(J57:J64) -> 0 | K56: =SUM(K57:K64) -> 0 | L56: =SUM(L57:L64) -> 32.234968 | M56: =SUM(M57:M64) -> 12.434662 | N56: =O56+Q56+R56+S56 -> 23.137529 | O56: =SUM(O57:O64) -> 0 | P56: =SUM(P57:P64) -> 0 | Q56: =SUM(Q57:Q64) -> 0 | R56: =SUM(R57:R64) -> 16.328365 | S56: =SUM(S57:S64) -> 6.809164 | T56: =U56+W56+X56+Y56 -> 21.532101 | U56: =SUM(U57:U64) -> 0 | V56: =SUM(V57:V64) -> 0 | W56: =SUM(W57:W64) -> 0 | X56: =SUM(X57:X64) -> 15.906603 | Y56: =SUM(Y57:Y64) -> 5.625498 | Z56: =AA56+AC56+AD56+AE56 -> 7.284675473 | AA56: =SUM(AA57:AA64) -> 0 | AB56: =SUM(AB57:AB64) -> 0 | AC56: =SUM(AC57:AC64) -> 0 | AD56: =SUM(AD57:AD64) -> 5.256844097 | AE56: =SUM(AE57:AE64) -> 2.027831376 | AF56: =AG56+AI56+AJ56+AK56 -> 7.284675473 | AG56: =SUM(AG57:AG64) -> 0 | AH56: =SUM(AH57:AH64) -> 0 | AI56: =SUM(AI57:AI64) -> 0 | AJ56: =SUM(AJ57:AJ64) -> 5.256844097 | AK56: =SUM(AK57:AK64) -> 2.027831376 | AL56: =AM56+AO56+AP56+AQ56 -> 0 | AM56: =SUM(AM57:AM64) -> 0 | AO56: =SUM(AO57:AO64) -> 0 | AP56: =SUM(AP57:AP64) -> 0 | AQ56: =SUM(AQ57:AQ64) -> 0 | AR56: =AS56+AU56+AV56+AW56 -> 43.4763 | AS56: =SUM(AS57:AS64) -> 0 | AT56: =SUM(AT57:AT64) -> 0 | AU56: =SUM(AU57:AU64) -> 0 | AV56: =SUM(AV57:AV64) -> 31.65146 | AW56: =SUM(AW57:AW64) -> 11.82484 | AX56: =AY56+BA56+BB56+BC56 -> 21.97494 | AY56: =SUM(AY57:AY64) -> 0 | AZ56: =SUM(AZ57:AZ64) -> 0 | BA56: =SUM(BA57:BA64) -> 0 | BB56: =SUM(BB57:BB64) -> 15.38831 | BC56: =SUM(BC57:BC64) -> 6.58663 | BD56: =BE56+BG56+BH56+BI56 -> 21.50136 | BE56: =SUM(BE57:BE64) -> 0 | BF56: =SUM(BF57:BF64) -> 0 | BG56: =SUM(BG57:BG64) -> 0 | BH56: =SUM(BH57:BH64) -> 16.26315 | BI56: =SUM(BI57:BI64) -> 5.23821 | BJ56: =BK56+BM56+BN56+BO56 -> 8.349 | BK56: =SUM(BK57:BK64) -> 0 | BL56: =SUM(BL57:BL64) -> 0 | BM56: =SUM(BM57:BM64) -> 0 | BN56: =SUM(BN57:BN64) -> 5.952 | BO56: =SUM(BO57:BO64) -> 2.397 | BP56: =BQ56+BS56+BT56+BU56 -> 8.349 | BQ56: =SUM(BQ57:BQ64) -> 0 | BR56: =SUM(BR57:BR64) -> 0 | BS56: =SUM(BS57:BS64) -> 0 | BT56: =SUM(BT57:BT64) -> 5.952 | BU56: =SUM(BU57:BU64) -> 2.397 | BV56: =BW56+BY56+BZ56+CA56 -> 0 | BW56: =SUM(BW57:BW64) -> 0 | BY56: =SUM(BY57:BY64) -> 0 | BZ56: =SUM(BZ57:BZ64) -> 0 | CA56: =SUM(CA57:CA64) -> 0 | CB56: =CC56+CE56+CF56+CG56 -> 44.678 | CC56: =SUM(CC57:CC64) -> 0 | CD56: =SUM(CD57:CD64) -> 0 | CE56: =SUM(CE57:CE64) -> 0 | CF56: =SUM(CF57:CF64) -> 32.239 | CG56: =SUM(CG57:CG64) -> 12.439 | CH56: =CI56+CK56+CL56+CM56 -> 23.143 | CI56: =SUM(CI57:CI64) -> 0 | CJ56: =SUM(CJ57:CJ64) -> 0 | CK56: =SUM(CK57:CK64) -> 0 | CL56: =SUM(CL57:CL64) -> 16.331 | CM56: =SUM(CM57:CM64) -> 6.812 | CN56: =CO56+CQ56+CR56+CS56 -> 21.535 | CO56: =SUM(CO57:CO64) -> 0 | CP56: =SUM(CP57:CP64) -> 0 | CQ56: =SUM(CQ57:CQ64) -> 0 | CR56: =SUM(CR57:CR64) -> 15.908 | CS56: =SUM(CS57:CS64) -> 5.627 | CT56: =CU56+CW56+CX56+CY56 -> 8.681 | CU56: =SUM(CU57:CU64) -> 0 | CV56: =SUM(CV57:CV64) -> 0 | CW56: =SUM(CW57:CW64) -> 0 | CX56: =SUM(CX57:CX64) -> 6.14 | CY56: =SUM(CY57:CY64) -> 2.541 | CZ56: =DA56+DC56+DD56+DE56 -> 8.681 | DA56: =SUM(DA57:DA64) -> 0 | DB56: =SUM(DB57:DB64) -> 0 | DC56: =SUM(DC57:DC64) -> 0 | DD56: =SUM(DD57:DD64) -> 6.14 | DE56: =SUM(DE57:DE64) -> 2.541 | DF56: =DG56+DI56+DJ56+DK56 -> 0 | DG56: =SUM(DG57:DG64) -> 0 | DI56: =SUM(DI57:DI64) -> 0 | DJ56: =SUM(DJ57:DJ64) -> 0 | DK56: =SUM(DK57:DK64) -> 0
D57: 5.3.0
C58: r | D58: 5.3.1 | E58: ОАО "Тюменская энергосбытовая компания" | G58: total
F59: 1 | G59: ООО "Ремэнергостройсервис" | H59: =I59+K59+L59+M59 -> 33.617204 | L59: =R59+X59 -> 30.651254 | M59: =S59+Y59 -> 2.96595 | N59: =O59+Q59+R59+S59 -> 17.182851 | R59: =15486.577/1000 -> 15.486577 | S59: =1696.274/1000 -> 1.696274 | T59: =U59+W59+X59+Y59 -> 16.434353 | X59: =15164.677/1000 -> 15.164677 | Y59: =1269.676/1000 -> 1.269676 | Z59: =AA59+AC59+AD59+AE59 -> 5.482257665 | AD59: =L59/6132*1000 -> 4.998573712 | AE59: =M59/6132*1000 -> 0.483683953 | AF59: =AG59+AI59+AJ59+AK59 -> 5.482257665 | AJ59: =L59/6132*1000 -> 4.998573712 | AK59: =M59/6132*1000 -> 0.483683953 | AL59: =AM59+AO59+AP59+AQ59 -> 0 | AR59: =AS59+AU59+AV59+AW59 -> 32.86204 | AV59: =BB59+BH59 -> 30.12237 | AW59: =BC59+BI59 -> 2.73967 | AX59: =AY59+BA59+BB59+BC59 -> 16.14761 | BB59: =(2713.18+2625.82+2513.88+2332.36+2395.26+1998.62)/1000 -> 14.57912 | BC59: =(367.17+352.73+272.82+210.59+193.49+171.69)/1000 -> 1.56849 | BD59: =BE59+BG59+BH59+BI59 -> 16.71443 | BH59: =(1973.02+2089.76+2321.35+3022.71+3052.94+3083.47)/1000 -> 15.54325 | BI59: =(154.66+151.6+180.39+225.91+228.17+230.45)/1000 -> 1.17118 | BJ59: =BK59+BM59+BN59+BO59 -> 6.176 | BN59: 5.652 | BO59: 0.524 | BP59: =BQ59+BS59+BT59+BU59 -> 6.176 | BT59: =BN59 -> 5.652 | BU59: =BO59 -> 0.524 | BV59: =BW59+BY59+BZ59+CA59 -> 0 | CB59: =CC59+CE59+CF59+CG59 -> 33.624 | CF59: =CL59+CR59 -> 30.655 | CG59: =CM59+CS59 -> 2.969 | CH59: =CI59+CK59+CL59+CM59 -> 17.186 | CL59: 15.488 | CM59: 1.698 | CN59: =CO59+CQ59+CR59+CS59 -> 16.438 | CR59: 15.167 | CS59: 1.271 | CT59: =CU59+CW59+CX59+CY59 -> 6.416 | CX59: 5.827 | CY59: 0.589 | CZ59: =DA59+DC59+DD59+DE59 -> 6.416 | DD59: =CX59 -> 5.827 | DE59: =CY59 -> 0.589 | DF59: =DG59+DI59+DJ59+DK59 -> 0
C61: r | D61: 5.3.2 | E61: ОАО "Тюменьэнергосбыт" | G61: total
F62: 1 | G62: ООО "Ремэнергостройсервис" | H62: =I62+K62+L62+M62 -> 11.052426 | L62: =R62+X62 -> 1.583714 | M62: =S62+Y62 -> 9.468712 | N62: =O62+Q62+R62+S62 -> 5.954678 | R62: =841.788/1000 -> 0.841788 | S62: =5112.89/1000 -> 5.11289 | T62: =U62+W62+X62+Y62 -> 5.097748 | X62: =741.926/1000 -> 0.741926 | Y62: =4355.822/1000 -> 4.355822 | Z62: =AA62+AC62+AD62+AE62 -> 1.802417808 | AD62: =L62/6132*1000 -> 0.2582703849 | AE62: =M62/6132*1000 -> 1.544147423 | AF62: =AG62+AI62+AJ62+AK62 -> 1.802417808 | AJ62: =L62/6132*1000 -> 0.2582703849 | AK62: =M62/6132*1000 -> 1.544147423 | AL62: =AM62+AO62+AP62+AQ62 -> 0 | AR62: =AS62+AU62+AV62+AW62 -> 10.61426 | AV62: =BB62+BH62 -> 1.52909 | AW62: =BC62+BI62 -> 9.08517 | AX62: =AY62+BA62+BB62+BC62 -> 5.82733 | BB62: =(116+117.38+139.07+135.51+185.03+116.2)/1000 -> 0.80919 | BC62: =(907.68+913.21+1158.17+735.41+663.03+640.64)/1000 -> 5.01814 | BD62: =BE62+BG62+BH62+BI62 -> 4.78693 | BH62: =(104.75+106.91+133.41+123.7+124.94+126.19)/1000 -> 0.7199 | BI62: =(631.46+453.67+795.35+721.61+728.83+736.11)/1000 -> 4.06703 | BJ62: =BK62+BM62+BN62+BO62 -> 2.173 | BN62: 0.3 | BO62: 1.873 | BP62: =BQ62+BS62+BT62+BU62 -> 2.173 | BT62: =BN62 -> 0.3 | BU62: =BO62 -> 1.873 | BV62: =BW62+BY62+BZ62+CA62 -> 0 | CB62: =CC62+CE62+CF62+CG62 -> 11.054 | CF62: =CL62+CR62 -> 1.584 | CG62: =CM62+CS62 -> 9.47 | CH62: =CI62+CK62+CL62+CM62 -> 5.957 | CL62: 0.843 | CM62: 5.114 | CN62: =CO62+CQ62+CR62+CS62 -> 5.097 | CR62: 0.741 | CS62: 4.356 | CT62: =CU62+CW62+CX62+CY62 -> 2.265 | CX62: 0.313 | CY62: 1.952 | CZ62: =DA62+DC62+DD62+DE62 -> 2.265 | DD62: =CX62 -> 0.313 | DE62: =CY62 -> 1.952 | DF62: =DG62+DI62+DJ62+DK62 -> 0
E64: Добавить сбытовую компанию-потребителя
D65: 5.4 | E65: В сопредельные регионы | H65: =I65+K65+L65+M65 -> 0 | N65: =O65+Q65+R65+S65 -> 0 | T65: =U65+W65+X65+Y65 -> 0 | Z65: =AA65+AC65+AD65+AE65 -> 0 | AF65: =AG65+AI65+AJ65+AK65 -> 0 | AL65: =AM65+AO65+AP65+AQ65 -> 0 | AR65: =AS65+AU65+AV65+AW65 -> 0 | AX65: =AY65+BA65+BB65+BC65 -> 0 | BD65: =BE65+BG65+BH65+BI65 -> 0 | BJ65: =BK65+BM65+BN65+BO65 -> 0 | BP65: =BQ65+BS65+BT65+BU65 -> 0 | BV65: =BW65+BY65+BZ65+CA65 -> 0 | CB65: =CC65+CE65+CF65+CG65 -> 0 | CH65: =CI65+CK65+CL65+CM65 -> 0 | CN65: =CO65+CQ65+CR65+CS65 -> 0 | CT65: =CU65+CW65+CX65+CY65 -> 0 | CZ65: =DA65+DC65+DD65+DE65 -> 0 | DF65: =DG65+DI65+DJ65+DK65 -> 0
E66: Справочно: Объёмы, оплачиваемые сбытовыми организациями по единому (котловому) тарифу | H66: =I66+K66+L66+M66 -> 44.66963 | L66: =L59+L62 -> 32.234968 | M66: =M59+M62 -> 12.434662 | N66: =O66+Q66+R66+S66 -> 23.137529 | R66: =R59+R62 -> 16.328365 | S66: =S59+S62 -> 6.809164 | T66: =U66+W66+X66+Y66 -> 21.532101 | X66: =X59+X62 -> 15.906603 | Y66: =Y59+Y62 -> 5.625498 | Z66: =AA66+AC66+AD66+AE66 -> 7.284675473 | AD66: =AD59+AD62 -> 5.256844097 | AE66: =AE59+AE62 -> 2.027831376 | AF66: =AG66+AI66+AJ66+AK66 -> 7.284675473 | AJ66: =AJ59+AJ62 -> 5.256844097 | AK66: =AK59+AK62 -> 2.027831376 | AL66: =AM66+AO66+AP66+AQ66 -> 0 | AR66: =AS66+AU66+AV66+AW66 -> 43.4763 | AV66: =AV59+AV62 -> 31.65146 | AW66: =AW59+AW62 -> 11.82484 | AX66: =AY66+BA66+BB66+BC66 -> 21.97494 | BB66: =BB59+BB62 -> 15.38831 | BC66: =BC59+BC62 -> 6.58663 | BD66: =BE66+BG66+BH66+BI66 -> 21.50136 | BH66: =BH59+BH62 -> 16.26315 | BI66: =BI59+BI62 -> 5.23821 | BJ66: =BK66+BM66+BN66+BO66 -> 0 | BP66: =BQ66+BS66+BT66+BU66 -> 0 | BV66: =BW66+BY66+BZ66+CA66 -> 0 | CB66: =CC66+CE66+CF66+CG66 -> 44.678 | CF66: =CF56 -> 32.239 | CG66: =CG56 -> 12.439 | CH66: =CI66+CK66+CL66+CM66 -> 23.143 | CL66: =CL56 -> 16.331 | CM66: =CM56 -> 6.812 | CN66: =CO66+CQ66+CR66+CS66 -> 21.535 | CR66: =CR56 -> 15.908 | CS66: =CS56 -> 5.627 | CT66: =CU66+CW66+CX66+CY66 -> 0 | CZ66: =DA66+DC66+DD66+DE66 -> 0 | DF66: =DG66+DI66+DJ66+DK66 -> 0
D67: 6 | E67: Небаланс | H67: =I67+K67+L67+M67 -> 3.000000007e-06 | I67: =I17+I34-H35-I38-I45-I48 -> -1.776356839e-15 | K67: =K17+K34-H36-K38-K45-K48 -> 0 | L67: =L17+L34-H37-L38-L45-L48 -> 0 | M67: =M17+M34-M38-M45-M48 -> 3.000000008e-06 | N67: =O67+Q67+R67+S67 -> 2.999999995e-06 | O67: =O17+O34-N35-O38-O45-O48 -> 6.383782392e-16 | Q67: =Q17+Q34-N36-Q38-Q45-Q48 -> 0 | R67: =R17+R34-N37-R38-R45-R48 -> 0 | S67: =S17+S34-S38-S45-S48 -> 2.999999994e-06 | T67: =U67+W67+X67+Y67 -> -6.106226635e-16 | U67: =U17+U34-T35-U38-U45-U48 -> -6.106226635e-16 | W67: =W17+W34-T36-W38-W45-W48 -> 0 | X67: =X17+X34-T37-X38-X45-X48 -> 0 | Y67: =Y17+Y34-Y38-Y45-Y48 -> 0 | Z67: =AA67+AC67+AD67+AE67 -> 4.89236792e-07 | AA67: =AA17+AA34-Z35-AA38-AA45-AA48 -> 4.163336342e-17 | AC67: =AC17+AC34-Z36-AC38-AC45-AC48 -> 0 | AD67: =AD17+AD34-Z37-AD38-AD45-AD48 -> 0 | AE67: =AE17+AE34-AE38-AE45-AE48 -> 4.89236792e-07 | AF67: =AG67+AI67+AJ67+AK67 -> 4.89236792e-07 | AG67: =AG17+AG34-AF35-AG38-AG45-AG48 -> 4.163336342e-17 | AI67: =AI17+AI34-AF36-AI38-AI45-AI48 -> 0 | AJ67: =AJ17+AJ34-AF37-AJ38-AJ45-AJ48 -> 0 | AK67: =AK17+AK34-AK38-AK45-AK48 -> 4.89236792e-07 | AR67: =AS67+AU67+AV67+AW67 -> -0.00181 | AS67: =AS17+AS34-AR35-AS38-AS45-AS48 -> -7.21644966e-16 | AU67: =AU17+AU34-AR36-AU38-AU45-AU48 -> 0 | AV67: =AV17+AV34-AR37-AV38-AV45-AV48 -> 0 | AW67: =AW17+AW34-AW38-AW45-AW48 -> -0.00181 | AX67: =AY67+BA67+BB67+BC67 -> -0.00145 | AY67: =AY17+AY34-AX35-AY38-AY45-AY48 -> -3.60822483e-16 | BA67: =BA17+BA34-AX36-BA38-BA45-BA48 -> 0 | BB67: =BB17+BB34-AX37-BB38-BB45-BB48 -> 0 | BC67: =BC17+BC34-BC38-BC45-BC48 -> -0.00145 | BD67: =BE67+BG67+BH67+BI67 -> -0.00036 | BE67: =BE17+BE34-BD35-BE38-BE45-BE48 -> -3.60822483e-16 | BG67: =BG17+BG34-BD36-BG38-BG45-BG48 -> 0 | BH67: =BH17+BH34-BD37-BH38-BH45-BH48 -> 0 | BI67: =BI17+BI34-BI38-BI45-BI48 -> -0.00036 | BJ67: =BK67+BM67+BN67+BO67 -> 0.001793117368 | BK67: =BK17+BK34-BJ35-BK38-BK45-BK48 -> -1.977584763e-16 | BM67: =BM17+BM34-BJ36-BM38-BM45-BM48 -> 0 | BN67: =BN17+BN34-BJ37-BN38-BN45-BN48 -> 0 | BO67: =BO17+BO34-BO38-BO45-BO48 -> 0.001793117368 | BP67: =BQ67+BS67+BT67+BU67 -> 0.001793117368 | BQ67: =BQ17+BQ34-BP35-BQ38-BQ45-BQ48 -> -1.977584763e-16 | BS67: =BS17+BS34-BP36-BS38-BS45-BS48 -> 0 | BT67: =BT17+BT34-BP37-BT38-BT45-BT48 -> 0 | BU67: =BU17+BU34-BU38-BU45-BU48 -> 0.001793117368 | CB67: =CC67+CE67+CF67+CG67 -> -0.008225 | CC67: =CC17+CC34-CB35-CC38-CC45-CC48 -> 1.720845688e-15 | CE67: =CE17+CE34-CB36-CE38-CE45-CE48 -> 0 | CF67: =CF17+CF34-CB37-CF38-CF45-CF48 -> 0 | CG67: =CG17+CG34-CG38-CG45-CG48 -> -0.008225 | CH67: =CI67+CK67+CL67+CM67 -> -0.004995 | CI67: =CI17+CI34-CH35-CI38-CI45-CI48 -> -7.494005416e-16 | CK67: =CK17+CK34-CH36-CK38-CK45-CK48 -> 0 | CL67: =CL17+CL34-CH37-CL38-CL45-CL48 -> 0 | CM67: =CM17+CM34-CM38-CM45-CM48 -> -0.004995 | CN67: =CO67+CQ67+CR67+CS67 -> -0.00323 | CO67: =CO17+CO34-CN35-CO38-CO45-CO48 -> 6.938893904e-16 | CQ67: =CQ17+CQ34-CN36-CQ38-CQ45-CQ48 -> 0 | CR67: =CR17+CR34-CN37-CR38-CR45-CR48 -> 0 | CS67: =CS17+CS34-CS38-CS45-CS48 -> -0.00323 | CT67: =CU67+CW67+CX67+CY67 -> -0.0004869724644 | CU67: =CU17+CU34-CT35-CU38-CU45-CU48 -> 6.938893904e-17 | CW67: =CW17+CW34-CT36-CW38-CW45-CW48 -> 0 | CX67: =CX17+CX34-CT37-CX38-CX45-CX48 -> 0 | CY67: =CY17+CY34-CY38-CY45-CY48 -> -0.0004869724644 | CZ67: =DA67+DC67+DD67+DE67 -> -0.0004869724644 | DA67: =DA17+DA34-CZ35-DA38-DA45-DA48 -> 6.938893904e-17 | DC67: =DC17+DC34-CZ36-DC38-DC45-DC48 -> 0 | DD67: =DD17+DD34-CZ37-DD38-DD45-DD48 -> 0 | DE67: =DE17+DE34-DE38-DE45-DE48 -> -0.0004869724644

Sheet П1.3
D7: Расчёт технологического расхода электрической энергии (потерь) в электрических сетях (в том числе при наличии приказа Минэнерго России об утверждении нормативов технологического расхода)
F8: - | X8: - | AP8: - | BH8: - | ET8: - | FL8: - | GD8: - | GV8: -
E10: млн. кВтч | BH10: - | BN10: I | BT10: II | BZ10: 1 | CF10: 2 | CL10: 3 | CR10: 4 | CX10: 5 | DD10: 6 | DJ10: 7 | DP10: 8 | DV10: 9 | EB10: 10 | EH10: 11 | EN10: 12
D11: № п/п | E11: Показатели | F11: ="План " & IF(god="","Не определено",god-2) & " год" -> План 2013 год | X11: ="Факт " & IF(god="","Не определено",god-2) & " год" -> Факт 2013 год | AP11: ="План " & IF(god="","Не определено",god-1) & " год" -> План 2014 год | BH11: ="План " & IF(god="","Не определено",god) & " год" -> План 2015 год | BZ11: ="План " & IF(god="","Не определено",god) & " год" -> План 2015 год | ET11: ="План " & IF(god="","Не определено",god+1) & " год" -> План 2016 год | FL11: ="План " & IF(god="","Не определено",god+2) & " год" -> План 2017 год | GD11: ="План " & IF(god="","Не определено",god+3) & " год" -> План 2018 год | GV11: ="План " & IF(god="","Не определено",god+4) & " год" -> План 2019 год
F12: За год | L12: I полугодие | R12: II полугодие | X12: За год | AD12: I полугодие | AJ12: II полугодие | AP12: За год | AV12: I полугодие | BB12: II полугодие | BH12: За год | BN12: I полугодие | BT12: II полугодие | BZ12: Январь | CF12: Февраль | CL12: Март | CR12: Апрель | CX12: Май | DD12: Июнь | DJ12: Июль | DP12: Август | DV12: Сентябрь | EB12: Октябрь | EH12: Ноябрь | EN12: Декабрь | ET12: За год | EZ12: I полугодие | FF12: II полугодие | FL12: За год | FR12: I полугодие | FX12: II полугодие | GD12: За год | GJ12: I полугодие | GP12: II полугодие | GV12: За год | HB12: I полугодие | HH12: II полугодие
F13: Всего | G13: ВН | I13: СН 1 | J13: СН 2 | K13: НН | L13: Всего | M13: ВН | O13: СН 1 | P13: СН 2 | Q13: НН | R13: Всего | S13: ВН | U13: СН 1 | V13: СН 2 | W13: НН | X13: Всего | Y13: ВН | AA13: СН 1 | AB13: СН 2 | AC13: НН | AD13: Всего | AE13: ВН | AG13: СН 1 | AH13: СН 2 | AI13: НН | AJ13: Всего | AK13: ВН | AM13: СН 1 | AN13: СН 2 | AO13: НН | AP13: Всего | AQ13: ВН | AS13: СН 1 | AT13: СН 2 | AU13: НН | AV13: Всего | AW13: ВН | AY13: СН 1 | AZ13: СН 2 | BA13: НН | BB13: Всего | BC13: ВН | BE13: СН 1 | BF13: СН 2 | BG13: НН | BH13: Всего | BI13: ВН | BK13: СН 1 | BL13: СН 2 | BM13: НН | BN13: Всего | BO13: ВН | BQ13: СН 1 | BR13: СН 2 | BS13: НН | BT13: Всего | BU13: ВН | BW13: СН 1 | BX13: СН 2 | BY13: НН | BZ13: Всего | CA13: ВН | CC13: СН 1 | CD13: СН 2 | CE13: НН | CF13: Всего | CG13: ВН | CI13: СН 1 | CJ13: СН 2 | CK13: НН | CL13: Всего | CM13: ВН | CO13: СН 1 | CP13: СН 2 | CQ13: НН | CR13: Всего | CS13: ВН | CU13: СН 1 | CV13: СН 2 | CW13: НН | CX13: Всего | CY13: ВН | DA13: СН 1 | DB13: СН 2 | DC13: НН | DD13: Всего | DE13: ВН | DG13: СН 1 | DH13: СН 2 | DI13: НН | DJ13: Всего | DK13: ВН | DM13: СН 1 | DN13: СН 2 | DO13: НН | DP13: Всего | DQ13: ВН | DS13: СН 1 | DT13: СН 2 | DU13: НН | DV13: Всего | DW13: ВН | DY13: СН 1 | DZ13: СН 2 | EA13: НН | EB13: Всего | EC13: ВН | EE13: СН 1 | EF13: СН 2 | EG13: НН | EH13: Всего | EI13: ВН | EK13: СН 1 | EL13: СН 2 | EM13: НН | EN13: Всего | EO13: ВН | EQ13: СН 1 | ER13: СН 2 | ES13: НН | ET13: Всего | EU13: ВН | EW13: СН 1 | EX13: СН 2 | EY13: НН | EZ13: Всего | FA13: ВН | FC13: СН 1 | FD13: СН 2 | FE13: НН | FF13: Всего | FG13: ВН | FI13: СН 1 | FJ13: СН 2 | FK13: НН | FL13: Всего | FM13: ВН | FO13: СН 1 | FP13: СН 2 | FQ13: НН | FR13: Всего | FS13: ВН | FU13: СН 1 | FV13: СН 2 | FW13: НН | FX13: Всего | FY13: ВН | GA13: СН 1 | GB13: СН 2 | GC13: НН | GD13: Всего | GE13: ВН | GG13: СН 1 | GH13: СН 2 | GI13: НН | GJ13: Всего | GK13: ВН | GM13: СН 1 | GN13: СН 2 | GO13: НН | GP13: Всего | GQ13: ВН | GS13: СН 1 | GT13: СН 2 | GU13: НН | GV13: Всего | GW13: ВН | GY13: СН 1 | GZ13: СН 2 | HA13: НН | HB13: Всего | HC13: ВН | HE13: СН 1 | HF13: СН 2 | HG13: НН | HH13: Всего | HI13: ВН | HK13: СН 1 | HL13: СН 2 | HM13: НН
D15: 1 | E15: Условно-постоянные потери | F15: =SUM(F16:F25) -> 0 | G15: =SUM(G16:G25) -> 0 | I15: =SUM(I16:I25) -> 0 | J15: =SUM(J16:J25) -> 0 | K15: =SUM(K16:K25) -> 0 | L15: =SUM(L16:L25) -> 0 | M15: =SUM(M16:M25) -> 0 | O15: =SUM(O16:O25) -> 0 | P15: =SUM(P16:P25) -> 0 | Q15: =SUM(Q16:Q25) -> 0 | R15: =SUM(R16:R25) -> 0 | S15: =SUM(S16:S25) -> 0 | U15: =SUM(U16:U25) -> 0 | V15: =SUM(V16:V25) -> 0 | W15: =SUM(W16:W25) -> 0 | X15: =SUM(X16:X25) -> 0 | Y15: =SUM(Y16:Y25) -> 0 | AA15: =SUM(AA16:AA25) -> 0 | AB15: =SUM(AB16:AB25) -> 0 | AC15: =SUM(AC16:AC25) -> 0 | AD15: =SUM(AD16:AD25) -> 0 | AE15: =SUM(AE16:AE25) -> 0 | AG15: =SUM(AG16:AG25) -> 0 | AH15: =SUM(AH16:AH25) -> 0 | AI15: =SUM(AI16:AI25) -> 0 | AJ15: =SUM(AJ16:AJ25) -> 0 | AK15: =SUM(AK16:AK25) -> 0 | AM15: =SUM(AM16:AM25) -> 0 | AN15: =SUM(AN16:AN25) -> 0 | AO15: =SUM(AO16:AO25) -> 0 | AP15: =SUM(AP16:AP25) -> 0 | AQ15: =SUM(AQ16:AQ25) -> 0 | AS15: =SUM(AS16:AS25) -> 0 | AT15: =SUM(AT16:AT25) -> 0 | AU15: =SUM(AU16:AU25) -> 0 | AV15: =SUM(AV16:AV25) -> 0 | AW15: =SUM(AW16:AW25) -> 0 | AY15: =SUM(AY16:AY25) -> 0 | AZ15: =SUM(AZ16:AZ25) -> 0 | BA15: =SUM(BA16:BA25) -> 0 | BB15: =SUM(BB16:BB25) -> 0 | BC15: =SUM(BC16:BC25) -> 0 | BE15: =SUM(BE16:BE25) -> 0 | BF15: =SUM(BF16:BF25) -> 0 | BG15: =SUM(BG16:BG25) -> 0 | BH15: =SUM(BH16:BH25) -> 0 | BI15: =SUM(BI16:BI25) -> 0 | BK15: =SUM(BK16:BK25) -> 0 | BL15: =SUM(BL16:BL25) -> 0 | BM15: =SUM(BM16:BM25) -> 0 | BN15: =SUM(BN16:BN25) -> 0 | BO15: =SUM(BO16:BO25) -> 0 | BQ15: =SUM(BQ16:BQ25) -> 0 | BR15: =SUM(BR16:BR25) -> 0 | BS15: =SUM(BS16:BS25) -> 0 | BT15: =SUM(BT16:BT25) -> 0 | BU15: =SUM(BU16:BU25) -> 0 | BW15: =SUM(BW16:BW25) -> 0 | BX15: =SUM(BX16:BX25) -> 0 | BY15: =SUM(BY16:BY25) -> 0 | BZ15: =SUM(BZ16:BZ25) -> 0 | CA15: =SUM(CA16:CA25) -> 0 | CC15: =SUM(CC16:CC25) -> 0 | CD15: =SUM(CD16:CD25) -> 0 | CE15: =SUM(CE16:CE25) -> 0 | CF15: =SUM(CF16:CF25) -> 0 | CG15: =SUM(CG16:CG25) -> 0 | CI15: =SUM(CI16:CI25) -> 0 | CJ15: =SUM(CJ16:CJ25) -> 0 | CK15: =SUM(CK16:CK25) -> 0 | CL15: =SUM(CL16:CL25) -> 0 | CM15: =SUM(CM16:CM25) -> 0 | CO15: =SUM(CO16:CO25) -> 0 | CP15: =SUM(CP16:CP25) -> 0 | CQ15: =SUM(CQ16:CQ25) -> 0 | CR15: =SUM(CR16:CR25) -> 0 | CS15: =SUM(CS16:CS25) -> 0 | CU15: =SUM(CU16:CU25) -> 0 | CV15: =SUM(CV16:CV25) -> 0 | CW15: =SUM(CW16:CW25) -> 0 | CX15: =SUM(CX16:CX25) -> 0 | CY15: =SUM(CY16:CY25) -> 0 | DA15: =SUM(DA16:DA25) -> 0 | DB15: =SUM(DB16:DB25) -> 0 | DC15: =SUM(DC16:DC25) -> 0 | DD15: =SUM(DD16:DD25) -> 0 | DE15: =SUM(DE16:DE25) -> 0 | DG15: =SUM(DG16:DG25) -> 0 | DH15: =SUM(DH16:DH25) -> 0 | DI15: =SUM(DI16:DI25) -> 0 | DJ15: =SUM(DJ16:DJ25) -> 0 | DK15: =SUM(DK16:DK25) -> 0 | DM15: =SUM(DM16:DM25) -> 0 | DN15: =SUM(DN16:DN25) -> 0 | DO15: =SUM(DO16:DO25) -> 0 | DP15: =SUM(DP16:DP25) -> 0 | DQ15: =SUM(DQ16:DQ25) -> 0 | DS15: =SUM(DS16:DS25) -> 0 | DT15: =SUM(DT16:DT25) -> 0 | DU15: =SUM(DU16:DU25) -> 0 | DV15: =SUM(DV16:DV25) -> 0 | DW15: =SUM(DW16:DW25) -> 0 | DY15: =SUM(DY16:DY25) -> 0 | DZ15: =SUM(DZ16:DZ25) -> 0 | EA15: =SUM(EA16:EA25) -> 0 | EB15: =SUM(EB16:EB25) -> 0 | EC15: =SUM(EC16:EC25) -> 0 | EE15: =SUM(EE16:EE25) -> 0 | EF15: =SUM(EF16:EF25) -> 0 | EG15: =SUM(EG16:EG25) -> 0 | EH15: =SUM(EH16:EH25) -> 0 | EI15: =SUM(EI16:EI25) -> 0 | EK15: =SUM(EK16:EK25) -> 0 | EL15: =SUM(EL16:EL25) -> 0 | EM15: =SUM(EM16:EM25) -> 0 | EN15: =SUM(EN16:EN25) -> 0 | EO15: =SUM(EO16:EO25) -> 0 | EQ15: =SUM(EQ16:EQ25) -> 0 | ER15: =SUM(ER16:ER25) -> 0 | ES15: =SUM(ES16:ES25) -> 0 | ET15: =SUM(ET16:ET25) -> 0 | EU15: =SUM(EU16:EU25) -> 0 | EW15: =SUM(EW16:EW25) -> 0 | EX15: =SUM(EX16:EX25) -> 0 | EY15: =SUM(EY16:EY25) -> 0 | EZ15: =SUM(EZ16:EZ25) -> 0 | FA15: =SUM(FA16:FA25) -> 0 | FC15: =SUM(FC16:FC25) -> 0 | FD15: =SUM(FD16:FD25) -> 0 | FE15: =SUM(FE16:FE25) -> 0 | FF15: =SUM(FF16:FF25) -> 0 | FG15: =SUM(FG16:FG25) -> 0 | FI15: =SUM(FI16:FI25) -> 0 | FJ15: =SUM(FJ16:FJ25) -> 0 | FK15: =SUM(FK16:FK25) -> 0 | FL15: =SUM(FL16:FL25) -> 0 | FM15: =SUM(FM16:FM25) -> 0 | FO15: =SUM(FO16:FO25) -> 0 | FP15: =SUM(FP16:FP25) -> 0 | FQ15: =SUM(FQ16:FQ25) -> 0 | FR15: =SUM(FR16:FR25) -> 0 | FS15: =SUM(FS16:FS25) -> 0 | FU15: =SUM(FU16:FU25) -> 0 | FV15: =SUM(FV16:FV25) -> 0 | FW15: =SUM(FW16:FW25) -> 0 | FX15: =SUM(FX16:FX25) -> 0 | FY15: =SUM(FY16:FY25) -> 0 | GA15: =SUM(GA16:GA25) -> 0 | GB15: =SUM(GB16:GB25) -> 0 | GC15: =SUM(GC16:GC25) -> 0 | GD15: =SUM(GD16:GD25) -> 0 | GE15: =SUM(GE16:GE25) -> 0 | GG15: =SUM(GG16:GG25) -> 0 | GH15: =SUM(GH16:GH25) -> 0 | GI15: =SUM(GI16:GI25) -> 0 | GJ15: =SUM(GJ16:GJ25) -> 0 | GK15: =SUM(GK16:GK25) -> 0 | GM15: =SUM(GM16:GM25) -> 0 | GN15: =SUM(GN16:GN25) -> 0 | GO15: =SUM(GO16:GO25) -> 0 | GP15: =SUM(GP16:GP25) -> 0 | GQ15: =SUM(GQ16:GQ25) -> 0 | GS15: =SUM(GS16:GS25) -> 0 | GT15: =SUM(GT16:GT25) -> 0 | GU15: =SUM(GU16:GU25) -> 0 | GV15: =SUM(GV16:GV25) -> 0 | GW15: =SUM(GW16:GW25) -> 0 | GY15: =SUM(GY16:GY25) -> 0 | GZ15: =SUM(GZ16:GZ25) -> 0 | HA15: =SUM(HA16:HA25) -> 0 | HB15: =SUM(HB16:HB25) -> 0 | HC15: =SUM(HC16:HC25) -> 0 | HE15: =SUM(HE16:HE25) -> 0 | HF15: =SUM(HF16:HF25) -> 0 | HG15: =SUM(HG16:HG25) -> 0 | HH15: =SUM(HH16:HH25) -> 0 | HI15: =SUM(HI16:HI25) -> 0 | HK15: =SUM(HK16:HK25) -> 0 | HL15: =SUM(HL16:HL25) -> 0 | HM15: =SUM(HM16:HM25) -> 0
D16: 1.1 | E16: Потери электроэнергии холостого хода в силовом трансформаторе (автотрансформаторе) | F16: =G16+I16+J16+K16 -> 0 | L16: =M16+O16+P16+Q16 -> 0 | R16: =S16+U16+V16+W16 -> 0 | X16: =Y16+AA16+AB16+AC16 -> 0 | AD16: =AE16+AG16+AH16+AI16 -> 0 | AJ16: =AK16+AM16+AN16+AO16 -> 0 | AP16: =AQ16+AS16+AT16+AU16 -> 0 | AQ16: =AW16+BC16 -> 0 | AS16: =AY16+BE16 -> 0 | AT16: 0 | AU16: 0 | AV16: =AW16+AY16+AZ16+BA16 -> 0 | BB16: =BC16+BE16+BF16+BG16 -> 0 | BH16: =BI16+BK16+BL16+BM16 -> 0 | BI16: =BO16+BU16 -> 0 | BK16: =BQ16+BW16 -> 0 | BL16: 0 | BM16: 0 | BN16: =BO16+BQ16+BR16+BS16 -> 0 | BO16: =IF($BI$29=0,0,CA16+CG16+CM16+CS16+CY16+DE16) -> 0 | BQ16: =IF($BK$29=0,0,CC16+CI16+CO16+CU16+DA16+DG16) -> 0 | BR16: =IF($BK$29=0,0,CD16+CJ16+CP16+CV16+DB16+DH16) -> 0 | BS16: =IF($BK$29=0,0,CE16+CK16+CQ16+CW16+DC16+DI16) -> 0 | BT16: =BU16+BW16+BX16+BY16 -> 0 | BU16: =IF($BI$29=0,0,DK16+DQ16+DW16+EC16+EI16+EQ16) -> 0 | BW16: =IF($BK$29=0,0,DM16+DS16+DY16+EE16+EK16+EQ16) -> 0 | BX16: =IF($BK$29=0,0,DN16+DT16+DZ16+EF16+EL16+ER16) -> 0 | BY16: 0 | BZ16: =CA16+CC16+CD16+CE16 -> 0 | CF16: =CG16+CI16+CJ16+CK16 -> 0 | CL16: =CM16+CO16+CP16+CQ16 -> 0 | CR16: =CS16+CU16+CV16+CW16 -> 0 | CX16: =CY16+DA16+DB16+DC16 -> 0 | DD16: =DE16+DG16+DH16+DI16 -> 0 | DJ16: =DK16+DM16+DN16+DO16 -> 0 | DP16: =DQ16+DS16+DT16+DU16 -> 0 | DV16: =DW16+DY16+DZ16+EA16 -> 0 | EB16: =EC16+EE16+EF16+EG16 -> 0 | EH16: =EI16+EK16+EL16+EM16 -> 0 | EN16: =EO16+EQ16+ER16+ES16 -> 0 | ET16: =EU16+EW16+EX16+EY16 -> 0 | EZ16: =FA16+FC16+FD16+FE16 -> 0 | FF16: =FG16+FI16+FJ16+FK16 -> 0 | FL16: =FM16+FO16+FP16+FQ16 -> 0 | FR16: =FS16+FU16+FV16+FW16 -> 0 | FX16: =FY16+GA16+GB16+GC16 -> 0 | GD16: =GE16+GG16+GH16+GI16 -> 0 | GJ16: =GK16+GM16+GN16+GO16 -> 0 | GP16: =GQ16+GS16+GT16+GU16 -> 0 | GV16: =GW16+GY16+GZ16+HA16 -> 0 | HB16: =HC16+HE16+HF16+HG16 -> 0 | HH16: =HI16+HK16+HL16+HM16 -> 0
D17: 1.2 | E17: Потери электроэнергии в шунтирующих реакторах (ШР), соединительных проводах и сборных шинах распределительных устройств подстанций (СППС) | F17: =G17+I17+J17+K17 -> 0 | L17: =M17+O17+P17+Q17 -> 0 | R17: =S17+U17+V17+W17 -> 0 | X17: =Y17+AA17+AB17+AC17 -> 0 | AD17: =AE17+AG17+AH17+AI17 -> 0 | AJ17: =AK17+AM17+AN17+AO17 -> 0 | AP17: =AQ17+AS17+AT17+AU17 -> 0 | AQ17: 0 | AS17: 0 | AT17: 0 | AU17: 0 | AV17: =AW17+AY17+AZ17+BA17 -> 0 | BB17: =BC17+BE17+BF17+BG17 -> 0 | BH17: =BI17+BK17+BL17+BM17 -> 0 | BI17: 0 | BK17: 0 | BL17: 0 | BM17: 0 | BN17: =BO17+BQ17+BR17+BS17 -> 0 | BO17: =IF($BI$29=0,0,CA17+CG17+CM17+CS17+CY17+DE17) -> 0 | BQ17: =IF($BK$29=0,0,CC17+CI17+CO17+CU17+DA17+DG17) -> 0 | BR17: 0 | BS17: 0 | BT17: =BU17+BW17+BX17+BY17 -> 0 | BU17: =IF($BI$29=0,0,DK17+DQ17+DW17+EC17+EI17+EQ17) -> 0 | BW17: =IF($BK$29=0,0,DM17+DS17+DY17+EE17+EK17+EQ17) -> 0 | BX17: 0 | BY17: 0 | BZ17: =CA17+CC17+CD17+CE17 -> 0 | CF17: 0 | CL17: 0 | CR17: 0 | CX17: 0 | DD17: 0 | DJ17: 0 | DP17: 0 | DV17: 0 | EB17: 0 | EH17: 0 | EN17: 0 | ET17: =EU17+EW17+EX17+EY17 -> 0 | EZ17: =FA17+FC17+FD17+FE17 -> 0 | FF17: =FG17+FI17+FJ17+FK17 -> 0 | FL17: =FM17+FO17+FP17+FQ17 -> 0 | FR17: =FS17+FU17+FV17+FW17 -> 0 | FX17: =FY17+GA17+GB17+GC17 -> 0 | GD17: 0 | GJ17: 0 | GP17: 0 | GV17: 0 | HB17: 0 | HH17: 0
D18: 1.3 | E18: Потери электроэнергии в синхронных компенсаторах | F18: 0 | L18: 0 | R18: 0 | X18: 0 | AD18: 0 | AJ18: 0 | AP18: 0 | AQ18: 0 | AS18: 0 | AT18: 0 | AU18: 0 | AV18: 0 | BB18: 0 | BH18: 0 | BI18: 0 | BK18: 0 | BL18: 0 | BM18: 0 | BN18: 0 | BO18: =IF($BI$29=0,0,CA18+CG18+CM18+CS18+CY18+DE18) -> 0 | BQ18: 0 | BR18: 0 | BS18: 0 | BT18: 0 | BU18: 0 | BW18: 0 | BX18: 0 | BY18: 0 | BZ18: 0 | CF18: 0 | CL18: 0 | CR18: 0 | CX18: 0 | DD18: 0 | DJ18: 0 | DP18: 0 | DV18: 0 | EB18: 0 | EH18: 0 | EN18: 0 | ET18: 0 | EZ18: 0 | FF18: 0 | FL18: 0 | FR18: 0 | FX18: 0 | GD18: 0 | GJ18: 0 | GP18: 0 | GV18: 0 | HB18: 0 | HH18: 0
D19: 1.4 | E19: Потери электроэнергии в статических компенсирующих устройствах - батареях статических конденсаторов (БК) и статических тиристорных компенсаторах (СТК) | F19: 0 | L19: 0 | R19: 0 | X19: 0 | AD19: 0 | AJ19: 0 | AP19: 0 | AQ19: 0 | AS19: 0 | AT19: 0 | AU19: 0 | AV19: 0 | BB19: 0 | BH19: 0 | BI19: 0 | BK19: 0 | BL19: 0 | BM19: 0 | BN19: 0 | BO19: =IF($BI$29=0,0,CA19+CG19+CM19+CS19+CY19+DE19) -> 0 | BQ19: 0 | BR19: 0 | BS19: 0 | BT19: 0 | BU19: 0 | BW19: 0 | BX19: 0 | BY19: 0 | BZ19: 0 | CF19: 0 | CL19: 0 | CR19: 0 | CX19: 0 | DD19: 0 | DJ19: 0 | DP19: 0 | DV19: 0 | EB19: 0 | EH19: 0 | EN19: 0 | ET19: 0 | EZ19: 0 | FF19: 0 | FL19: 0 | FR19: 0 | FX19: 0 | GD19: 0 | GJ19: 0 | GP19: 0 | GV19: 0 | HB19: 0 | HH19: 0
D20: 1.5 | E20: Потери электроэнергии в вентильных разрядниках (РВ), ограничителях перенапряжений (ОПН), измерительных трансформаторах тока (ТТ) и напряжения (ТН) и устройствах присоединения ВЧ связи (УПВЧ) | F20: 0 | L20: 0 | R20: 0 | X20: 0 | AD20: 0 | AJ20: 0 | AP20: 0 | AQ20: 0 | AS20: 0 | AT20: 0 | AU20: 0 | AV20: 0 | BB20: 0 | BH20: 0 | BI20: 0 | BK20: 0 | BL20: 0 | BM20: 0 | BN20: 0 | BO20: 0 | BQ20: 0 | BR20: 0 | BS20: 0 | BT20: 0 | BU20: 0 | BW20: 0 | BX20: 0 | BY20: 0 | BZ20: 0 | CF20: 0 | CL20: 0 | CR20: 0 | CX20: 0 | DD20: 0 | DJ20: 0 | DP20: 0 | DV20: 0 | EB20: 0 | EH20: 0 | EN20: 0 | ET20: 0 | EZ20: 0 | FF20: 0 | FL20: 0 | FR20: 0 | FX20: 0 | GD20: 0 | GJ20: 0 | GP20: 0 | GV20: 0 | HB20: 0 | HH20: 0
D21: 1.6 | E21: Потери электроэнергии на корону | F21: 0 | L21: 0 | R21: 0 | X21: 0 | AD21: 0 | AJ21: 0 | AP21: 0 | AQ21: 0 | AS21: 0 | AT21: 0 | AU21: 0 | AV21: 0 | BB21: 0 | BH21: 0 | BI21: 0 | BK21: 0 | BL21: 0 | BM21: 0 | BN21: 0 | BO21: 0 | BQ21: 0 | BR21: 0 | BS21: 0 | BT21: 0 | BU21: 0 | BW21: 0 | BX21: 0 | BY21: 0 | BZ21: 0 | CF21: 0 | CL21: 0 | CR21: 0 | CX21: 0 | DD21: 0 | DJ21: 0 | DP21: 0 | DV21: 0 | EB21: 0 | EH21: 0 | EN21: 0 | ET21: 0 | EZ21: 0 | FF21: 0 | FL21: 0 | FR21: 0 | FX21: 0 | GD21: 0 | GJ21: 0 | GP21: 0 | GV21: 0 | HB21: 0 | HH21: 0
D22: 1.7 | E22: Потери электроэнергии от токов утечки по изоляторам воздушных линий | F22: 0 | L22: 0 | R22: 0 | X22: 0 | AD22: 0 | AJ22: 0 | AP22: 0 | AQ22: 0 | AS22: 0 | AT22: 0 | AU22: 0 | AV22: 0 | BB22: 0 | BH22: 0 | BI22: 0 | BK22: 0 | BL22: 0 | BM22: 0 | BN22: 0 | BO22: 0 | BQ22: 0 | BR22: 0 | BS22: 0 | BT22: 0 | BU22: 0 | BW22: 0 | BX22: 0 | BY22: 0 | BZ22: 0 | CF22: 0 | CL22: 0 | CR22: 0 | CX22: 0 | DD22: 0 | DJ22: 0 | DP22: 0 | DV22: 0 | EB22: 0 | EH22: 0 | EN22: 0 | ET22: 0 | EZ22: 0 | FF22: 0 | FL22: 0 | FR22: 0 | FX22: 0 | GD22: 0 | GJ22: 0 | GP22: 0 | GV22: 0 | HB22: 0 | HH22: 0
D23: 1.8 | E23: Расход электроэнергии на плавку гололеда | F23: 0 | L23: 0 | R23: 0 | X23: 0 | AD23: 0 | AJ23: 0 | AP23: 0 | AQ23: 0 | AS23: 0 | AT23: 0 | AU23: 0 | AV23: 0 | BB23: 0 | BH23: 0 | BI23: 0 | BK23: 0 | BL23: 0 | BM23: 0 | BN23: 0 | BO23: 0 | BQ23: 0 | BR23: 0 | BS23: 0 | BT23: 0 | BU23: 0 | BW23: 0 | BX23: 0 | BY23: 0 | BZ23: 0 | CF23: 0 | CL23: 0 | CR23: 0 | CX23: 0 | DD23: 0 | DJ23: 0 | DP23: 0 | DV23: 0 | EB23: 0 | EH23: 0 | EN23: 0 | ET23: 0 | EZ23: 0 | FF23: 0 | FL23: 0 | FR23: 0 | FX23: 0 | GD23: 0 | GJ23: 0 | GP23: 0 | GV23: 0 | HB23: 0 | HH23: 0
D24: 1.9 | E24: Потери электроэнергии в изоляции силовых кабелей | F24: 0 | L24: 0 | R24: 0 | X24: 0 | AD24: 0 | AJ24: 0 | AP24: 0 | AQ24: 0 | AS24: 0 | AT24: 0 | AU24: 0 | AV24: 0 | BB24: 0 | BH24: 0 | BI24: 0 | BK24: 0 | BL24: 0 | BM24: 0 | BN24: 0 | BO24: 0 | BQ24: 0 | BR24: 0 | BS24: 0 | BT24: 0 | BU24: 0 | BW24: 0 | BX24: 0 | BY24: 0 | BZ24: 0 | CF24: 0 | CL24: 0 | CR24: 0 | CX24: 0 | DD24: 0 | DJ24: 0 | DP24: 0 | DV24: 0 | EB24: 0 | EH24: 0 | EN24: 0 | ET24: 0 | EZ24: 0 | FF24: 0 | FL24: 0 | FR24: 0 | FX24: 0 | GD24: 0 | GJ24: 0 | GP24: 0 | GV24: 0 | HB24: 0 | HH24: 0
D25: 1.10 | E25: Нагрузочные потери, всего | F25: 0 | L25: 0 | R25: 0 | X25: 0 | AD25: 0 | AJ25: 0 | AP25: 0 | AQ25: 0 | AS25: 0 | AT25: 0 | AU25: 0 | AV25: 0 | BB25: 0 | BH25: 0 | BI25: 0 | BK25: 0 | BL25: 0 | BM25: 0 | BN25: 0 | BO25: 0 | BQ25: 0 | BR25: 0 | BS25: 0 | BT25: 0 | BU25: 0 | BW25: 0 | BX25: 0 | BY25: 0 | BZ25: 0 | CF25: 0 | CL25: 0 | CR25: 0 | CX25: 0 | DD25: 0 | DJ25: 0 | DP25: 0 | DV25: 0 | EB25: 0 | EH25: 0 | EN25: 0 | ET25: 0 | EZ25: 0 | FF25: 0 | FL25: 0 | FR25: 0 | FX25: 0 | GD25: 0 | GJ25: 0 | GP25: 0 | GV25: 0 | HB25: 0 | HH25: 0
D26: 2 | E26: Расход электроэнергии на собственные нужды (СН) подстанций | F26: =SUM(G26:K26) -> 0 | L26: =SUM(M26:Q26) -> 0 | R26: =SUM(S26:W26) -> 0 | X26: =SUM(Y26:AC26) -> 0 | AD26: =SUM(AE26:AI26) -> 0 | AJ26: =SUM(AK26:AO26) -> 0 | AP26: =SUM(AQ26:AU26) -> 0 | AQ26: 0 | AS26: 0 | AT26: 0 | AU26: 0 | AV26: =SUM(AW26:BA26) -> 0 | BB26: =SUM(BC26:BG26) -> 0 | BH26: =SUM(BI26:BM26) -> 0 | BI26: 0 | BK26: 0 | BL26: 0 | BM26: 0 | BN26: =SUM(BO26:BS26) -> 0 | BO26: 0 | BQ26: 0 | BR26: 0 | BS26: 0 | BT26: =SUM(BU26:BY26) -> 0 | BU26: 0 | BW26: 0 | BX26: 0 | BY26: 0 | BZ26: =SUM(CA26:CE26) -> 0 | CF26: =SUM(CG26:CK26) -> 0 | CL26: =SUM(CM26:CQ26) -> 0 | CR26: =SUM(CS26:CW26) -> 0 | CX26: =SUM(CY26:DC26) -> 0 | DD26: =SUM(DE26:DI26) -> 0 | DJ26: =SUM(DK26:DO26) -> 0 | DP26: =SUM(DQ26:DU26) -> 0 | DV26: =SUM(DW26:EA26) -> 0 | EB26: =SUM(EC26:EG26) -> 0 | EH26: =SUM(EI26:EM26) -> 0 | EN26: =SUM(EO26:ES26) -> 0 | ET26: =SUM(EU26:EY26) -> 0 | EZ26: =SUM(FA26:FE26) -> 0 | FF26: =SUM(FG26:FK26) -> 0 | FL26: =SUM(FM26:FQ26) -> 0 | FR26: =SUM(FS26:FW26) -> 0 | FX26: =SUM(FY26:GC26) -> 0 | GD26: =SUM(GE26:GI26) -> 0 | GJ26: =SUM(GK26:GO26) -> 0 | GP26: =SUM(GQ26:GU26) -> 0 | GV26: =SUM(GW26:HA26) -> 0 | HB26: =SUM(HC26:HG26) -> 0 | HH26: =SUM(HI26:HM26) -> 0
BQ27: 0 | BR27: 0 | BS27: 0 | BU27: 0.23472 | BW27: 0 | BX27: 0 | BY27: 0 | CA27: =204.2*32%/1000 -> 0.065344 | CD27: =(0.2042-CA27) -> 0.138856 | CG27: =173.1*32%/1000 -> 0.055392 | CJ27: =0.1731-CG27 -> 0.117708 | CM27: =185.6*32%/1000 -> 0.059392 | CP27: =0.1856-CM27 -> 0.126208 | CS27: =143.8*32%/1000 -> 0.046016 | CV27: =0.1438-CS27 -> 0.097784 | DE27: =123.8*32%/1000 -> 0.039616 | DH27: =0.1238-DE27 -> 0.084184 | DK27: =120.7*32%/1000 -> 0.038624 | DN27: =0.1207-DK27 -> 0.082076 | DQ27: =118.4*32%/1000 -> 0.037888 | DT27: =0.1184-DQ27 -> 0.080512 | DW27: =144.5*32%/1000 -> 0.04624 | DZ27: =0.1445-DW27 -> 0.09826 | EC27: =172.2*32%/1000 -> 0.055104 | EF27: =0.1722-EC27 -> 0.117096 | EI27: =177.7*32%/1000 -> 0.056864 | EL27: =0.1777-EI27 -> 0.120836 | EO27: =173*32%/1000 -> 0.05536 | ER27: =0.173-EO27 -> 0.11764
D28: 3 | E28: Потери электроэнергии обусловленные допустимой погрешностью системы учёта электроэнергии | F28: 0.3968 | G28: =M28+S28 -> 0.12 | J28: =P28+V28 -> 0.2768 | L28: =M28+O28+P28+Q28 -> 0.194 | M28: 0.06 | P28: =0.194-M28 -> 0.134 | R28: =S28+U28+V28+W28 -> 0.2028 | S28: 0.06 | V28: =202.8/1000-S28 -> 0.1428 | X28: 1.26 | Y28: =AE28+AK28 -> 0.4 | AB28: =AH28+AN28 -> 0.86 | AD28: =AE28+AG28+AH28+AI28 -> 0.35 | AE28: 0.11 | AH28: 0.24 | AJ28: =AK28+AM28+AN28+AO28 -> 0.91 | AK28: 0.29 | AN28: 0.62 | AP28: =AQ28+AS28+AT28+AU28 -> 0.61 | AQ28: =AW28+BC28 -> 0.2 | AS28: =AY28+BE28 -> 0 | AT28: =AZ28+BF28 -> 0.41 | AU28: =BA28+BG28 -> 0 | AV28: =AW28+AY28+AZ28+BA28 -> 0.3 | AW28: 0.1 | AZ28: 0.2 | BB28: =BC28+BE28+BF28+BG28 -> 0.31 | BC28: 0.1 | BF28: 0.21 | BH28: =BI28+BK28+BL28+BM28 -> 0.58 | BI28: 0.58 | BK28: =BQ28+BW28 -> 0 | BL28: =BR28+BX28 -> 0 | BM28: =BS28+BY28 -> 0 | BN28: 0.33 | BO28: 0.33 | BQ28: 0 | BR28: 0 | BS28: 0 | BT28: 0.25 | BU28: 0.25 | BW28: 0 | BX28: 0 | BY28: 0 | BZ28: 0.2 | CA28: 0.07 | CD28: 0.13 | CF28: =CG28+CI28+CJ28+CK28 -> 0.17 | CG28: 0.06 | CJ28: 0.11 | CL28: =CM28+CO28+CP28+CQ28 -> 0.19 | CM28: 0.06 | CP28: 0.13 | CR28: =CS28+CU28+CV28+CW28 -> 0.14 | CS28: 0.05 | CV28: 0.09 | CX28: =CY28+DA28+DB28+DC28 -> 0.14 | CY28: 0.05 | DB28: 0.09 | DD28: =DE28+DG28+DH28+DI28 -> 0.12 | DE28: 0.04 | DH28: 0.08 | DJ28: =DK28+DM28+DN28+DO28 -> 0.12 | DK28: 0.04 | DN28: 0.08 | DP28: =DQ28+DS28+DT28+DU28 -> 0.12 | DQ28: 0.04 | DT28: 0.08 | DV28: =DW28+DY28+DZ28+EA28 -> 0.14 | DW28: 0.05 | DZ28: 0.09 | EB28: =EC28+EE28+EF28+EG28 -> 0.17 | EC28: 0.06 | EF28: 0.11 | EH28: =EI28+EK28+EL28+EM28 -> 0.18 | EI28: 0.06 | EL28: 0.12 | EN28: =EO28+EQ28+ER28+ES28 -> 0.17 | EO28: 0.06 | ER28: 0.11 | ET28: 1.9 | EU28: =FA28+FG28 -> 0.61 | EX28: =FD28+FJ28 -> 1.29 | EZ28: =FA28+FC28+FD28+FE28 -> 0.99 | FA28: 0.32 | FD28: 0.67 | FF28: =FG28+FI28+FJ28+FK28 -> 0.91 | FG28: 0.29 | FJ28: 0.62 | FL28: 1.93 | FM28: =FS28+FY28 -> 0.62 | FP28: =FV28+GB28 -> 1.31 | FR28: =FS28+FU28+FV28+FW28 -> 1 | FS28: 0.32 | FV28: 0.68 | FX28: =FY28+GA28+GB28+GC28 -> 0.93 | FY28: 0.3 | GB28: 0.63 | GD28: =GE28+GG28+GH28+GI28 -> 1.94 | GE28: =GK28+GQ28 -> 0.62 | GH28: =GN28+GT28 -> 1.32 | GJ28: =GK28+GM28+GN28+GO28 -> 1 | GK28: 0.32 | GN28: 0.68 | GP28: =GQ28+GS28+GT28+GU28 -> 0.94 | GQ28: 0.3 | GT28: 0.64 | GV28: =GW28+GY28+GZ28+HA28 -> 1.96 | GW28: =HC28+HI28 -> 0.63 | GZ28: =HF28+HL28 -> 1.33 | HB28: =HC28+HE28+HF28+HG28 -> 1.02 | HC28: 0.33 | HF28: 0.69 | HH28: =HI28+HK28+HL28+HM28 -> 0.94 | HI28: 0.3 | HL28: 0.64
D29: 4 | E29: Итого | F29: 0.3968 | G29: =G15+G26+G28 -> 0.12 | I29: =I15+I26+I28 -> 0 | J29: =J15+J26+J28 -> 0.2768 | K29: =K15+K26+K28 -> 0 | L29: =M29+O29+P29+Q29 -> 0.194 | M29: =M15+M26+M28 -> 0.06 | O29: =O15+O26+O28 -> 0 | P29: =P15+P26+P28 -> 0.134 | Q29: =Q15+Q26+Q28 -> 0 | R29: =S29+U29+V29+W29 -> 0.2028 | S29: =S15+S26+S28 -> 0.06 | U29: =U15+U26+U28 -> 0 | V29: =V15+V26+V28 -> 0.1428 | W29: =W15+W26+W28 -> 0 | X29: 1.26 | Y29: =Y15+Y26+Y28 -> 0.4 | AA29: =AA15+AA26+AA28 -> 0 | AB29: =AB15+AB26+AB28 -> 0.86 | AC29: =AC15+AC26+AC28 -> 0 | AD29: =AE29+AG29+AH29+AI29 -> 0.35 | AE29: =AE15+AE26+AE28 -> 0.11 | AG29: =AG15+AG26+AG28 -> 0 | AH29: =AH15+AH26+AH28 -> 0.24 | AI29: =AI15+AI26+AI28 -> 0 | AJ29: =AK29+AM29+AN29+AO29 -> 0.91 | AK29: =AK15+AK26+AK28 -> 0.29 | AM29: =AM15+AM26+AM28 -> 0 | AN29: =AN15+AN26+AN28 -> 0.62 | AO29: =AO15+AO26+AO28 -> 0 | AP29: =AQ29+AS29+AT29+AU29 -> 0.61 | AQ29: =AQ15+AQ26+AQ28 -> 0.2 | AS29: =AS15+AS26+AS28 -> 0 | AT29: =AT15+AT26+AT28 -> 0.41 | AU29: =AU15+AU26+AU28 -> 0 | AV29: =AW29+AY29+AZ29+BA29 -> 0.3 | AW29: =AW15+AW26+AW28 -> 0.1 | AY29: =AY15+AY26+AY28 -> 0 | AZ29: =AZ15+AZ26+AZ28 -> 0.2 | BA29: =BA15+BA26+BA28 -> 0 | BB29: =BC29+BE29+BF29+BG29 -> 0.31 | BC29: =BC15+BC26+BC28 -> 0.1 | BE29: =BE15+BE26+BE28 -> 0 | BF29: =BF15+BF26+BF28 -> 0.21 | BG29: =BG15+BG26+BG28 -> 0 | BH29: =BI29+BK29+BL29+BM29 -> 1.8815 | BI29: =П1.30!CC38 -> 0.4139 | BK29: =П1.30!CE38 -> 0 | BL29: =П1.30!CF38 -> 1.4676 | BM29: =П1.30!CG38 -> 0 | BN29: =П1.30!CH38 -> 0.975 | BO29: =П1.30!CI38 -> 0.2145 | BQ29: =П1.30!CK38 -> 0 | BR29: =П1.30!CL38 -> 0.7605 | BS29: =П1.30!CM38 -> 0 | BT29: =П1.30!CN38 -> 0.9065 | BU29: =П1.30!CO38 -> 0.1994 | BW29: =П1.30!CQ38 -> 0 | BX29: =П1.30!CR38 -> 0.7071 | BY29: =П1.30!CS38 -> 0 | BZ29: ='Форма 3.1'!$J17 -> 0.2042 | CA29: =CA15+CA26+CA28 -> 0.07 | CC29: =CC15+CC26+CC28 -> 0 | CD29: =CD15+CD26+CD28 -> 0.13 | CE29: =CE15+CE26+CE28 -> 0 | CF29: ='Форма 3.1'!$K17 -> 0.1731 | CG29: =CG15+CG26+CG28 -> 0.06 | CI29: =CI15+CI26+CI28 -> 0 | CJ29: =CJ15+CJ26+CJ28 -> 0.11 | CK29: =CK15+CK26+CK28 -> 0 | CL29: ='Форма 3.1'!$L17 -> 0.1856 | CM29: =CM15+CM26+CM28 -> 0.06 | CO29: =CO15+CO26+CO28 -> 0 | CP29: =CP15+CP26+CP28 -> 0.13 | CQ29: =CQ15+CQ26+CQ28 -> 0 | CR29: ='Форма 3.1'!$M17 -> 0.1438 | CS29: =CS15+CS26+CS28 -> 0.05 | CU29: =CU15+CU26+CU28 -> 0 | CV29: =CV15+CV26+CV28 -> 0.09 | CW29: =CW15+CW26+CW28 -> 0 | CX29: ='Форма 3.1'!$N17 -> 0.1446 | CY29: =CY15+CY26+CY28 -> 0.05 | DA29: =DA15+DA26+DA28 -> 0 | DB29: =DB15+DB26+DB28 -> 0.09 | DC29: =DC15+DC26+DC28 -> 0 | DD29: ='Форма 3.1'!$O17 -> 0.1238 | DE29: =DE15+DE26+DE28 -> 0.04 | DG29: =DG15+DG26+DG28 -> 0 | DH29: =DH15+DH26+DH28 -> 0.08 | DI29: =DI15+DI26+DI28 -> 0 | DJ29: ='Форма 3.1'!$P17 -> 0.1207 | DK29: =DK15+DK26+DK28 -> 0.04 | DM29: =DM15+DM26+DM28 -> 0 | DN29: =DN15+DN26+DN28 -> 0.08 | DO29: =DO15+DO26+DO28 -> 0 | DP29: ='Форма 3.1'!$Q17 -> 0.1184 | DQ29: =DQ15+DQ26+DQ28 -> 0.04 | DS29: =DS15+DS26+DS28 -> 0 | DT29: =DT15+DT26+DT28 -> 0.08 | DU29: =DU15+DU26+DU28 -> 0 | DV29: ='Форма 3.1'!$R17 -> 0.1445 | DW29: =DW15+DW26+DW28 -> 0.05 | DY29: =DY15+DY26+DY28 -> 0 | DZ29: =DZ15+DZ26+DZ28 -> 0.09 | EA29: =EA15+EA26+EA28 -> 0 | EB29: ='Форма 3.1'!$S17 -> 0.1722 | EC29: =EC15+EC26+EC28 -> 0.06 | EE29: =EE15+EE26+EE28 -> 0 | EF29: =EF15+EF26+EF28 -> 0.11 | EG29: =EG15+EG26+EG28 -> 0 | EH29: ='Форма 3.1'!$T17 -> 0.1777 | EI29: =EI15+EI26+EI28 -> 0.06 | EK29: =EK15+EK26+EK28 -> 0 | EL29: =EL15+EL26+EL28 -> 0.12 | EM29: =EM15+EM26+EM28 -> 0 | EN29: ='Форма 3.1'!$U17 -> 0.173 | EO29: =EO15+EO26+EO28 -> 0.06 | EQ29: =EQ15+EQ26+EQ28 -> 0 | ER29: =ER15+ER26+ER28 -> 0.11 | ES29: =ES15+ES26+ES28 -> 0 | ET29: 1.9 | EU29: =EU15+EU26+EU28 -> 0.61 | EW29: =EW15+EW26+EW28 -> 0 | EX29: =EX15+EX26+EX28 -> 1.29 | EY29: =EY15+EY26+EY28 -> 0 | EZ29: =FA29+FC29+FD29+FE29 -> 0.99 | FA29: =FA15+FA26+FA28 -> 0.32 | FC29: =FC15+FC26+FC28 -> 0 | FD29: =FD15+FD26+FD28 -> 0.67 | FE29: =FE15+FE26+FE28 -> 0 | FF29: =FG29+FI29+FJ29+FK29 -> 0.91 | FG29: =FG15+FG26+FG28 -> 0.29 | FI29: =FI15+FI26+FI28 -> 0 | FJ29: =FJ15+FJ26+FJ28 -> 0.62 | FK29: =FK15+FK26+FK28 -> 0 | FL29: 1.93 | FM29: =FM15+FM26+FM28 -> 0.62 | FO29: =FO15+FO26+FO28 -> 0 | FP29: =FP15+FP26+FP28 -> 1.31 | FQ29: =FQ15+FQ26+FQ28 -> 0 | FR29: =FS29+FU29+FV29+FW29 -> 1 | FS29: =FS15+FS26+FS28 -> 0.32 | FU29: =FU15+FU26+FU28 -> 0 | FV29: =FV15+FV26+FV28 -> 0.68 | FW29: =FW15+FW26+FW28 -> 0 | FX29: =FY29+GA29+GB29+GC29 -> 0.93 | FY29: =FY15+FY26+FY28 -> 0.3 | GA29: =GA15+GA26+GA28 -> 0 | GB29: =GB15+GB26+GB28 -> 0.63 | GC29: =GC15+GC26+GC28 -> 0 | GD29: =GE29+GG29+GH29+GI29 -> 1.94 | GE29: =GE15+GE26+GE28 -> 0.62 | GG29: =GG15+GG26+GG28 -> 0 | GH29: =GH15+GH26+GH28 -> 1.32 | GI29: =GI15+GI26+GI28 -> 0 | GJ29: =GK29+GM29+GN29+GO29 -> 1 | GK29: =GK15+GK26+GK28 -> 0.32 | GM29: =GM15+GM26+GM28 -> 0 | GN29: =GN15+GN26+GN28 -> 0.68 | GO29: =GO15+GO26+GO28 -> 0 | GP29: =GQ29+GS29+GT29+GU29 -> 0.94 | GQ29: =GQ15+GQ26+GQ28 -> 0.3 | GS29: =GS15+GS26+GS28 -> 0 | GT29: =GT15+GT26+GT28 -> 0.64 | GU29: =GU15+GU26+GU28 -> 0 | GV29: =GW29+GY29+GZ29+HA29 -> 1.96 | GW29: =GW15+GW26+GW28 -> 0.63 | GY29: =GY15+GY26+GY28 -> 0 | GZ29: =GZ15+GZ26+GZ28 -> 1.33 | HA29: =HA15+HA26+HA28 -> 0 | HB29: =HC29+HE29+HF29+HG29 -> 1.02 | HC29: =HC15+HC26+HC28 -> 0.33 | HE29: =HE15+HE26+HE28 -> 0 | HF29: =HF15+HF26+HF28 -> 0.69 | HG29: =HG15+HG26+HG28 -> 0 | HH29: =HI29+HK29+HL29+HM29 -> 0.94 | HI29: =HI15+HI26+HI28 -> 0.3 | HK29: =HK15+HK26+HK28 -> 0 | HL29: =HL15+HL26+HL28 -> 0.64 | HM29: =HM15+HM26+HM28 -> 0

Sheet П1.4
D7: Баланс электрической энергии по сетям ВН, СН1, СН2 и НН по ЭСО (по региональным электрическим сетям)
F8: - | X8: - | AP8: - | BH8: - | ET8: - | FL8: - | GD8: + | GV8: -
E10: млн.кВтч. | BH10: - | BN10: I | BT10: II | BZ10: 1 | CF10: 2 | CL10: 3 | CR10: 4 | CX10: 5 | DD10: 6 | DJ10: 7 | DP10: 8 | DV10: 9 | EB10: 10 | EH10: 11 | EN10: 12
D11: № п/п | E11: Показатели | F11: ="План " & IF(god="","Не определено",god-2) & " год" -> План 2013 год | X11: ="Факт " & IF(god="","Не определено",god-2) & " год" -> Факт 2013 год | AP11: ="План " & IF(god="","Не определено",god-1) & " год" -> План 2014 год | BH11: ="План " & IF(god="","Не определено",god) & " год" -> План 2015 год | BZ11: ="План " & IF(god="","Не определено",god) & " год" -> План 2015 год | ET11: ="План " & IF(god="","Не определено",god+1) & " год" -> План 2016 год | FL11: ="План " & IF(god="","Не определено",god+2) & " год" -> План 2017 год | GD11: ="План " & IF(god="","Не определено",god+3) & " год" -> План 2018 год | GV11: ="План " & IF(god="","Не определено",god+4) & " год" -> План 2019 год
F12: За год | L12: I полугодие | R12: II полугодие | X12: За год | AD12: I полугодие | AJ12: II полугодие | AP12: За год | AV12: I полугодие | BB12: II полугодие | BH12: За год | BN12: I полугодие | BT12: II полугодие | BZ12: Январь | CF12: Февраль | CL12: Март | CR12: Апрель | CX12: Май | DD12: Июнь | DJ12: Июль | DP12: Август | DV12: Сентябрь | EB12: Октябрь | EH12: Ноябрь | EN12: Декабрь | ET12: За год | EZ12: I полугодие | FF12: II полугодие | FL12: За год | FR12: I полугодие | FX12: II полугодие | GD12: За год | GJ12: I полугодие | GP12: II полугодие | GV12: За год | HB12: I полугодие | HH12: II полугодие
F13: Всего | G13: ВН | I13: СН 1 | J13: СН 2 | K13: НН | L13: Всего | M13: ВН | O13: СН 1 | P13: СН 2 | Q13: НН | R13: Всего | S13: ВН | U13: СН 1 | V13: СН 2 | W13: НН | X13: Всего | Y13: ВН | AA13: СН 1 | AB13: СН 2 | AC13: НН | AD13: Всего | AE13: ВН | AG13: СН 1 | AH13: СН 2 | AI13: НН | AJ13: Всего | AK13: ВН | AM13: СН 1 | AN13: СН 2 | AO13: НН | AP13: Всего | AQ13: ВН | AS13: СН 1 | AT13: СН 2 | AU13: НН | AV13: Всего | AW13: ВН | AY13: СН 1 | AZ13: СН 2 | BA13: НН | BB13: Всего | BC13: ВН | BE13: СН 1 | BF13: СН 2 | BG13: НН | BH13: Всего | BI13: ВН | BK13: СН 1 | BL13: СН 2 | BM13: НН | BN13: Всего | BO13: ВН | BQ13: СН 1 | BR13: СН 2 | BS13: НН | BT13: Всего | BU13: ВН | BW13: СН 1 | BX13: СН 2 | BY13: НН | BZ13: Всего | CA13: ВН | CC13: СН 1 | CD13: СН 2 | CE13: НН | CF13: Всего | CG13: ВН | CI13: СН 1 | CJ13: СН 2 | CK13: НН | CL13: Всего | CM13: ВН | CO13: СН 1 | CP13: СН 2 | CQ13: НН | CR13: Всего | CS13: ВН | CU13: СН 1 | CV13: СН 2 | CW13: НН | CX13: Всего | CY13: ВН | DA13: СН 1 | DB13: СН 2 | DC13: НН | DD13: Всего | DE13: ВН | DG13: СН 1 | DH13: СН 2 | DI13: НН | DJ13: Всего | DK13: ВН | DM13: СН 1 | DN13: СН 2 | DO13: НН | DP13: Всего | DQ13: ВН | DS13: СН 1 | DT13: СН 2 | DU13: НН | DV13: Всего | DW13: ВН | DY13: СН 1 | DZ13: СН 2 | EA13: НН | EB13: Всего | EC13: ВН | EE13: СН 1 | EF13: СН 2 | EG13: НН | EH13: Всего | EI13: ВН | EK13: СН 1 | EL13: СН 2 | EM13: НН | EN13: Всего | EO13: ВН | EQ13: СН 1 | ER13: СН 2 | ES13: НН | ET13: Всего | EU13: ВН | EW13: СН 1 | EX13: СН 2 | EY13: НН | EZ13: Всего | FA13: ВН | FC13: СН 1 | FD13: СН 2 | FE13: НН | FF13: Всего | FG13: ВН | FI13: СН 1 | FJ13: СН 2 | FK13: НН | FL13: Всего | FM13: ВН | FO13: СН 1 | FP13: СН 2 | FQ13: НН | FR13: Всего | FS13: ВН | FU13: СН 1 | FV13: СН 2 | FW13: НН | FX13: Всего | FY13: ВН | GA13: СН 1 | GB13: СН 2 | GC13: НН | GD13: Всего | GE13: ВН | GG13: СН 1 | GH13: СН 2 | GI13: НН | GJ13: Всего | GK13: ВН | GM13: СН 1 | GN13: СН 2 | GO13: НН | GP13: Всего | GQ13: ВН | GS13: СН 1 | GT13: СН 2 | GU13: НН | GV13: Всего | GW13: ВН | GY13: СН 1 | GZ13: СН 2 | HA13: НН | HB13: Всего | HC13: ВН | HE13: СН 1 | HF13: СН 2 | HG13: НН | HH13: Всего | HI13: ВН | HK13: СН 1 | HL13: СН 2 | HM13: НН
D15: 1 | E15: Поступление электроэнергии в сеть, ВСЕГО | F15: =F21+F22+F23 -> 39.67 | G15: =G21+G22+G23 -> 15.93 | I15: =I16+I21+I22+I23 -> 0 | J15: =J16+J21+J22+J23 -> 39.55 | K15: =K16+K21+K22+K23 -> 10.3236 | L15: =L21+L22+L23 -> 19.39 | M15: =M21+M22+M23 -> 7.54 | O15: =O16+O21+O22+O23 -> 0 | P15: =P16+P21+P22+P23 -> 19.33 | Q15: =Q16+Q21+Q22+Q23 -> 5.5055 | R15: =R21+R22+R23 -> 20.28 | S15: =S21+S22+S23 -> 8.39 | U15: =U16+U21+U22+U23 -> 0 | V15: =V16+V21+V22+V23 -> 20.22 | W15: =W16+W21+W22+W23 -> 4.8181 | X15: =X21+X22+X23 -> 46.413522 | Y15: =Y21+Y22+Y23 -> 17.752231 | AA15: =AA16+AA21+AA22+AA23 -> 0 | AB15: =AB16+AB21+AB22+AB23 -> 46.004692 | AC15: =AC16+AC21+AC22+AC23 -> 12.434665 | AD15: =AD21+AD22+AD23 -> 23.746004 | AE15: =AE21+AE22+AE23 -> 8.709251 | AG15: =AG16+AG21+AG22+AG23 -> 0 | AH15: =AH16+AH21+AH22+AH23 -> 23.631484 | AI15: =AI16+AI21+AI22+AI23 -> 6.809167 | AJ15: =AJ21+AJ22+AJ23 -> 22.667518 | AK15: =AK21+AK22+AK23 -> 9.04298 | AM15: =AM16+AM21+AM22+AM23 -> 0 | AN15: =AN16+AN21+AN22+AN23 -> 22.373208 | AO15: =AO16+AO21+AO22+AO23 -> 5.625498 | AP15: =AP21+AP22+AP23 -> 44.565 | AQ15: =AW15+BC15 -> 17.608 | AS15: =AY15+BE15 -> 0 | AT15: 44.365 | AU15: 11.82303 | AV15: =AV21+AV22+AV23 -> 22.531 | AW15: =AW21+AW22+AW23 -> 8.71 | AY15: =AY16+AY21+AY22+AY23 -> 0 | AZ15: =AZ16+AZ21+AZ22+AZ23 -> 22.431 | BA15: =BA16+BA21+BA22+BA23 -> 6.58518 | BB15: =BB21+BB22+BB23 -> 22.034 | BC15: =BC21+BC22+BC23 -> 8.898 | BE15: =BE16+BE21+BE22+BE23 -> 0 | BF15: =BF16+BF21+BF22+BF23 -> 21.934 | BG15: =BG16+BG21+BG22+BG23 -> 5.23785 | BH15: =BH21+BH22+BH23 -> 0 | BI15: =BO15+BU15 -> 0 | BK15: =BQ15+BW15 -> 0 | BL15: -0.64 | BM15: -34.577 | BN15: =BN21+BN22+BN23 -> 0 | BO15: =BO21+BO22+BO23 -> 0 | BQ15: =BQ16+BQ21+BQ22+BQ23 -> 0 | BR15: =BR16+BR21+BR22+BR23 -> -0.33 | BS15: =BS16+BS21+BS22+BS23 -> -17.548 | BT15: =BT21+BT22+BT23 -> 0 | BU15: =BU21+BU22+BU23 -> 0 | BW15: =BW16+BW21+BW22+BW23 -> 0 | BX15: =BX16+BX21+BX22+BX23 -> -0.31 | BY15: =BY16+BY21+BY22+BY23 -> -17.029 | BZ15: =BZ21+BZ22+BZ23 -> 0 | CA15: =CA21+CA22+CA23 -> 0 | CC15: =CC16+CC21+CC22+CC23 -> 0 | CD15: =CD16+CD21+CD22+CD23 -> -0.07 | CE15: =CE16+CE21+CE22+CE23 -> -3.602 | CF15: =CF21+CF22+CF23 -> 0 | CG15: =CG21+CG22+CG23 -> 0 | CI15: =CI16+CI21+CI22+CI23 -> 0 | CJ15: =CJ16+CJ21+CJ22+CJ23 -> -0.06 | CK15: =CK16+CK21+CK22+CK23 -> -3.058 | CL15: =CL21+CL22+CL23 -> 0 | CM15: =CM21+CM22+CM23 -> 0 | CO15: =CO16+CO21+CO22+CO23 -> 0 | CP15: =CP16+CP21+CP22+CP23 -> -0.06 | CQ15: =CQ16+CQ21+CQ22+CQ23 -> -3.213 | CR15: =CR21+CR22+CR23 -> 0 | CS15: =CS21+CS22+CS23 -> 0 | CU15: =CU16+CU21+CU22+CU23 -> 0 | CV15: =CV16+CV21+CV22+CV23 -> -0.05 | CW15: =CW16+CW21+CW22+CW23 -> -2.644 | CX15: =CX21+CX22+CX23 -> 0 | CY15: =CY21+CY22+CY23 -> 0 | DA15: =DA16+DA21+DA22+DA23 -> 0 | DB15: =DB16+DB21+DB22+DB23 -> -0.05 | DC15: =DC16+DC21+DC22+DC23 -> -2.753 | DD15: =DD21+DD22+DD23 -> 0 | DE15: =DE21+DE22+DE23 -> 0 | DG15: =DG16+DG21+DG22+DG23 -> 0 | DH15: =DH16+DH21+DH22+DH23 -> -0.04 | DI15: =DI16+DI21+DI22+DI23 -> -2.278 | DJ15: =DJ21+DJ22+DJ23 -> 0 | DK15: =DK21+DK22+DK23 -> 0 | DM15: =DM16+DM21+DM22+DM23 -> 0 | DN15: =DN16+DN21+DN22+DN23 -> -0.04 | DO15: =DO16+DO21+DO22+DO23 -> -2.23 | DP15: =DP21+DP22+DP23 -> 0 | DQ15: =DQ21+DQ22+DQ23 -> 0 | DS15: =DS16+DS21+DS22+DS23 -> 0 | DT15: =DT16+DT21+DT22+DT23 -> -0.04 | DU15: =DU16+DU21+DU22+DU23 -> -2.356 | DV15: =DV21+DV22+DV23 -> 0 | DW15: =DW21+DW22+DW23 -> 0 | DY15: =DY16+DY21+DY22+DY23 -> 0 | DZ15: =DZ16+DZ21+DZ22+DZ23 -> -0.05 | EA15: =EA16+EA21+EA22+EA23 -> -2.632 | EB15: =EB21+EB22+EB23 -> 0 | EC15: =EC21+EC22+EC23 -> 0 | EE15: =EE16+EE21+EE22+EE23 -> 0 | EF15: =EF16+EF21+EF22+EF23 -> -0.06 | EG15: =EG16+EG21+EG22+EG23 -> -3.355 | EH15: =EH21+EH22+EH23 -> 0 | EI15: =EI21+EI22+EI23 -> 0 | EK15: =EK16+EK21+EK22+EK23 -> 0 | EL15: =EL16+EL21+EL22+EL23 -> -0.06 | EM15: =EM16+EM21+EM22+EM23 -> -3.384 | EN15: =EN21+EN22+EN23 -> 0 | EO15: =EO21+EO22+EO23 -> 0 | EQ15: =EQ16+EQ21+EQ22+EQ23 -> 0 | ER15: =ER16+ER21+ER22+ER23 -> -0.06 | ES15: =ES16+ES21+ES22+ES23 -> -3.072 | ET15: =ET21+ET22+ET23 -> 0 | EU15: =EU21+EU22+EU23 -> 0 | EW15: =EW16+EW21+EW22+EW23 -> 0 | EX15: =EX16+EX21+EX22+EX23 -> -0.61 | EY15: =EY16+EY21+EY22+EY23 -> -34.944 | EZ15: =EZ21+EZ22+EZ23 -> 0 | FA15: =FA21+FA22+FA23 -> 0 | FC15: =FC16+FC21+FC22+FC23 -> 0 | FD15: =FD16+FD21+FD22+FD23 -> -0.32 | FE15: =FE16+FE21+FE22+FE23 -> -17.744 | FF15: =FF21+FF22+FF23 -> 0 | FG15: =FG21+FG22+FG23 -> 0 | FI15: =FI16+FI21+FI22+FI23 -> 0 | FJ15: =FJ16+FJ21+FJ22+FJ23 -> -0.29 | FK15: =FK16+FK21+FK22+FK23 -> -17.2 | FL15: =FL21+FL22+FL23 -> 0 | FM15: =FM21+FM22+FM23 -> 0 | FO15: =FO16+FO21+FO22+FO23 -> 0 | FP15: =FP16+FP21+FP22+FP23 -> -0.62 | FQ15: =FQ16+FQ21+FQ22+FQ23 -> -35.305 | FR15: =FR21+FR22+FR23 -> 0 | FS15: =FS21+FS22+FS23 -> 0 | FU15: =FU16+FU21+FU22+FU23 -> 0 | FV15: =FV16+FV21+FV22+FV23 -> -0.32 | FW15: =FW16+FW21+FW22+FW23 -> -17.922 | FX15: =FX21+FX22+FX23 -> 0 | FY15: =FY21+FY22+FY23 -> 0 | GA15: =GA16+GA21+GA22+GA23 -> 0 | GB15: =GB16+GB21+GB22+GB23 -> -0.3 | GC15: =GC16+GC21+GC22+GC23 -> -17.383 | GD15: =GD21+GD22+GD23 -> 0 | GE15: =GE21+GE22+GE23 -> 0 | GG15: =GG16+GG21+GG22+GG23 -> 0 | GH15: =GH16+GH21+GH22+GH23 -> -0.62 | GI15: =GI16+GI21+GI22+GI23 -> -35.649 | GJ15: =GJ21+GJ22+GJ23 -> 0 | GK15: =GK21+GK22+GK23 -> 0 | GM15: =GM16+GM21+GM22+GM23 -> 0 | GN15: =GN16+GN21+GN22+GN23 -> -0.32 | GO15: =GO16+GO21+GO22+GO23 -> -18.092 | GP15: =GP21+GP22+GP23 -> 0 | GQ15: =GQ21+GQ22+GQ23 -> 0 | GS15: =GS16+GS21+GS22+GS23 -> 0 | GT15: =GT16+GT21+GT22+GT23 -> -0.3 | GU15: =GU16+GU21+GU22+GU23 -> -17.557 | GV15: =GV21+GV22+GV23 -> 0 | GW15: =GW21+GW22+GW23 -> 0 | GY15: =GY16+GY21+GY22+GY23 -> 0 | GZ15: =GZ16+GZ21+GZ22+GZ23 -> -0.63 | HA15: =HA16+HA21+HA22+HA23 -> -36.006 | HB15: =HB21+HB22+HB23 -> 0 | HC15: =HC21+HC22+HC23 -> 0 | HE15: =HE16+HE21+HE22+HE23 -> 0 | HF15: =HF16+HF21+HF22+HF23 -> -0.33 | HG15: =HG16+HG21+HG22+HG23 -> -18.283 | HH15: =HH21+HH22+HH23 -> 0 | HI15: =HI21+HI22+HI23 -> 0 | HK15: =HK16+HK21+HK22+HK23 -> 0 | HL15: =HL16+HL21+HL22+HL23 -> -0.3 | HM15: =HM16+HM21+HM22+HM23 -> -17.723
D16: 1.1 | E16: из смежной сети, всего, в том числе из сети: | F16: =G16+I16+J16+K16 -> 26.1336 | I16: =I17 -> 0 | J16: =J17+J18 -> 15.81 | K16: =K19+K18 -> 10.3236 | L16: =M16+O16+P16+Q16 -> 12.9855 | O16: =O17 -> 0 | P16: =P17+P18 -> 7.48 | Q16: =Q19+Q18 -> 5.5055 | R16: =S16+U16+V16+W16 -> 13.1481 | U16: =U17 -> 0 | V16: =V17+V18 -> 8.33 | W16: =W19+W18 -> 4.8181 | X16: =Y16+AA16+AB16+AC16 -> 29.778066 | AA16: =AA17 -> 0 | AB16: =AB17+AB18 -> 17.343401 | AC16: =AC19+AC18 -> 12.434665 | AD16: =AE16+AG16+AH16+AI16 -> 15.403898 | AG16: =AG17 -> 0 | AH16: =AH17+AH18 -> 8.594731 | AI16: =AI19+AI18 -> 6.809167 | AJ16: =AK16+AM16+AN16+AO16 -> 14.374168 | AM16: =AM17 -> 0 | AN16: =AN17+AN18 -> 8.74867 | AO16: =AO19+AO18 -> 5.625498 | AP16: =AQ16+AS16+AT16+AU16 -> 29.23103 | AS16: 0 | AT16: 17.408 | AU16: 11.82303 | AV16: =AW16+AY16+AZ16+BA16 -> 15.19518 | AY16: =AY17 -> 0 | AZ16: =AZ17+AZ18 -> 8.61 | BA16: =BA19+BA18 -> 6.58518 | BB16: =BC16+BE16+BF16+BG16 -> 14.03585 | BE16: =BE17 -> 0 | BF16: =BF17+BF18 -> 8.798 | BG16: =BG19+BG18 -> 5.23785 | BH16: =BI16+BK16+BL16+BM16 -> -35.217 | BK16: 0 | BL16: -0.64 | BM16: -34.577 | BN16: =BQ16+BR16+BS16 -> -17.878 | BQ16: =CC16+CI16+CO16+CU16+DA16+DG16 -> 0 | BR16: =CD16+CJ16+CP16+CV16+DB16+DH16 -> -0.33 | BS16: -17.548 | BT16: =BW16+BX16+BY16 -> -17.339 | BW16: =DM16+DS16+DY16+EE16+EK16+EQ16 -> 0 | BX16: -0.31 | BY16: -17.029 | BZ16: =SUM(CC16:CE16) -> -3.672 | CC16: =CC17 -> 0 | CD16: =CD17+CD18 -> -0.07 | CE16: =CE19+CE18 -> -3.602 | CF16: =SUM(CI16:CK16) -> -3.118 | CI16: =CI17 -> 0 | CJ16: =CJ17+CJ18 -> -0.06 | CK16: =CK19+CK18 -> -3.058 | CL16: =SUM(CO16:CQ16) -> -3.273 | CO16: =CO17 -> 0 | CP16: =CP17+CP18 -> -0.06 | CQ16: =CQ19+CQ18 -> -3.213 | CR16: =SUM(CU16:CW16) -> -2.694 | CU16: =CU17 -> 0 | CV16: =CV17+CV18 -> -0.05 | CW16: =CW19+CW18 -> -2.644 | CX16: =SUM(DA16:DC16) -> -2.803 | DA16: =DA17 -> 0 | DB16: =DB17+DB18 -> -0.05 | DC16: =DC19+DC18 -> -2.753 | DD16: =SUM(DG16:DI16) -> -2.318 | DG16: =DG17 -> 0 | DH16: =DH17+DH18 -> -0.04 | DI16: =DI19+DI18 -> -2.278 | DJ16: =SUM(DM16:DO16) -> -2.27 | DM16: =DM17 -> 0 | DN16: =DN17+DN18 -> -0.04 | DO16: =DO19+DO18 -> -2.23 | DP16: =SUM(DS16:DU16) -> -2.396 | DS16: =DS17 -> 0 | DT16: =DT17+DT18 -> -0.04 | DU16: =DU19+DU18 -> -2.356 | DV16: =SUM(DY16:EA16) -> -2.682 | DY16: =DY17 -> 0 | DZ16: =DZ17+DZ18 -> -0.05 | EA16: =EA19+EA18 -> -2.632 | EB16: =SUM(EE16:EG16) -> -3.415 | EE16: =EE17 -> 0 | EF16: =EF17+EF18 -> -0.06 | EG16: =EG19+EG18 -> -3.355 | EH16: =SUM(EK16:EM16) -> -3.444 | EK16: =EK17 -> 0 | EL16: =EL17+EL18 -> -0.06 | EM16: =EM19+EM18 -> -3.384 | EN16: =SUM(EQ16:ES16) -> -3.132 | EQ16: =EQ17 -> 0 | ER16: =ER17+ER18 -> -0.06 | ES16: =ES19+ES18 -> -3.072 | ET16: =EU16+EW16+EX16+EY16 -> -35.554 | EW16: =EW17 -> 0 | EX16: =EX17+EX18 -> -0.61 | EY16: =EY19+EY18 -> -34.944 | EZ16: =FA16+FC16+FD16+FE16 -> -18.064 | FC16: =FC17 -> 0 | FD16: =FD17+FD18 -> -0.32 | FE16: =FE19+FE18 -> -17.744 | FF16: =FG16+FI16+FJ16+FK16 -> -17.49 | FI16: =FI17 -> 0 | FJ16: =FJ17+FJ18 -> -0.29 | FK16: =FK19+FK18 -> -17.2 | FL16: =FM16+FO16+FP16+FQ16 -> -35.925 | FO16: =FO17 -> 0 | FP16: =FP17+FP18 -> -0.62 | FQ16: =FQ19+FQ18 -> -35.305 | FR16: =FS16+FU16+FV16+FW16 -> -18.242 | FU16: =FU17 -> 0 | FV16: =FV17+FV18 -> -0.32 | FW16: =FW19+FW18 -> -17.922 | FX16: =FY16+GA16+GB16+GC16 -> -17.683 | GA16: =GA17 -> 0 | GB16: =GB17+GB18 -> -0.3 | GC16: =GC19+GC18 -> -17.383 | GD16: =GE16+GG16+GH16+GI16 -> -36.269 | GG16: =GG17 -> 0 | GH16: =GH17+GH18 -> -0.62 | GI16: =GI19+GI18 -> -35.649 | GJ16: =GK16+GM16+GN16+GO16 -> -18.412 | GM16: =GM17 -> 0 | GN16: =GN17+GN18 -> -0.32 | GO16: =GO19+GO18 -> -18.092 | GP16: =GQ16+GS16+GT16+GU16 -> -17.857 | GS16: =GS17 -> 0 | GT16: =GT17+GT18 -> -0.3 | GU16: =GU19+GU18 -> -17.557 | GV16: =GW16+GY16+GZ16+HA16 -> -36.636 | GY16: =GY17 -> 0 | GZ16: =GZ17+GZ18 -> -0.63 | HA16: =HA19+HA18 -> -36.006 | HB16: =HC16+HE16+HF16+HG16 -> -18.613 | HE16: =HE17 -> 0 | HF16: =HF17+HF18 -> -0.33 | HG16: =HG19+HG18 -> -18.283 | HH16: =HI16+HK16+HL16+HM16 -> -18.023 | HK16: =HK17 -> 0 | HL16: =HL17+HL18 -> -0.3 | HM16: =HM19+HM18 -> -17.723
D17: 1.1.1 | E17: ВН | F17: 15.81 | J17: =G15-G25 -> 15.81 | L17: 7.48 | P17: =M15-M25 -> 7.48 | R17: 8.33 | V17: =S15-S25 -> 8.33 | X17: =Y17+AA17+AB17+AC17 -> 17.343401 | AA17: =П1.30!K35 -> 0 | AB17: =П1.30!L35 -> 17.343401 | AD17: 8.594731 | AG17: =П1.30!Q35 -> 0 | AH17: =П1.30!R35 -> 8.594731 | AJ17: 8.74867 | AM17: =П1.30!W35 -> 0 | AN17: =П1.30!X35 -> 8.74867 | AP17: 17.408 | AS17: =AY17+BE17 -> 0 | AT17: =AZ17+BF17 -> 17.408 | AV17: 8.61 | AY17: =П1.30!BA35 -> 0 | AZ17: =П1.30!BB35 -> 8.61 | BB17: 8.798 | BE17: =П1.30!BG35 -> 0 | BF17: =П1.30!BH35 -> 8.798 | BH17: =BI17+BK17+BL17+BM17 -> -0.64 | BK17: =BQ17+BW17 -> 0 | BL17: =BR17+BX17 -> -0.64 | BN17: =BQ17+BR17 -> -0.33 | BQ17: 0 | BR17: -0.33 | BT17: =BW17+BX17 -> -0.31 | BW17: 0 | BX17: -0.31 | BZ17: =CC17+CD17 -> -0.07 | CD17: =CA15-CA25 -> -0.07 | CF17: =CI17+CJ17 -> -0.06 | CJ17: =CG15-CG25 -> -0.06 | CL17: =CO17+CP17 -> -0.06 | CP17: =CM15-CM25 -> -0.06 | CR17: =CU17+CV17 -> -0.05 | CV17: =CS15-CS25 -> -0.05 | CX17: =DA17+DB17 -> -0.05 | DB17: =CY15-CY25 -> -0.05 | DD17: =DG17+DH17 -> -0.04 | DH17: =DE15-DE25 -> -0.04 | DJ17: =DM17+DN17 -> -0.04 | DN17: =DK15-DK25 -> -0.04 | DP17: =DS17+DT17 -> -0.04 | DT17: =DQ15-DQ25 -> -0.04 | DV17: =DY17+DZ17 -> -0.05 | DZ17: =DW15-DW25 -> -0.05 | EB17: =EE17+EF17 -> -0.06 | EF17: =EC15-EC25 -> -0.06 | EH17: =EK17+EL17 -> -0.06 | EL17: =EI15-EI25 -> -0.06 | EN17: =EQ17+ER17 -> -0.06 | ER17: =EO15-EO25 -> -0.06 | ET17: =EU17+EW17+EX17+EY17 -> -0.61 | EX17: =EU15-EU25 -> -0.61 | EZ17: -0.32 | FD17: =FA15-FA25 -> -0.32 | FF17: -0.29 | FJ17: =FG15-FG25 -> -0.29 | FL17: -0.62 | FP17: =FM15-FM25 -> -0.62 | FR17: -0.32 | FV17: =FS15-FS25 -> -0.32 | FX17: -0.3 | GB17: =FY15-FY25 -> -0.3 | GD17: -0.62 | GH17: =GE15-GE25 -> -0.62 | GJ17: -0.32 | GN17: =GK15-GK25 -> -0.32 | GP17: -0.3 | GT17: =GQ15-GQ25 -> -0.3 | GV17: -0.63 | GZ17: =GW15-GW25 -> -0.63 | HB17: -0.33 | HF17: =HC15-HC25 -> -0.33 | HH17: -0.3 | HL17: =HI15-HI25 -> -0.3
D18: 1.1.2 | E18: СН1 | F18: 0 | L18: 0 | R18: 0 | X18: 0 | AB18: =П1.30!L36 -> 0 | AC18: =П1.30!M36 -> 0 | AD18: 0 | AH18: =П1.30!R36 -> 0 | AI18: =П1.30!S36 -> 0 | AJ18: 0 | AN18: =П1.30!X36 -> 0 | AO18: =П1.30!Y36 -> 0 | AP18: 0 | AT18: =AZ18+BF18 -> 0 | AU18: =BA18+BG18 -> 0 | AV18: 0 | AZ18: =П1.30!BB36 -> 0 | BA18: =П1.30!BC36 -> 0 | BB18: 0 | BF18: =П1.30!BH36 -> 0 | BG18: =П1.30!BI36 -> 0 | BH18: 0 | BL18: =BR18+BX18 -> 0 | BM18: =BS18+BY18 -> 0 | BN18: =BR18+BS18 -> 0 | BR18: 0 | BS18: 0 | BT18: =BX18+BY18 -> 0 | BX18: 0 | BY18: 0 | BZ18: =CD18+CE18 -> 0 | CF18: =CJ18+CK18 -> 0 | CL18: =CP18+CQ18 -> 0 | CR18: =CV18+CW18 -> 0 | CX18: =DB18+DC18 -> 0 | DD18: =DH18+DI18 -> 0 | DJ18: =DN18+DO18 -> 0 | DP18: =DT18+DU18 -> 0 | DV18: =DZ18+EA18 -> 0 | EB18: =EF18+EG18 -> 0 | EH18: =EL18+EM18 -> 0 | EN18: =ER18+ES18 -> 0 | ET18: 0 | EZ18: 0 | FF18: 0 | FL18: 0 | FR18: 0 | FX18: 0 | GD18: 0 | GJ18: 0 | GP18: 0 | GV18: 0 | HB18: 0 | HH18: 0
D19: 1.1.3 | E19: СН2 | F19: 10.3236 | K19: =J15-J25-J30 -> 10.3236 | L19: 5.5055 | Q19: =P15-P25-P30 -> 5.5055 | R19: 4.8181 | W19: =V15-V25-V30 -> 4.8181 | X19: 12.434665 | AC19: =П1.30!M37 -> 12.434665 | AD19: 6.809167 | AI19: =П1.30!S37 -> 6.809167 | AJ19: 5.625498 | AO19: =П1.30!Y37 -> 5.625498 | AP19: 11.82303 | AU19: =BA19+BG19 -> 11.82303 | AV19: 6.58518 | BA19: =П1.30!BC37 -> 6.58518 | BB19: 5.23785 | BG19: =П1.30!BI37 -> 5.23785 | BH19: -34.577 | BM19: =BS19+BY19 -> -34.577 | BN19: =BS19 -> -17.548 | BS19: -17.548 | BT19: =BY19 -> -17.029 | BY19: -17.029 | BZ19: =CE19 -> -3.602 | CE19: =CD15-CD25-CD30 -> -3.602 | CF19: =CK19 -> -3.058 | CK19: =CJ15-CJ25-CJ30 -> -3.058 | CL19: =CQ19 -> -3.213 | CQ19: =CP15-CP25-CP30 -> -3.213 | CR19: =CW19 -> -2.644 | CW19: =CV15-CV25-CV30 -> -2.644 | CX19: =DC19 -> -2.753 | DC19: =DB15-DB25-DB30 -> -2.753 | DD19: =DI19 -> -2.278 | DI19: =DH15-DH25-DH30 -> -2.278 | DJ19: =DO19 -> -2.23 | DO19: =DN15-DN25-DN30 -> -2.23 | DP19: =DU19 -> -2.356 | DU19: =DT15-DT25-DT30 -> -2.356 | DV19: =EA19 -> -2.632 | EA19: =DZ15-DZ25-DZ30 -> -2.632 | EB19: =EG19 -> -3.355 | EG19: =EF15-EF25-EF30 -> -3.355 | EH19: =EM19 -> -3.384 | EM19: =EL15-EL25-EL30 -> -3.384 | EN19: =ES19 -> -3.072 | ES19: =ER15-ER25-ER30 -> -3.072 | ET19: -34.944 | EY19: =EX15-EX25-EX30 -> -34.944 | EZ19: -17.744 | FE19: =FD15-FD25-FD30 -> -17.744 | FF19: -17.2 | FK19: =FJ15-FJ25-FJ30 -> -17.2 | FL19: -35.305 | FQ19: =FP15-FP25-FP30 -> -35.305 | FR19: -17.922 | FW19: =FV15-FV25-FV30 -> -17.922 | FX19: -17.383 | GC19: =GB15-GB25-GB30 -> -17.383 | GD19: -35.649 | GI19: =GH15-GH25-GH30 -> -35.649 | GJ19: -18.092 | GO19: =GN15-GN25-GN30 -> -18.092 | GP19: -17.557 | GU19: =GT15-GT25-GT30 -> -17.557 | GV19: -36.006 | HA19: =GZ15-GZ25-GZ30 -> -36.006 | HB19: -18.283 | HG19: =HF15-HF25-HF30 -> -18.283 | HH19: -17.723 | HM19: =HL15-HL25-HL30 -> -17.723
E20: из 1.1 поступление из сети РСК | F20: 0 | L20: 0 | R20: 0 | X20: 0 | Y20: =П1.30!I23 -> 0 | AA20: =П1.30!K23 -> 0 | AB20: =П1.30!L23 -> 0 | AC20: =П1.30!M23 -> 0 | AD20: 0 | AE20: =П1.30!O23 -> 0 | AG20: =П1.30!Q23 -> 0 | AH20: =П1.30!R23 -> 0 | AI20: =П1.30!S23 -> 0 | AJ20: 0 | AK20: =П1.30!U23 -> 0 | AM20: =П1.30!W23 -> 0 | AN20: =П1.30!X23 -> 0 | AO20: =П1.30!Y23 -> 0 | AP20: 0 | AQ20: =AW20+BC20 -> 0 | AS20: =AY20+BE20 -> 0 | AT20: 0 | AU20: =BA20+BG20 -> 0 | AV20: 0 | AW20: =П1.30!AY23 -> 0 | AY20: =П1.30!BA23 -> 0 | AZ20: =П1.30!BB23 -> 0 | BA20: =П1.30!BC23 -> 0 | BB20: 0 | BC20: =П1.30!BE23 -> 0 | BE20: =П1.30!BG23 -> 0 | BF20: =П1.30!BH23 -> 0 | BG20: =П1.30!BI23 -> 0 | BH20: 0 | BI20: =BO20+BU20 -> 0 | BK20: =BQ20+BW20 -> 0 | BL20: =BR20+BX20 -> 0 | BM20: 0 | BN20: =BO20+BQ20+BR20+BS20 -> 0 | BO20: =CA20+CG20+CM20+CS20+CY20+DE20 -> 0 | BQ20: =CC20+CI20+CO20+CU20+DA20+DG20 -> 0 | BR20: 0 | BS20: 0 | BT20: =BU20+BW20+BX20+BY20 -> 0 | BU20: 0 | BW20: 0 | BX20: 0 | BY20: 0 | BZ20: =SUM(CA20:CE20) -> 0 | CF20: =SUM(CG20:CK20) -> 0 | CL20: =SUM(CM20:CQ20) -> 0 | CR20: =SUM(CS20:CW20) -> 0 | CX20: =SUM(CY20:DC20) -> 0 | DD20: =SUM(DE20:DI20) -> 0 | DJ20: =SUM(DK20:DO20) -> 0 | DP20: =SUM(DQ20:DU20) -> 0 | DV20: =SUM(DW20:EA20) -> 0 | EB20: =SUM(EC20:EG20) -> 0 | EH20: =SUM(EI20:EM20) -> 0 | EN20: =SUM(EO20:ES20) -> 0 | ET20: 0 | EZ20: 0 | FF20: 0 | FL20: 0 | FR20: 0 | FX20: 0 | GD20: 0 | GJ20: 0 | GP20: 0 | GV20: 0 | HB20: 0 | HH20: 0
D21: 1.2 | E21: от электростанций ПЭ (ЭСО) | F21: 0 | L21: 0 | R21: 0 | X21: 0 | Y21: =П1.30!I18 -> 0 | AA21: =П1.30!K18 -> 0 | AB21: =П1.30!L18 -> 0 | AC21: =П1.30!M18 -> 0 | AD21: 0 | AE21: =П1.30!O18 -> 0 | AG21: =П1.30!Q18 -> 0 | AH21: =П1.30!R18 -> 0 | AI21: =П1.30!S18 -> 0 | AJ21: 0 | AK21: =П1.30!U18 -> 0 | AM21: =П1.30!W18 -> 0 | AN21: =П1.30!X18 -> 0 | AO21: =П1.30!Y18 -> 0 | AP21: 0 | AQ21: =AW21+BC21 -> 0 | AS21: 0 | AT21: 0 | AU21: =BA21+BG21 -> 0 | AV21: 0 | AW21: =П1.30!AY18 -> 0 | AY21: =П1.30!BA18 -> 0 | AZ21: =П1.30!BB18 -> 0 | BA21: =П1.30!BC18 -> 0 | BB21: 0 | BC21: =П1.30!BE18 -> 0 | BE21: =П1.30!BG18 -> 0 | BF21: =П1.30!BH18 -> 0 | BG21: =П1.30!BI18 -> 0 | BH21: 0 | BI21: =BO21+BU21 -> 0 | BK21: =BQ21+BW21 -> 0 | BL21: 0 | BM21: 0 | BN21: 0 | BO21: =CA21+CG21+CM21+CS21+CY21+DE21 -> 0 | BQ21: =CC21+CI21+CO21+CU21+DA21+DG21 -> 0 | BR21: 0 | BS21: 0 | BT21: 0 | BU21: 0 | BW21: 0 | BX21: 0 | BY21: 0 | BZ21: =SUM(CA21:CE21) -> 0 | CF21: =SUM(CG21:CK21) -> 0 | CL21: =SUM(CM21:CQ21) -> 0 | CR21: =SUM(CS21:CW21) -> 0 | CX21: =SUM(CY21:DC21) -> 0 | DD21: =SUM(DE21:DI21) -> 0 | DJ21: =SUM(DK21:DO21) -> 0 | DP21: =SUM(DQ21:DU21) -> 0 | DV21: =SUM(DW21:EA21) -> 0 | EB21: =SUM(EC21:EG21) -> 0 | EH21: =SUM(EI21:EM21) -> 0 | EN21: =SUM(EO21:ES21) -> 0 | ET21: 0 | EZ21: 0 | FF21: 0 | FL21: 0 | FR21: 0 | FX21: 0 | GD21: 0 | GJ21: 0 | GP21: 0 | GV21: 0 | HB21: 0 | HH21: 0
D22: 1.3 | E22: от других поставщиков (в т.ч. с оптового рынка) | F22: 39.67 | G22: =M22+S22 -> 15.93 | J22: =P22+V22 -> 23.74 | L22: 19.39 | M22: 7.54 | P22: 11.85 | R22: 20.28 | S22: 8.39 | V22: 11.89 | X22: 46.413522 | Y22: =П1.30!I21 -> 17.752231 | AA22: =П1.30!K21 -> 0 | AB22: =П1.30!L21 -> 28.661291 | AC22: =П1.30!M21 -> 0 | AD22: 23.746004 | AE22: =П1.30!O21 -> 8.709251 | AG22: =П1.30!Q21 -> 0 | AH22: =П1.30!R21 -> 15.036753 | AI22: =П1.30!S21 -> 0 | AJ22: 22.667518 | AK22: =П1.30!U21 -> 9.04298 | AM22: =П1.30!W21 -> 0 | AN22: =П1.30!X21 -> 13.624538 | AO22: =П1.30!Y21 -> 0 | AP22: 44.565 | AQ22: =AW22+BC22 -> 17.608 | AS22: 0 | AT22: 26.957 | AU22: =BA22+BG22 -> 0 | AV22: 22.531 | AW22: =П1.30!AY21 -> 8.71 | AY22: =П1.30!BA21 -> 0 | AZ22: =П1.30!BB21 -> 13.821 | BA22: =П1.30!BC21 -> 0 | BB22: 22.034 | BC22: =П1.30!BE21 -> 8.898 | BE22: =П1.30!BG21 -> 0 | BF22: =П1.30!BH21 -> 13.136 | BG22: =П1.30!BI21 -> 0 | BH22: =BI22+BK22+BL22+BM22 -> 0 | BI22: =BO22+BU22 -> 0 | BK22: =BQ22+BW22 -> 0 | BL22: 0 | BM22: 0 | BN22: 0 | BO22: =CA22+CG22+CM22+CS22+CY22+DE22 -> 0 | BQ22: =CC22+CI22+CO22+CU22+DA22+DG22 -> 0 | BR22: 0 | BS22: 0 | BT22: 0 | BU22: 0 | BW22: 0 | BX22: 0 | BY22: 0 | BZ22: =SUM(CA22:CE22) -> 0 | CF22: =SUM(CG22:CK22) -> 0 | CL22: =SUM(CM22:CQ22) -> 0 | CR22: =SUM(CS22:CW22) -> 0 | CX22: =SUM(CY22:DC22) -> 0 | DD22: =SUM(DE22:DI22) -> 0 | DJ22: =SUM(DK22:DO22) -> 0 | DP22: =SUM(DQ22:DU22) -> 0 | DV22: =SUM(DW22:EA22) -> 0 | EB22: =SUM(EC22:EG22) -> 0 | EH22: =SUM(EI22:EM22) -> 0 | EN22: =SUM(EO22:ES22) -> 0 | ET22: 0 | EZ22: 0 | FF22: 0 | FL22: 0 | FR22: 0 | FX22: 0 | GD22: 0 | GJ22: 0 | GP22: 0 | GV22: 0 | HB22: 0 | HH22: 0
D23: 1.4 | E23: Поступление из смежных субъектов | F23: 0 | L23: 0 | R23: 0 | X23: 0 | Y23: =П1.30!I33 -> 0 | AA23: =П1.30!K33 -> 0 | AB23: =П1.30!L33 -> 0 | AC23: =П1.30!M33 -> 0 | AD23: 0 | AE23: =П1.30!O33 -> 0 | AG23: =П1.30!Q33 -> 0 | AH23: =П1.30!R33 -> 0 | AI23: =П1.30!S33 -> 0 | AJ23: 0 | AK23: =П1.30!U33 -> 0 | AM23: =П1.30!W33 -> 0 | AN23: =П1.30!X33 -> 0 | AO23: =П1.30!Y33 -> 0 | AP23: 0 | AQ23: =AW23+BC23 -> 0 | AS23: 0 | AT23: 0 | AU23: =BA23+BG23 -> 0 | AV23: 0 | AW23: =П1.30!AY32 -> 0 | AY23: =П1.30!BA32 -> 0 | AZ23: =П1.30!BB32 -> 0 | BA23: =П1.30!BC32 -> 0 | BB23: 0 | BC23: =П1.30!BE32 -> 0 | BE23: =П1.30!BG32 -> 0 | BF23: =П1.30!BH32 -> 0 | BG23: =П1.30!BI32 -> 0 | BH23: 0 | BI23: =BO23+BU23 -> 0 | BK23: =BQ23+BW23 -> 0 | BL23: 0 | BM23: 0 | BN23: 0 | BO23: =CA23+CG23+CM23+CS23+CY23+DE23 -> 0 | BQ23: =CC23+CI23+CO23+CU23+DA23+DG23 -> 0 | BR23: 0 | BS23: 0 | BT23: 0 | BU23: 0 | BW23: 0 | BX23: 0 | BY23: 0 | BZ23: =SUM(CA23:CE23) -> 0 | CF23: =SUM(CG23:CK23) -> 0 | CL23: =SUM(CM23:CQ23) -> 0 | CR23: =SUM(CS23:CW23) -> 0 | CX23: =SUM(CY23:DC23) -> 0 | DD23: =SUM(DE23:DI23) -> 0 | DJ23: =SUM(DK23:DO23) -> 0 | DP23: =SUM(DQ23:DU23) -> 0 | DV23: =SUM(DW23:EA23) -> 0 | EB23: =SUM(EC23:EG23) -> 0 | EH23: =SUM(EI23:EM23) -> 0 | EN23: =SUM(EO23:ES23) -> 0 | ET23: 0 | EZ23: 0 | FF23: 0 | FL23: 0 | FR23: 0 | FX23: 0 | GD23: 0 | GJ23: 0 | GP23: 0 | GV23: 0 | HB23: 0 | HH23: 0
D24: 2 | E24: Потери электроэнергии в сети (для проверки с П1.3) | F24: 0.39 | G24: =G27+G28 -> 0.12 | I24: =I27+I28 -> 0 | J24: =J27+J28 -> 0.27 | K24: =K27+K28 -> 0 | L24: 0.19 | M24: =M27+M28 -> 0.06 | O24: =O27+O28 -> 0 | P24: =P27+P28 -> 0.13 | Q24: =Q27+Q28 -> 0 | R24: 0.2 | S24: =S27+S28 -> 0.06 | U24: =U27+U28 -> 0 | V24: =V27+V28 -> 0.14 | W24: =W27+W28 -> 0 | X24: 1.265217 | Y24: =Y27+Y28 -> 0.40883 | AA24: =AA27+AA28 -> 0 | AB24: =AB27+AB28 -> 0.856387 | AC24: =AC27+AC28 -> 0 | AD24: 0.350968 | AE24: =AE27+AE28 -> 0.11452 | AG24: =AG27+AG28 -> 0 | AH24: =AH27+AH28 -> 0.236448 | AI24: =AI27+AI28 -> 0 | AJ24: 0.914249 | AK24: =AK27+AK28 -> 0.29431 | AM24: =AM27+AM28 -> 0 | AN24: =AN27+AN28 -> 0.619939 | AO24: =AO27+AO28 -> 0 | AP24: =AQ24+AS24+AT24+AU24 -> 0.61 | AQ24: =AQ27+AQ28 -> 0.2 | AS24: =AS27+AS28 -> 0 | AT24: =AT27+AT28 -> 0.41 | AU24: =AU27+AU28 -> 0 | AV24: =AW24+AY24+AZ24+BA24 -> 0.3 | AW24: =AW27+AW28 -> 0.1 | AY24: =AY27+AY28 -> 0 | AZ24: =AZ27+AZ28 -> 0.2 | BA24: =BA27+BA28 -> 0 | BB24: =BC24+BE24+BF24+BG24 -> 0.31 | BC24: =BC27+BC28 -> 0.1 | BE24: =BE27+BE28 -> 0 | BF24: =BF27+BF28 -> 0.21 | BG24: =BG27+BG28 -> 0 | BH24: =BI24+BK24+BL24+BM24 -> 1.8815 | BI24: =BI27+BI28 -> 0.4139 | BK24: =BK27+BK28 -> 0 | BL24: =BL27+BL28 -> 1.4676 | BM24: =BM27+BM28 -> 0 | BN24: 0.975 | BO24: =BO27+BO28 -> 0.2145 | BQ24: =BQ27+BQ28 -> 0 | BR24: =BR27+BR28 -> 0.7605 | BS24: =BS27+BS28 -> 0 | BT24: 0.9065 | BU24: =BU27+BU28 -> 0.1994 | BW24: =BW27+BW28 -> 0 | BX24: =BX27+BX28 -> 0.7071 | BY24: =BY27+BY28 -> 0 | ET24: 1.9 | EU24: =EU27+EU28 -> 0.61 | EW24: =EW27+EW28 -> 0 | EX24: =EX27+EX28 -> 1.29 | EY24: =EY27+EY28 -> 0 | EZ24: 0.99 | FA24: =FA27+FA28 -> 0.32 | FC24: =FC27+FC28 -> 0 | FD24: =FD27+FD28 -> 0.67 | FE24: =FE27+FE28 -> 0 | FF24: 0.91 | FG24: =FG27+FG28 -> 0.29 | FI24: =FI27+FI28 -> 0 | FJ24: =FJ27+FJ28 -> 0.62 | FK24: =FK27+FK28 -> 0 | FL24: 1.93 | FM24: =FM27+FM28 -> 0.62 | FO24: =FO27+FO28 -> 0 | FP24: =FP27+FP28 -> 1.31 | FQ24: =FQ27+FQ28 -> 0 | FR24: 1 | FS24: =FS27+FS28 -> 0.32 | FU24: =FU27+FU28 -> 0 | FV24: =FV27+FV28 -> 0.68 | FW24: =FW27+FW28 -> 0 | FX24: 0.93 | FY24: =FY27+FY28 -> 0.3 | GA24: =GA27+GA28 -> 0 | GB24: =GB27+GB28 -> 0.63 | GC24: =GC27+GC28 -> 0 | GD24: 1.94 | GE24: =GE27+GE28 -> 0.62 | GG24: =GG27+GG28 -> 0 | GH24: =GH27+GH28 -> 1.32 | GI24: =GI27+GI28 -> 0 | GJ24: 1 | GK24: =GK27+GK28 -> 0.32 | GM24: =GM27+GM28 -> 0 | GN24: =GN27+GN28 -> 0.68 | GO24: =GO27+GO28 -> 0 | GP24: 0.94 | GQ24: =GQ27+GQ28 -> 0.3 | GS24: =GS27+GS28 -> 0 | GT24: =GT27+GT28 -> 0.64 | GU24: =GU27+GU28 -> 0 | GV24: 1.96 | GW24: =GW27+GW28 -> 0.63 | GY24: =GY27+GY28 -> 0 | GZ24: =GZ27+GZ28 -> 1.33 | HA24: =HA27+HA28 -> 0 | HB24: 1.02 | HC24: =HC27+HC28 -> 0.33 | HE24: =HE27+HE28 -> 0 | HF24: =HF27+HF28 -> 0.69 | HG24: =HG27+HG28 -> 0 | HH24: 0.94 | HI24: =HI27+HI28 -> 0.3 | HK24: =HK27+HK28 -> 0 | HL24: =HL27+HL28 -> 0.64 | HM24: =HM27+HM28 -> 0
D25: 2 | E25: Потери электроэнергии в сети | F25: 0.3968 | G25: =П1.3!G29 -> 0.12 | I25: =П1.3!I29 -> 0 | J25: =П1.3!J29 -> 0.2768 | K25: =П1.3!K29 -> 0 | L25: 0.194 | M25: =П1.3!M29 -> 0.06 | O25: =П1.3!O29 -> 0 | P25: =П1.3!P29 -> 0.134 | Q25: =П1.3!Q29 -> 0 | R25: 0.2028 | S25: =П1.3!S29 -> 0.06 | U25: =П1.3!U29 -> 0 | V25: =П1.3!V29 -> 0.1428 | W25: =П1.3!W29 -> 0 | X25: 1.26 | Y25: =П1.3!Y29 -> 0.4 | AA25: =П1.3!AA29 -> 0 | AB25: =П1.3!AB29 -> 0.86 | AC25: =П1.3!AC29 -> 0 | AD25: 0.35 | AE25: =П1.3!AE29 -> 0.11 | AG25: =П1.3!AG29 -> 0 | AH25: =П1.3!AH29 -> 0.24 | AI25: =П1.3!AI29 -> 0 | AJ25: 0.91 | AK25: =П1.3!AK29 -> 0.29 | AM25: =П1.3!AM29 -> 0 | AN25: =П1.3!AN29 -> 0.62 | AO25: =П1.3!AO29 -> 0 | AP25: =AQ25+AS25+AT25+AU25 -> 0.61 | AQ25: =П1.3!AQ29 -> 0.2 | AS25: =П1.3!AS29 -> 0 | AT25: =П1.3!AT29 -> 0.41 | AU25: =П1.3!AU29 -> 0 | AV25: =AW25+AY25+AZ25+BA25 -> 0.3 | AW25: =П1.3!AW29 -> 0.1 | AY25: =П1.3!AY29 -> 0 | AZ25: =П1.3!AZ29 -> 0.2 | BA25: =П1.3!BA29 -> 0 | BB25: =BC25+BE25+BF25+BG25 -> 0.31 | BC25: =П1.3!BC29 -> 0.1 | BE25: =П1.3!BE29 -> 0 | BF25: =П1.3!BF29 -> 0.21 | BG25: =П1.3!BG29 -> 0 | BH25: =BI25+BK25+BL25+BM25 -> 1.8815 | BI25: =П1.3!BI29 -> 0.4139 | BK25: =П1.3!BK29 -> 0 | BL25: =П1.3!BL29 -> 1.4676 | BM25: =П1.3!BM29 -> 0 | BN25: 0.975 | BO25: =П1.3!BO29 -> 0.2145 | BQ25: =П1.3!BQ29 -> 0 | BR25: =П1.3!BR29 -> 0.7605 | BS25: =П1.3!BS29 -> 0 | BT25: 0.9065 | BU25: =П1.3!BU29 -> 0.1994 | BW25: =П1.3!BW29 -> 0 | BX25: =П1.3!BX29 -> 0.7071 | BY25: =П1.3!BY29 -> 0 | BZ25: =SUM(CA25:CE25) -> 0.2 | CA25: =П1.3!CA$29 -> 0.07 | CC25: =П1.3!CC$29 -> 0 | CD25: =П1.3!CD$29 -> 0.13 | CE25: =П1.3!CE$29 -> 0 | CF25: =SUM(CG25:CK25) -> 0.17 | CG25: =П1.3!CG$29 -> 0.06 | CI25: =П1.3!CI$29 -> 0 | CJ25: =П1.3!CJ$29 -> 0.11 | CK25: =П1.3!CK$29 -> 0 | CL25: =SUM(CM25:CQ25) -> 0.19 | CM25: =П1.3!CM$29 -> 0.06 | CO25: =П1.3!CO$29 -> 0 | CP25: =П1.3!CP$29 -> 0.13 | CQ25: =П1.3!CQ$29 -> 0 | CR25: =SUM(CS25:CW25) -> 0.14 | CS25: =П1.3!CS$29 -> 0.05 | CU25: =П1.3!CU$29 -> 0 | CV25: =П1.3!CV$29 -> 0.09 | CW25: =П1.3!CW$29 -> 0 | CX25: =SUM(CY25:DC25) -> 0.14 | CY25: =П1.3!CY$29 -> 0.05 | DA25: =П1.3!DA$29 -> 0 | DB25: =П1.3!DB$29 -> 0.09 | DC25: =П1.3!DC$29 -> 0 | DD25: =SUM(DE25:DI25) -> 0.12 | DE25: =П1.3!DE$29 -> 0.04 | DG25: =П1.3!DG$29 -> 0 | DH25: =П1.3!DH$29 -> 0.08 | DI25: =П1.3!DI$29 -> 0 | DJ25: =SUM(DK25:DO25) -> 0.12 | DK25: =П1.3!DK$29 -> 0.04 | DM25: =П1.3!DM$29 -> 0 | DN25: =П1.3!DN$29 -> 0.08 | DO25: =П1.3!DO$29 -> 0 | DP25: =SUM(DQ25:DU25) -> 0.12 | DQ25: =П1.3!DQ$29 -> 0.04 | DS25: =П1.3!DS$29 -> 0 | DT25: =П1.3!DT$29 -> 0.08 | DU25: =П1.3!DU$29 -> 0 | DV25: =SUM(DW25:EA25) -> 0.14 | DW25: =П1.3!DW$29 -> 0.05 | DY25: =П1.3!DY$29 -> 0 | DZ25: =П1.3!DZ$29 -> 0.09 | EA25: =П1.3!EA$29 -> 0 | EB25: =SUM(EC25:EG25) -> 0.17 | EC25: =П1.3!EC$29 -> 0.06 | EE25: =П1.3!EE$29 -> 0 | EF25: =П1.3!EF$29 -> 0.11 | EG25: =П1.3!EG$29 -> 0 | EH25: =SUM(EI25:EM25) -> 0.18 | EI25: =П1.3!EI$29 -> 0.06 | EK25: =П1.3!EK$29 -> 0 | EL25: =П1.3!EL$29 -> 0.12 | EM25: =П1.3!EM$29 -> 0 | EN25: =SUM(EO25:ES25) -> 0.17 | EO25: =П1.3!EO$29 -> 0.06 | EQ25: =П1.3!EQ$29 -> 0 | ER25: =П1.3!ER$29 -> 0.11 | ES25: =П1.3!ES$29 -> 0 | ET25: 1.9 | EU25: =П1.3!EU29 -> 0.61 | EW25: =П1.3!EW29 -> 0 | EX25: =П1.3!EX29 -> 1.29 | EY25: =П1.3!EY29 -> 0 | EZ25: 0.99 | FA25: =П1.3!FA29 -> 0.32 | FC25: =П1.3!FC29 -> 0 | FD25: =П1.3!FD29 -> 0.67 | FE25: =П1.3!FE29 -> 0 | FF25: 0.91 | FG25: =П1.3!FG29 -> 0.29 | FI25: =П1.3!FI29 -> 0 | FJ25: =П1.3!FJ29 -> 0.62 | FK25: =П1.3!FK29 -> 0 | FL25: 1.93 | FM25: =П1.3!FM29 -> 0.62 | FO25: =П1.3!FO29 -> 0 | FP25: =П1.3!FP29 -> 1.31 | FQ25: =П1.3!FQ29 -> 0 | FR25: 1 | FS25: =П1.3!FS29 -> 0.32 | FU25: =П1.3!FU29 -> 0 | FV25: =П1.3!FV29 -> 0.68 | FW25: =П1.3!FW29 -> 0 | FX25: 0.93 | FY25: =П1.3!FY29 -> 0.3 | GA25: =П1.3!GA29 -> 0 | GB25: =П1.3!GB29 -> 0.63 | GC25: =П1.3!GC29 -> 0 | GD25: 1.94 | GE25: =П1.3!GE29 -> 0.62 | GG25: =П1.3!GG29 -> 0 | GH25: =П1.3!GH29 -> 1.32 | GI25: =П1.3!GI29 -> 0 | GJ25: 1 | GK25: =П1.3!GK29 -> 0.32 | GM25: =П1.3!GM29 -> 0 | GN25: =П1.3!GN29 -> 0.68 | GO25: =П1.3!GO29 -> 0 | GP25: 0.94 | GQ25: =П1.3!GQ29 -> 0.3 | GS25: =П1.3!GS29 -> 0 | GT25: =П1.3!GT29 -> 0.64 | GU25: =П1.3!GU29 -> 0 | GV25: 1.96 | GW25: =П1.3!GW29 -> 0.63 | GY25: =П1.3!GY29 -> 0 | GZ25: =П1.3!GZ29 -> 1.33 | HA25: =П1.3!HA29 -> 0 | HB25: 1.02 | HC25: =П1.3!HC29 -> 0.33 | HE25: =П1.3!HE29 -> 0 | HF25: =П1.3!HF29 -> 0.69 | HG25: =П1.3!HG29 -> 0 | HH25: 0.94 | HI25: =П1.3!HI29 -> 0.3 | HK25: =П1.3!HK29 -> 0 | HL25: =П1.3!HL29 -> 0.64 | HM25: =П1.3!HM29 -> 0
E26: то же в % (п.2/п.1) | F26: =IF(F15=0,0,F25/F15*100) -> 1.00025208 | G26: =IF(G15=0,0,G25/G15*100) -> 0.7532956685 | I26: =IF(I15=0,0,I25/I15*100) -> 0 | J26: =IF(J15=0,0,J25/J15*100) -> 0.6998735777 | K26: =IF(K15=0,0,K25/K15*100) -> 0 | L26: =IF(L15=0,0,L25/L15*100) -> 1.00051573 | M26: =IF(M15=0,0,M25/M15*100) -> 0.7957559682 | O26: =IF(O15=0,0,O25/O15*100) -> 0 | P26: =IF(P15=0,0,P25/P15*100) -> 0.6932229695 | Q26: =IF(Q15=0,0,Q25/Q15*100) -> 0 | R26: =IF(R15=0,0,R25/R15*100) -> 1 | S26: =IF(S15=0,0,S25/S15*100) -> 0.7151370679 | U26: =IF(U15=0,0,U25/U15*100) -> 0 | V26: =IF(V15=0,0,V25/V15*100) -> 0.706231454 | W26: =IF(W15=0,0,W25/W15*100) -> 0 | X26: =IF(X15=0,0,X25/X15*100) -> 2.714726109 | Y26: =IF(Y15=0,0,Y25/Y15*100) -> 2.253237917 | AA26: =IF(AA15=0,0,AA25/AA15*100) -> 0 | AB26: =IF(AB15=0,0,AB25/AB15*100) -> 1.869374541 | AC26: =IF(AC15=0,0,AC25/AC15*100) -> 0 | AD26: =IF(AD15=0,0,AD25/AD15*100) -> 1.473932203 | AE26: =IF(AE15=0,0,AE25/AE15*100) -> 1.2630248 | AG26: =IF(AG15=0,0,AG25/AG15*100) -> 0 | AH26: =IF(AH15=0,0,AH25/AH15*100) -> 1.015594281 | AI26: =IF(AI15=0,0,AI25/AI15*100) -> 0 | AJ26: =IF(AJ15=0,0,AJ25/AJ15*100) -> 4.0145551 | AK26: =IF(AK15=0,0,AK25/AK15*100) -> 3.206907457 | AM26: =IF(AM15=0,0,AM25/AM15*100) -> 0 | AN26: =IF(AN15=0,0,AN25/AN15*100) -> 2.771171662 | AO26: =IF(AO15=0,0,AO25/AO15*100) -> 0 | AP26: =IF(AP15=0,0,AP25/AP15*100) -> 1.368787165 | AQ26: =IF(AQ15=0,0,AQ25/AQ15*100) -> 1.135847342 | AS26: =IF(AS15=0,0,AS25/AS15*100) -> 0 | AT26: =IF(AT15=0,0,AT25/AT15*100) -> 0.9241519216 | AU26: =IF(AU15=0,0,AU25/AU15*100) -> 0 | AV26: =IF(AV15=0,0,AV25/AV15*100) -> 1.331498824 | AW26: =IF(AW15=0,0,AW25/AW15*100) -> 1.148105626 | AY26: =IF(AY15=0,0,AY25/AY15*100) -> 0 | AZ26: =IF(AZ15=0,0,AZ25/AZ15*100) -> 0.8916232 | BA26: =IF(BA15=0,0,BA25/BA15*100) -> 0 | BB26: =IF(BB15=0,0,BB25/BB15*100) -> 1.406916583 | BC26: =IF(BC15=0,0,BC25/BC15*100) -> 1.123848056 | BE26: =IF(BE15=0,0,BE25/BE15*100) -> 0 | BF26: =IF(BF15=0,0,BF25/BF15*100) -> 0.9574177077 | BG26: =IF(BG15=0,0,BG25/BG15*100) -> 0 | BH26: =IF(BH15=0,0,BH25/BH15*100) -> 0 | BI26: =IF(BI15=0,0,BI25/BI15*100) -> 0 | BK26: =IF(BK15=0,0,BK25/BK15*100) -> 0 | BL26: =IF(BL15=0,0,BL25/BL15*100) -> -229.3125 | BM26: =IF(BM15=0,0,BM25/BM15*100) -> 0 | BN26: =IF(BN15=0,0,BN25/BN15*100) -> 0 | BO26: =IF(BO15=0,0,BO25/BO15*100) -> 0 | BQ26: =IF(BQ15=0,0,BQ25/BQ15*100) -> 0 | BR26: =IF(BR15=0,0,BR25/BR15*100) -> -230.4545455 | BS26: =IF(BS15=0,0,BS25/BS15*100) -> 0 | BT26: =IF(BT15=0,0,BT25/BT15*100) -> 0 | BU26: =IF(BU15=0,0,BU25/BU15*100) -> 0 | BW26: =IF(BW15=0,0,BW25/BW15*100) -> 0 | BX26: =IF(BX15=0,0,BX25/BX15*100) -> -228.0967742 | BY26: =IF(BY15=0,0,BY25/BY15*100) -> 0 | BZ26: =IF(BZ15=0,0,BZ25/BZ15*100) -> 0 | CA26: =IF(CA15=0,0,CA25/CA15*100) -> 0 | CC26: =IF(CC15=0,0,CC25/CC15*100) -> 0 | CD26: =IF(CD15=0,0,CD25/CD15*100) -> -185.7142857 | CE26: =IF(CE15=0,0,CE25/CE15*100) -> 0 | CF26: =IF(CF15=0,0,CF25/CF15*100) -> 0 | CG26: =IF(CG15=0,0,CG25/CG15*100) -> 0 | CI26: =IF(CI15=0,0,CI25/CI15*100) -> 0 | CJ26: =IF(CJ15=0,0,CJ25/CJ15*100) -> -183.3333333 | CK26: =IF(CK15=0,0,CK25/CK15*100) -> 0 | CL26: =IF(CL15=0,0,CL25/CL15*100) -> 0 | CM26: =IF(CM15=0,0,CM25/CM15*100) -> 0 | CO26: =IF(CO15=0,0,CO25/CO15*100) -> 0 | CP26: =IF(CP15=0,0,CP25/CP15*100) -> -216.6666667 | CQ26: =IF(CQ15=0,0,CQ25/CQ15*100) -> 0 | CR26: =IF(CR15=0,0,CR25/CR15*100) -> 0 | CS26: =IF(CS15=0,0,CS25/CS15*100) -> 0 | CU26: =IF(CU15=0,0,CU25/CU15*100) -> 0 | CV26: =IF(CV15=0,0,CV25/CV15*100) -> -180 | CW26: =IF(CW15=0,0,CW25/CW15*100) -> 0 | CX26: =IF(CX15=0,0,CX25/CX15*100) -> 0 | CY26: =IF(CY15=0,0,CY25/CY15*100) -> 0 | DA26: =IF(DA15=0,0,DA25/DA15*100) -> 0 | DB26: =IF(DB15=0,0,DB25/DB15*100) -> -180 | DC26: =IF(DC15=0,0,DC25/DC15*100) -> 0 | DD26: =IF(DD15=0,0,DD25/DD15*100) -> 0 | DE26: =IF(DE15=0,0,DE25/DE15*100) -> 0 | DG26: =IF(DG15=0,0,DG25/DG15*100) -> 0 | DH26: =IF(DH15=0,0,DH25/DH15*100) -> -200 | DI26: =IF(DI15=0,0,DI25/DI15*100) -> 0 | DJ26: =IF(DJ15=0,0,DJ25/DJ15*100) -> 0 | DK26: =IF(DK15=0,0,DK25/DK15*100) -> 0 | DM26: =IF(DM15=0,0,DM25/DM15*100) -> 0 | DN26: =IF(DN15=0,0,DN25/DN15*100) -> -200 | DO26: =IF(DO15=0,0,DO25/DO15*100) -> 0 | DP26: =IF(DP15=0,0,DP25/DP15*100) -> 0 | DQ26: =IF(DQ15=0,0,DQ25/DQ15*100) -> 0 | DS26: =IF(DS15=0,0,DS25/DS15*100) -> 0 | DT26: =IF(DT15=0,0,DT25/DT15*100) -> -200 | DU26: =IF(DU15=0,0,DU25/DU15*100) -> 0 | DV26: =IF(DV15=0,0,DV25/DV15*100) -> 0 | DW26: =IF(DW15=0,0,DW25/DW15*100) -> 0 | DY26: =IF(DY15=0,0,DY25/DY15*100) -> 0 | DZ26: =IF(DZ15=0,0,DZ25/DZ15*100) -> -180 | EA26: =IF(EA15=0,0,EA25/EA15*100) -> 0 | EB26: =IF(EB15=0,0,EB25/EB15*100) -> 0 | EC26: =IF(EC15=0,0,EC25/EC15*100) -> 0 | EE26: =IF(EE15=0,0,EE25/EE15*100) -> 0 | EF26: =IF(EF15=0,0,EF25/EF15*100) -> -183.3333333 | EG26: =IF(EG15=0,0,EG25/EG15*100) -> 0 | EH26: =IF(EH15=0,0,EH25/EH15*100) -> 0 | EI26: =IF(EI15=0,0,EI25/EI15*100) -> 0 | EK26: =IF(EK15=0,0,EK25/EK15*100) -> 0 | EL26: =IF(EL15=0,0,EL25/EL15*100) -> -200 | EM26: =IF(EM15=0,0,EM25/EM15*100) -> 0 | EN26: =IF(EN15=0,0,EN25/EN15*100) -> 0 | EO26: =IF(EO15=0,0,EO25/EO15*100) -> 0 | EQ26: =IF(EQ15=0,0,EQ25/EQ15*100) -> 0 | ER26: =IF(ER15=0,0,ER25/ER15*100) -> -183.3333333 | ES26: =IF(ES15=0,0,ES25/ES15*100) -> 0 | ET26: =IF(ET15=0,0,ET25/ET15*100) -> 0 | EU26: =IF(EU15=0,0,EU25/EU15*100) -> 0 | EW26: =IF(EW15=0,0,EW25/EW15*100) -> 0 | EX26: =IF(EX15=0,0,EX25/EX15*100) -> -211.4754098 | EY26: =IF(EY15=0,0,EY25/EY15*100) -> 0 | EZ26: =IF(EZ15=0,0,EZ25/EZ15*100) -> 0 | FA26: =IF(FA15=0,0,FA25/FA15*100) -> 0 | FC26: =IF(FC15=0,0,FC25/FC15*100) -> 0 | FD26: =IF(FD15=0,0,FD25/FD15*100) -> -209.375 | FE26: =IF(FE15=0,0,FE25/FE15*100) -> 0 | FF26: =IF(FF15=0,0,FF25/FF15*100) -> 0 | FG26: =IF(FG15=0,0,FG25/FG15*100) -> 0 | FI26: =IF(FI15=0,0,FI25/FI15*100) -> 0 | FJ26: =IF(FJ15=0,0,FJ25/FJ15*100) -> -213.7931034 | FK26: =IF(FK15=0,0,FK25/FK15*100) -> 0 | FL26: =IF(FL15=0,0,FL25/FL15*100) -> 0 | FM26: =IF(FM15=0,0,FM25/FM15*100) -> 0 | FO26: =IF(FO15=0,0,FO25/FO15*100) -> 0 | FP26: =IF(FP15=0,0,FP25/FP15*100) -> -211.2903226 | FQ26: =IF(FQ15=0,0,FQ25/FQ15*100) -> 0 | FR26: =IF(FR15=0,0,FR25/FR15*100) -> 0 | FS26: =IF(FS15=0,0,FS25/FS15*100) -> 0 | FU26: =IF(FU15=0,0,FU25/FU15*100) -> 0 | FV26: =IF(FV15=0,0,FV25/FV15*100) -> -212.5 | FW26: =IF(FW15=0,0,FW25/FW15*100) -> 0 | FX26: =IF(FX15=0,0,FX25/FX15*100) -> 0 | FY26: =IF(FY15=0,0,FY25/FY15*100) -> 0 | GA26: =IF(GA15=0,0,GA25/GA15*100) -> 0 | GB26: =IF(GB15=0,0,GB25/GB15*100) -> -210 | GC26: =IF(GC15=0,0,GC25/GC15*100) -> 0 | GD26: =IF(GD15=0,0,GD25/GD15*100) -> 0 | GE26: =IF(GE15=0,0,GE25/GE15*100) -> 0 | GG26: =IF(GG15=0,0,GG25/GG15*100) -> 0 | GH26: =IF(GH15=0,0,GH25/GH15*100) -> -212.9032258 | GI26: =IF(GI15=0,0,GI25/GI15*100) -> 0 | GJ26: =IF(GJ15=0,0,GJ25/GJ15*100) -> 0 | GK26: =IF(GK15=0,0,GK25/GK15*100) -> 0 | GM26: =IF(GM15=0,0,GM25/GM15*100) -> 0 | GN26: =IF(GN15=0,0,GN25/GN15*100) -> -212.5 | GO26: =IF(GO15=0,0,GO25/GO15*100) -> 0 | GP26: =IF(GP15=0,0,GP25/GP15*100) -> 0 | GQ26: =IF(GQ15=0,0,GQ25/GQ15*100) -> 0 | GS26: =IF(GS15=0,0,GS25/GS15*100) -> 0 | GT26: =IF(GT15=0,0,GT25/GT15*100) -> -213.3333333 | GU26: =IF(GU15=0,0,GU25/GU15*100) -> 0 | GV26: =IF(GV15=0,0,GV25/GV15*100) -> 0 | GW26: =IF(GW15=0,0,GW25/GW15*100) -> 0 | GY26: =IF(GY15=0,0,GY25/GY15*100) -> 0 | GZ26: =IF(GZ15=0,0,GZ25/GZ15*100) -> -211.1111111 | HA26: =IF(HA15=0,0,HA25/HA15*100) -> 0 | HB26: =IF(HB15=0,0,HB25/HB15*100) -> 0 | HC26: =IF(HC15=0,0,HC25/HC15*100) -> 0 | HE26: =IF(HE15=0,0,HE25/HE15*100) -> 0 | HF26: =IF(HF15=0,0,HF25/HF15*100) -> -209.0909091 | HG26: =IF(HG15=0,0,HG25/HG15*100) -> 0 | HH26: =IF(HH15=0,0,HH25/HH15*100) -> 0 | HI26: =IF(HI15=0,0,HI25/HI15*100) -> 0 | HK26: =IF(HK15=0,0,HK25/HK15*100) -> 0 | HL26: =IF(HL15=0,0,HL25/HL15*100) -> -213.3333333 | HM26: =IF(HM15=0,0,HM25/HM15*100) -> 0
D27: 2.1 | E27: Относимые на основное производство | F27: 0 | L27: =M27+O27+P27+Q27 -> 0 | R27: =S27+U27+V27+W27 -> 0 | X27: 0 | Y27: =П1.30!I39 -> 0 | AA27: =П1.30!K39 -> 0 | AB27: =П1.30!L39 -> 0 | AC27: =П1.30!M39 -> 0 | AD27: =AE27+AG27+AH27+AI27 -> 0 | AE27: =П1.30!O39 -> 0 | AG27: =П1.30!Q39 -> 0 | AH27: =П1.30!R39 -> 0 | AI27: =П1.30!S39 -> 0 | AJ27: =AK27+AM27+AN27+AO27 -> 0 | AK27: =П1.30!U39 -> 0 | AM27: =П1.30!W39 -> 0 | AN27: =П1.30!X39 -> 0 | AO27: =П1.30!Y39 -> 0 | AP27: =AQ27+AS27+AT27+AU27 -> 0 | AQ27: =П1.30!AS39 -> 0 | AS27: =П1.30!AU39 -> 0 | AT27: =П1.30!AV39 -> 0 | AU27: =П1.30!AW39 -> 0 | AV27: =AW27+AY27+AZ27+BA27 -> 0 | AW27: =П1.30!AY39 -> 0 | AY27: =П1.30!BA39 -> 0 | AZ27: =П1.30!BB39 -> 0 | BA27: =П1.30!BC39 -> 0 | BB27: =BC27+BE27+BF27+BG27 -> 0 | BC27: =П1.30!BE39 -> 0 | BE27: =П1.30!BG39 -> 0 | BF27: =П1.30!BH39 -> 0 | BG27: =П1.30!BI39 -> 0 | BH27: =BI27+BK27+BL27+BM27 -> 0 | BI27: =П1.30!CC39 -> 0 | BK27: =П1.30!CE39 -> 0 | BL27: =П1.30!CF39 -> 0 | BM27: =П1.30!CG39 -> 0 | BN27: =BO27+BQ27+BR27+BS27 -> 0 | BO27: =П1.30!CI39 -> 0 | BQ27: =П1.30!CK39 -> 0 | BR27: =П1.30!CL39 -> 0 | BS27: =П1.30!CM39 -> 0 | BT27: =BU27+BW27+BX27+BY27 -> 0 | BU27: =П1.30!CO39 -> 0 | BW27: =П1.30!CQ39 -> 0 | BX27: =П1.30!CR39 -> 0 | BY27: =П1.30!CS39 -> 0 | BZ27: =SUM(CA27:CE27) -> 0 | CF27: =SUM(CG27:CK27) -> 0 | CL27: =SUM(CM27:CQ27) -> 0 | CR27: =SUM(CS27:CW27) -> 0 | CX27: =SUM(CY27:DC27) -> 0 | DD27: =SUM(DE27:DI27) -> 0 | DJ27: =SUM(DK27:DO27) -> 0 | DP27: =SUM(DQ27:DU27) -> 0 | DV27: =SUM(DW27:EA27) -> 0 | EB27: =SUM(EC27:EG27) -> 0 | EH27: =SUM(EI27:EM27) -> 0 | EN27: =SUM(EO27:ES27) -> 0 | ET27: 0 | EZ27: =FA27+FC27+FD27+FE27 -> 0 | FF27: =FG27+FI27+FJ27+FK27 -> 0 | FL27: =FM27+FO27+FP27+FQ27 -> 0 | FR27: =FS27+FU27+FV27+FW27 -> 0 | FX27: =FY27+GA27+GB27+GC27 -> 0 | GD27: =GE27+GG27+GH27+GI27 -> 0 | GJ27: =GK27+GM27+GN27+GO27 -> 0 | GP27: =GQ27+GS27+GT27+GU27 -> 0 | GV27: =GW27+GY27+GZ27+HA27 -> 0 | HB27: =HC27+HE27+HF27+HG27 -> 0 | HH27: =HI27+HK27+HL27+HM27 -> 0
D28: 2.2 | E28: Относимые на сторонних потребителей | F28: 0.39 | G28: =M28+S28 -> 0.12 | J28: =P28+V28 -> 0.27 | L28: 0.19 | M28: 0.06 | P28: 0.13 | R28: 0.2 | S28: 0.06 | V28: 0.14 | X28: 1.265217 | Y28: =П1.30!I40 -> 0.40883 | AA28: =П1.30!K40 -> 0 | AB28: =П1.30!L40 -> 0.856387 | AC28: =П1.30!M40 -> 0 | AD28: 0.350968 | AE28: =П1.30!O40 -> 0.11452 | AG28: =П1.30!Q40 -> 0 | AH28: =П1.30!R40 -> 0.236448 | AI28: =П1.30!S40 -> 0 | AJ28: 0.914249 | AK28: =П1.30!U40 -> 0.29431 | AM28: =П1.30!W40 -> 0 | AN28: =П1.30!X40 -> 0.619939 | AO28: =П1.30!Y40 -> 0 | AP28: 0.61 | AQ28: =П1.30!AS40 -> 0.2 | AS28: =П1.30!AU40 -> 0 | AT28: =П1.30!AV40 -> 0.41 | AU28: =П1.30!AW40 -> 0 | AV28: 0.3 | AW28: =П1.30!AY40 -> 0.1 | AY28: =П1.30!BA40 -> 0 | AZ28: =П1.30!BB40 -> 0.2 | BA28: =П1.30!BC40 -> 0 | BB28: 0.31 | BC28: =П1.30!BE40 -> 0.1 | BE28: =П1.30!BG40 -> 0 | BF28: =П1.30!BH40 -> 0.21 | BG28: =П1.30!BI40 -> 0 | BH28: 1.8815 | BI28: =П1.30!CC40 -> 0.4139 | BK28: =П1.30!CE40 -> 0 | BL28: =П1.30!CF40 -> 1.4676 | BM28: =П1.30!CG40 -> 0 | BN28: 0.975 | BO28: =П1.30!CI40 -> 0.2145 | BQ28: =П1.30!CK40 -> 0 | BR28: =П1.30!CL40 -> 0.7605 | BS28: =П1.30!CM40 -> 0 | BT28: 0.9065 | BU28: =П1.30!CO40 -> 0.1994 | BW28: =П1.30!CQ40 -> 0 | BX28: =П1.30!CR40 -> 0.7071 | BY28: =П1.30!CS40 -> 0 | BZ28: =SUM(CA28:CE28) -> 0.2 | CA28: 0.07 | CD28: 0.13 | CF28: =SUM(CG28:CK28) -> 0.17 | CG28: 0.06 | CJ28: 0.11 | CL28: =SUM(CM28:CQ28) -> 0.19 | CM28: 0.06 | CP28: 0.13 | CR28: =SUM(CS28:CW28) -> 0.14 | CS28: 0.05 | CV28: 0.09 | CX28: =SUM(CY28:DC28) -> 0.14 | CY28: 0.05 | DB28: 0.09 | DD28: =SUM(DE28:DI28) -> 0.12 | DE28: 0.04 | DH28: 0.08 | DJ28: =SUM(DK28:DO28) -> 0.12 | DK28: 0.04 | DN28: 0.08 | DP28: =SUM(DQ28:DU28) -> 0.12 | DQ28: 0.04 | DT28: 0.08 | DV28: =SUM(DW28:EA28) -> 0.14 | DW28: 0.05 | DZ28: 0.09 | EB28: =SUM(EC28:EG28) -> 0.17 | EC28: 0.06 | EF28: 0.11 | EH28: =SUM(EI28:EM28) -> 0.18 | EI28: 0.06 | EL28: 0.12 | EN28: =SUM(EO28:ES28) -> 0.17 | EO28: 0.06 | ER28: 0.11 | ET28: 1.9 | EU28: =FA28+FG28 -> 0.61 | EX28: =FD28+FJ28 -> 1.29 | EZ28: 0.99 | FA28: 0.32 | FD28: 0.67 | FF28: 0.91 | FG28: 0.29 | FJ28: 0.62 | FL28: 1.93 | FM28: =FS28+FY28 -> 0.62 | FP28: =FV28+GB28 -> 1.31 | FR28: 1 | FS28: 0.32 | FV28: 0.68 | FX28: 0.93 | FY28: 0.3 | GB28: 0.63 | GD28: 1.94 | GE28: =GK28+GQ28 -> 0.62 | GH28: =GN28+GT28 -> 1.32 | GJ28: 1 | GK28: 0.32 | GN28: 0.68 | GP28: 0.94 | GQ28: 0.3 | GT28: 0.64 | GV28: 1.96 | GW28: =HC28+HI28 -> 0.63 | GZ28: =HF28+HL28 -> 1.33 | HB28: 1.02 | HC28: 0.33 | HF28: 0.69 | HH28: 0.94 | HI28: 0.3 | HL28: 0.64
D29: 3 | E29: Расход электроэнергии на производственные и хозяйственные нужды (собственное потребление организаций, для которых оказание услуг по передаче не является основным видом деятельности)* | F29: 0 | L29: 0 | R29: 0 | X29: 0 | Y29: =П1.30!I45 -> 0 | AA29: =П1.30!K45 -> 0 | AB29: =П1.30!L45 -> 0 | AC29: =П1.30!M45 -> 0 | AD29: 0 | AE29: =П1.30!O45 -> 0 | AG29: =П1.30!Q45 -> 0 | AH29: =П1.30!R45 -> 0 | AI29: =П1.30!S45 -> 0 | AJ29: 0 | AK29: =П1.30!U45 -> 0 | AM29: =П1.30!W45 -> 0 | AN29: =П1.30!X45 -> 0 | AO29: =П1.30!Y45 -> 0 | AP29: 0 | AQ29: =AW29+BC29 -> 0 | AS29: =AY29+BE29 -> 0 | AT29: 0 | AU29: 0 | AV29: 0 | AW29: =П1.30!AY45 -> 0 | AY29: =П1.30!BA45 -> 0 | AZ29: =П1.30!BB45 -> 0 | BA29: =П1.30!BC45 -> 0 | BB29: 0 | BC29: =П1.30!BE45 -> 0 | BE29: =П1.30!BG45 -> 0 | BF29: =П1.30!BH45 -> 0 | BG29: =П1.30!BI45 -> 0 | BH29: 0 | BI29: =BO29+BU29 -> 0 | BK29: =BQ29+BW29 -> 0 | BL29: 0 | BM29: 0 | BN29: 0 | BO29: =П1.30!CI45 -> 0 | BQ29: =П1.30!CK45 -> 0 | BR29: =П1.30!CL45 -> 0 | BS29: =П1.30!CM45 -> 0 | BT29: 0 | BU29: =П1.30!CO45 -> 0 | BW29: =П1.30!CQ45 -> 0 | BX29: =П1.30!CR45 -> 0 | BY29: =П1.30!CS45 -> 0 | BZ29: =SUM(CA29:CE29) -> 0 | CF29: =SUM(CG29:CK29) -> 0 | CL29: =SUM(CM29:CQ29) -> 0 | CR29: =SUM(CS29:CW29) -> 0 | CX29: =SUM(CY29:DC29) -> 0 | DD29: =SUM(DE29:DI29) -> 0 | DJ29: =SUM(DK29:DO29) -> 0 | DP29: =SUM(DQ29:DU29) -> 0 | DV29: =SUM(DW29:EA29) -> 0 | EB29: =SUM(EC29:EG29) -> 0 | EH29: =SUM(EI29:EM29) -> 0 | EN29: =SUM(EO29:ES29) -> 0 | ET29: 0 | EZ29: 0 | FF29: 0 | FL29: 0 | FR29: 0 | FX29: 0 | GD29: 0 | GJ29: 0 | GP29: 0 | GV29: 0 | HB29: 0 | HH29: 0
D30: 4 | E30: Полезный отпуск из сети | F30: 39.2773 | G30: =G31+G39+G40 -> 0 | I30: =I31+I39+I40 -> 0 | J30: =J31+J39+J40 -> 28.9496 | K30: =K31+K39+K40 -> 10.3277 | L30: 19.1952 | M30: =M31+M39+M40 -> 0 | O30: =O31+O39+O40 -> 0 | P30: =P31+P39+P40 -> 13.6905 | Q30: =Q31+Q39+Q40 -> 5.5047 | R30: 20.0821 | S30: =S31+S39+S40 -> 0 | U30: =U31+U39+U40 -> 0 | V30: =V31+V39+V40 -> 15.2591 | W30: =W31+W39+W40 -> 4.823 | X30: 45.148302 | Y30: =Y31+Y39+Y40 -> 0 | AA30: =AA31+AA39+AA40 -> 0 | AB30: =AB31+AB39+AB40 -> 32.71364 | AC30: =AC31+AC39+AC40 -> 12.434662 | AD30: 23.395033 | AE30: =AE31+AE39+AE40 -> 0 | AG30: =AG31+AG39+AG40 -> 0 | AH30: =AH31+AH39+AH40 -> 16.585869 | AI30: =AI31+AI39+AI40 -> 6.809164 | AJ30: 21.753269 | AK30: =AK31+AK39+AK40 -> 0 | AM30: =AM31+AM39+AM40 -> 0 | AN30: =AN31+AN39+AN40 -> 16.127771 | AO30: =AO31+AO39+AO40 -> 5.625498 | AP30: 43.95684 | AQ30: =AW30+BC30 -> 0 | AS30: 0 | AT30: 32.13199 | AU30: 11.82485 | AV30: 22.23249 | AW30: =AW31+AW39+AW40 -> 0 | AY30: =AY31+AY39+AY40 -> 0 | AZ30: =AZ31+AZ39+AZ40 -> 15.64586 | BA30: =BA31+BA39+BA40 -> 6.58663 | BB30: 21.72435 | BC30: =BC31+BC39+BC40 -> 0 | BE30: =BE31+BE39+BE40 -> 0 | BF30: =BF31+BF39+BF40 -> 16.48613 | BG30: =BG31+BG39+BG40 -> 5.23822 | BH30: 45.156 | BI30: =BO30+BU30 -> 0 | BK30: 0 | BL30: 32.717 | BM30: 12.439 | BN30: 23.4 | BO30: =BO31+BO39+BO40 -> 0 | BQ30: =BQ31+BQ39+BQ40 -> 0 | BR30: =BR31+BR39+BR40 -> 16.588 | BS30: =BS31+BS39+BS40 -> 6.812 | BT30: 21.756 | BU30: =BU31+BU39+BU40 -> 0 | BW30: =BW31+BW39+BW40 -> 0 | BX30: =BX31+BX39+BX40 -> 16.129 | BY30: =BY31+BY39+BY40 -> 5.627 | BZ30: =CA30+CC30+CD30+CE30 -> 4.901 | CA30: =CA31+CA39+CA40 -> 0 | CC30: =CC31+CC39+CC40 -> 0 | CD30: =CD31+CD39+CD40 -> 3.402 | CE30: =CE31+CE39+CE40 -> 1.499 | CF30: =CG30+CI30+CJ30+CK30 -> 4.154 | CG30: =CG31+CG39+CG40 -> 0 | CI30: =CI31+CI39+CI40 -> 0 | CJ30: =CJ31+CJ39+CJ40 -> 2.888 | CK30: =CK31+CK39+CK40 -> 1.266 | CL30: =CM30+CO30+CP30+CQ30 -> 4.454 | CM30: =CM31+CM39+CM40 -> 0 | CO30: =CO31+CO39+CO40 -> 0 | CP30: =CP31+CP39+CP40 -> 3.023 | CQ30: =CQ31+CQ39+CQ40 -> 1.431 | CR30: =CS30+CU30+CV30+CW30 -> 3.451 | CS30: =CS31+CS39+CS40 -> 0 | CU30: =CU31+CU39+CU40 -> 0 | CV30: =CV31+CV39+CV40 -> 2.504 | CW30: =CW31+CW39+CW40 -> 0.947 | CX30: =CY30+DA30+DB30+DC30 -> 3.47 | CY30: =CY31+CY39+CY40 -> 0 | DA30: =DA31+DA39+DA40 -> 0 | DB30: =DB31+DB39+DB40 -> 2.613 | DC30: =DC31+DC39+DC40 -> 0.857 | DD30: =DE30+DG30+DH30+DI30 -> 2.97 | DE30: =DE31+DE39+DE40 -> 0 | DG30: =DG31+DG39+DG40 -> 0 | DH30: =DH31+DH39+DH40 -> 2.158 | DI30: =DI31+DI39+DI40 -> 0.812 | DJ30: =DK30+DM30+DN30+DO30 -> 2.896 | DK30: =DK31+DK39+DK40 -> 0 | DM30: =DM31+DM39+DM40 -> 0 | DN30: =DN31+DN39+DN40 -> 2.11 | DO30: =DO31+DO39+DO40 -> 0.786 | DP30: =DQ30+DS30+DT30+DU30 -> 2.842 | DQ30: =DQ31+DQ39+DQ40 -> 0 | DS30: =DS31+DS39+DS40 -> 0 | DT30: =DT31+DT39+DT40 -> 2.236 | DU30: =DU31+DU39+DU40 -> 0.606 | DV30: =DW30+DY30+DZ30+EA30 -> 3.468 | DW30: =DW31+DW39+DW40 -> 0 | DY30: =DY31+DY39+DY40 -> 0 | DZ30: =DZ31+DZ39+DZ40 -> 2.492 | EA30: =EA31+EA39+EA40 -> 0.976 | EB30: =EC30+EE30+EF30+EG30 -> 4.133 | EC30: =EC31+EC39+EC40 -> 0 | EE30: =EE31+EE39+EE40 -> 0 | EF30: =EF31+EF39+EF40 -> 3.185 | EG30: =EG31+EG39+EG40 -> 0.948 | EH30: =EI30+EK30+EL30+EM30 -> 4.264 | EI30: =EI31+EI39+EI40 -> 0 | EK30: =EK31+EK39+EK40 -> 0 | EL30: =EL31+EL39+EL40 -> 3.204 | EM30: =EM31+EM39+EM40 -> 1.06 | EN30: =EO30+EQ30+ER30+ES30 -> 4.153 | EO30: =EO31+EO39+EO40 -> 0 | EQ30: =EQ31+EQ39+EQ40 -> 0 | ER30: =ER31+ER39+ER40 -> 2.902 | ES30: =ES31+ES39+ES40 -> 1.251 | ET30: 45.607 | EU30: =EU31+EU39+EU40 -> 0 | EW30: =EW31+EW39+EW40 -> 0 | EX30: =EX31+EX39+EX40 -> 33.044 | EY30: =EY31+EY39+EY40 -> 12.563 | EZ30: 23.634 | FA30: =FA31+FA39+FA40 -> 0 | FC30: =FC31+FC39+FC40 -> 0 | FD30: =FD31+FD39+FD40 -> 16.754 | FE30: =FE31+FE39+FE40 -> 6.88 | FF30: 21.973 | FG30: =FG31+FG39+FG40 -> 0 | FI30: =FI31+FI39+FI40 -> 0 | FJ30: =FJ31+FJ39+FJ40 -> 16.29 | FK30: =FK31+FK39+FK40 -> 5.683 | FL30: 46.064 | FM30: =FM31+FM39+FM40 -> 0 | FO30: =FO31+FO39+FO40 -> 0 | FP30: =FP31+FP39+FP40 -> 33.375 | FQ30: =FQ31+FQ39+FQ40 -> 12.689 | FR30: 23.871 | FS30: =FS31+FS39+FS40 -> 0 | FU30: =FU31+FU39+FU40 -> 0 | FV30: =FV31+FV39+FV40 -> 16.922 | FW30: =FW31+FW39+FW40 -> 6.949 | FX30: 22.193 | FY30: =FY31+FY39+FY40 -> 0 | GA30: =GA31+GA39+GA40 -> 0 | GB30: =GB31+GB39+GB40 -> 16.453 | GC30: =GC31+GC39+GC40 -> 5.74 | GD30: 46.525 | GE30: =GE31+GE39+GE40 -> 0 | GG30: =GG31+GG39+GG40 -> 0 | GH30: =GH31+GH39+GH40 -> 33.709 | GI30: =GI31+GI39+GI40 -> 12.816 | GJ30: 24.11 | GK30: =GK31+GK39+GK40 -> 0 | GM30: =GM31+GM39+GM40 -> 0 | GN30: =GN31+GN39+GN40 -> 17.092 | GO30: =GO31+GO39+GO40 -> 7.018 | GP30: 22.415 | GQ30: =GQ31+GQ39+GQ40 -> 0 | GS30: =GS31+GS39+GS40 -> 0 | GT30: =GT31+GT39+GT40 -> 16.617 | GU30: =GU31+GU39+GU40 -> 5.798 | GV30: 46.99 | GW30: =GW31+GW39+GW40 -> 0 | GY30: =GY31+GY39+GY40 -> 0 | GZ30: =GZ31+GZ39+GZ40 -> 34.046 | HA30: =HA31+HA39+HA40 -> 12.944 | HB30: 24.352 | HC30: =HC31+HC39+HC40 -> 0 | HE30: =HE31+HE39+HE40 -> 0 | HF30: =HF31+HF39+HF40 -> 17.263 | HG30: =HG31+HG39+HG40 -> 7.089 | HH30: 22.638 | HI30: =HI31+HI39+HI40 -> 0 | HK30: =HK31+HK39+HK40 -> 0 | HL30: =HL31+HL39+HL40 -> 16.783 | HM30: =HM31+HM39+HM40 -> 5.855
D31: 4.1 | E31: в т.ч. собственным потребителям | F31: 38.8358 | G31: =G33+G35+G37+G38 -> 0 | I31: =I33+I35+I37+I38 -> 0 | J31: =J33+J35+J37+J38 -> 28.5081 | K31: =K33+K35+K37+K38 -> 10.3277 | L31: 18.9659 | M31: =M33+M35+M37+M38 -> 0 | O31: =O33+O35+O37+O38 -> 0 | P31: =P33+P35+P37+P38 -> 13.4612 | Q31: =Q33+Q35+Q37+Q38 -> 5.5047 | R31: 19.8699 | S31: =S33+S35+S37+S38 -> 0 | U31: =U33+U35+U37+U38 -> 0 | V31: =V33+V35+V37+V38 -> 15.0469 | W31: =W33+W35+W37+W38 -> 4.823 | X31: 44.66963 | Y31: =Y33+Y35+Y37+Y38 -> 0 | AA31: =AA33+AA35+AA37+AA38 -> 0 | AB31: =AB33+AB35+AB37+AB38 -> 32.234968 | AC31: =AC33+AC35+AC37+AC38 -> 12.434662 | AD31: 23.137529 | AE31: =AE33+AE35+AE37+AE38 -> 0 | AG31: =AG33+AG35+AG37+AG38 -> 0 | AH31: =AH33+AH35+AH37+AH38 -> 16.328365 | AI31: =AI33+AI35+AI37+AI38 -> 6.809164 | AJ31: 21.532101 | AK31: =AK33+AK35+AK37+AK38 -> 0 | AM31: =AM33+AM35+AM37+AM38 -> 0 | AN31: =AN33+AN35+AN37+AN38 -> 15.906603 | AO31: =AO33+AO35+AO37+AO38 -> 5.625498 | AP31: 43.47633 | AQ31: 0 | AS31: 0 | AT31: 31.65148 | AU31: 11.82485 | AV31: 21.97498 | AW31: =AW33+AW35+AW37+AW38 -> 0 | AY31: =AY33+AY35+AY37+AY38 -> 0 | AZ31: =AZ33+AZ35+AZ37+AZ38 -> 15.38835 | BA31: =BA33+BA35+BA37+BA38 -> 6.58663 | BB31: 21.50135 | BC31: =BC33+BC35+BC37+BC38 -> 0 | BE31: =BE33+BE35+BE37+BE38 -> 0 | BF31: =BF33+BF35+BF37+BF38 -> 16.26313 | BG31: =BG33+BG35+BG37+BG38 -> 5.23822 | BH31: 44.678 | BI31: 0 | BK31: 0 | BL31: 32.239 | BM31: 12.439 | BN31: 23.143 | BO31: =BO33+BO35+BO37+BO38 -> 0 | BQ31: =BQ33+BQ35+BQ37+BQ38 -> 0 | BR31: =BR33+BR35+BR37+BR38 -> 16.331 | BS31: =BS33+BS35+BS37+BS38 -> 6.812 | BT31: 21.535 | BU31: =BU33+BU35+BU37+BU38 -> 0 | BW31: =BW33+BW35+BW37+BW38 -> 0 | BX31: =BX33+BX35+BX37+BX38 -> 15.908 | BY31: =BY33+BY35+BY37+BY38 -> 5.627 | BZ31: 4.847 | CA31: =CA33+CA35+CA37+CA38 -> 0 | CC31: =CC33+CC35+CC37+CC38 -> 0 | CD31: =CD33+CD35+CD37+CD38 -> 3.348 | CE31: =CE33+CE35+CE37+CE38 -> 1.499 | CF31: 4.111 | CG31: =CG33+CG35+CG37+CG38 -> 0 | CI31: =CI33+CI35+CI37+CI38 -> 0 | CJ31: =CJ33+CJ35+CJ37+CJ38 -> 2.845 | CK31: =CK33+CK35+CK37+CK38 -> 1.266 | CL31: 4.405 | CM31: =CM33+CM35+CM37+CM38 -> 0 | CO31: =CO33+CO35+CO37+CO38 -> 0 | CP31: =CP33+CP35+CP37+CP38 -> 2.974 | CQ31: =CQ33+CQ35+CQ37+CQ38 -> 1.431 | CR31: 3.414 | CS31: =CS33+CS35+CS37+CS38 -> 0 | CU31: =CU33+CU35+CU37+CU38 -> 0 | CV31: =CV33+CV35+CV37+CV38 -> 2.467 | CW31: =CW33+CW35+CW37+CW38 -> 0.947 | CX31: 3.438 | CY31: =CY33+CY35+CY37+CY38 -> 0 | DA31: =DA33+DA35+DA37+DA38 -> 0 | DB31: =DB33+DB35+DB37+DB38 -> 2.581 | DC31: =DC33+DC35+DC37+DC38 -> 0.857 | DD31: 2.928 | DE31: =DE33+DE35+DE37+DE38 -> 0 | DG31: =DG33+DG35+DG37+DG38 -> 0 | DH31: =DH33+DH35+DH37+DH38 -> 2.116 | DI31: =DI33+DI35+DI37+DI38 -> 0.812 | DJ31: 2.864 | DK31: =DK33+DK35+DK37+DK38 -> 0 | DM31: =DM33+DM35+DM37+DM38 -> 0 | DN31: =DN33+DN35+DN37+DN38 -> 2.078 | DO31: =DO33+DO35+DO37+DO38 -> 0.786 | DP31: 2.803 | DQ31: =DQ33+DQ35+DQ37+DQ38 -> 0 | DS31: =DS33+DS35+DS37+DS38 -> 0 | DT31: =DT33+DT35+DT37+DT38 -> 2.197 | DU31: =DU33+DU35+DU37+DU38 -> 0.606 | DV31: 3.431 | DW31: =DW33+DW35+DW37+DW38 -> 0 | DY31: =DY33+DY35+DY37+DY38 -> 0 | DZ31: =DZ33+DZ35+DZ37+DZ38 -> 2.455 | EA31: =EA33+EA35+EA37+EA38 -> 0.976 | EB31: 4.095 | EC31: =EC33+EC35+EC37+EC38 -> 0 | EE31: =EE33+EE35+EE37+EE38 -> 0 | EF31: =EF33+EF35+EF37+EF38 -> 3.147 | EG31: =EG33+EG35+EG37+EG38 -> 0.948 | EH31: 4.228 | EI31: =EI33+EI35+EI37+EI38 -> 0 | EK31: =EK33+EK35+EK37+EK38 -> 0 | EL31: =EL33+EL35+EL37+EL38 -> 3.168 | EM31: =EM33+EM35+EM37+EM38 -> 1.06 | EN31: 4.114 | EO31: =EO33+EO35+EO37+EO38 -> 0 | EQ31: =EQ33+EQ35+EQ37+EQ38 -> 0 | ER31: =ER33+ER35+ER37+ER38 -> 2.863 | ES31: =ES33+ES35+ES37+ES38 -> 1.251 | ET31: 45.124 | EU31: =EU33+EU35+EU37+EU38 -> 0 | EW31: =EW33+EW35+EW37+EW38 -> 0 | EX31: =EX33+EX35+EX37+EX38 -> 32.561 | EY31: =EY33+EY35+EY37+EY38 -> 12.563 | EZ31: 23.374 | FA31: =FA33+FA35+FA37+FA38 -> 0 | FC31: =FC33+FC35+FC37+FC38 -> 0 | FD31: =FD33+FD35+FD37+FD38 -> 16.494 | FE31: =FE33+FE35+FE37+FE38 -> 6.88 | FF31: 21.75 | FG31: =FG33+FG35+FG37+FG38 -> 0 | FI31: =FI33+FI35+FI37+FI38 -> 0 | FJ31: =FJ33+FJ35+FJ37+FJ38 -> 16.067 | FK31: =FK33+FK35+FK37+FK38 -> 5.683 | FL31: 45.576 | FM31: =FM33+FM35+FM37+FM38 -> 0 | FO31: =FO33+FO35+FO37+FO38 -> 0 | FP31: =FP33+FP35+FP37+FP38 -> 32.887 | FQ31: =FQ33+FQ35+FQ37+FQ38 -> 12.689 | FR31: 23.608 | FS31: =FS33+FS35+FS37+FS38 -> 0 | FU31: =FU33+FU35+FU37+FU38 -> 0 | FV31: =FV33+FV35+FV37+FV38 -> 16.659 | FW31: =FW33+FW35+FW37+FW38 -> 6.949 | FX31: 21.968 | FY31: =FY33+FY35+FY37+FY38 -> 0 | GA31: =GA33+GA35+GA37+GA38 -> 0 | GB31: =GB33+GB35+GB37+GB38 -> 16.228 | GC31: =GC33+GC35+GC37+GC38 -> 5.74 | GD31: 46.032 | GE31: =GE33+GE35+GE37+GE38 -> 0 | GG31: =GG33+GG35+GG37+GG38 -> 0 | GH31: =GH33+GH35+GH37+GH38 -> 33.216 | GI31: =GI33+GI35+GI37+GI38 -> 12.816 | GJ31: 23.844 | GK31: =GK33+GK35+GK37+GK38 -> 0 | GM31: =GM33+GM35+GM37+GM38 -> 0 | GN31: =GN33+GN35+GN37+GN38 -> 16.826 | GO31: =GO33+GO35+GO37+GO38 -> 7.018 | GP31: 22.188 | GQ31: =GQ33+GQ35+GQ37+GQ38 -> 0 | GS31: =GS33+GS35+GS37+GS38 -> 0 | GT31: =GT33+GT35+GT37+GT38 -> 16.39 | GU31: =GU33+GU35+GU37+GU38 -> 5.798 | GV31: 46.492 | GW31: =GW33+GW35+GW37+GW38 -> 0 | GY31: =GY33+GY35+GY37+GY38 -> 0 | GZ31: =GZ33+GZ35+GZ37+GZ38 -> 33.548 | HA31: =HA33+HA35+HA37+HA38 -> 12.944 | HB31: 24.083 | HC31: =HC33+HC35+HC37+HC38 -> 0 | HE31: =HE33+HE35+HE37+HE38 -> 0 | HF31: =HF33+HF35+HF37+HF38 -> 16.994 | HG31: =HG33+HG35+HG37+HG38 -> 7.089 | HH31: 22.409 | HI31: =HI33+HI35+HI37+HI38 -> 0 | HK31: =HK33+HK35+HK37+HK38 -> 0 | HL31: =HL33+HL35+HL37+HL38 -> 16.554 | HM31: =HM33+HM35+HM37+HM38 -> 5.855
E32: из них, потребителям, присоединенным к центру питания на генераторном напряжении | F32: 0 | L32: 0 | R32: 0 | X32: 0 | AD32: 0 | AJ32: 0 | AP32: 0 | AQ32: 0 | AS32: 0 | AT32: 0 | AU32: 0 | AV32: 0 | BB32: 0 | BH32: 0 | BI32: 0 | BK32: 0 | BL32: 0 | BM32: 0 | BN32: 0 | BO32: =CA32+CG32+CM32+CS32+CY32+DE32 -> 0 | BQ32: 0 | BR32: 0 | BS32: 0 | BT32: 0 | BU32: =DK32+DQ32+DW32+EC32+EI32+EO32 -> 0 | BW32: 0 | BX32: 0 | BY32: 0 | BZ32: 0 | CF32: 0 | CL32: 0 | CR32: 0 | CX32: 0 | DD32: 0 | DJ32: 0 | DP32: 0 | DV32: 0 | EB32: 0 | EH32: 0 | EN32: 0 | ET32: 0 | EZ32: 0 | FF32: 0 | FL32: 0 | FR32: 0 | FX32: 0 | GD32: 0 | GJ32: 0 | GP32: 0 | GV32: 0 | HB32: 0 | HH32: 0
D33: 4.1.1 | E33: ГП, участнику ОРЭМ | F33: 0 | L33: 0 | R33: 0 | X33: 0 | AD33: 0 | AJ33: 0 | AP33: 0 | AQ33: 0 | AS33: 0 | AT33: 0 | AU33: 0 | AV33: 0 | BB33: 0 | BH33: 0 | BI33: 0 | BK33: 0 | BL33: 0 | BM33: 0 | BN33: 0 | BO33: 0 | BQ33: 0 | BR33: 0 | BS33: 0 | BT33: 0 | BU33: 0 | BW33: 0 | BX33: 0 | BY33: 0 | BZ33: 0 | CF33: 0 | CL33: 0 | CR33: 0 | CX33: 0 | DD33: 0 | DJ33: 0 | DP33: 0 | DV33: 0 | EB33: 0 | EH33: 0 | EN33: 0 | ET33: 0 | EZ33: 0 | FF33: 0 | FL33: 0 | FR33: 0 | FX33: 0 | GD33: 0 | GJ33: 0 | GP33: 0 | GV33: 0 | HB33: 0 | HH33: 0
E34: - по договору "последней мили" | F34: 0 | L34: 0 | R34: 0 | X34: 0 | AD34: 0 | AJ34: 0 | AP34: 0 | AQ34: 0 | AS34: 0 | AT34: 0 | AU34: 0 | AV34: 0 | BB34: 0 | BH34: 0 | BI34: 0 | BK34: 0 | BL34: 0 | BM34: 0 | BN34: 0 | BO34: 0 | BQ34: 0 | BR34: 0 | BS34: 0 | BT34: 0 | BU34: 0 | BW34: 0 | BX34: 0 | BY34: 0 | BZ34: 0 | CF34: 0 | CL34: 0 | CR34: 0 | CX34: 0 | DD34: 0 | DJ34: 0 | DP34: 0 | DV34: 0 | EB34: 0 | EH34: 0 | EN34: 0 | ET34: 0 | EZ34: 0 | FF34: 0 | FL34: 0 | FR34: 0 | FX34: 0 | GD34: 0 | GJ34: 0 | GP34: 0 | GV34: 0 | HB34: 0 | HH34: 0
D35: 4.1.2 | E35: ЭСО, участнику ОРЭМ | F35: 0 | L35: 0 | R35: 0 | X35: 0 | AD35: 0 | AJ35: 0 | AP35: 0 | AQ35: 0 | AS35: 0 | AT35: 0 | AU35: 0 | AV35: 0 | BB35: 0 | BH35: 0 | BI35: 0 | BK35: 0 | BL35: 0 | BM35: 0 | BN35: 0 | BO35: 0 | BQ35: 0 | BR35: 0 | BS35: 0 | BT35: 0 | BU35: 0 | BW35: 0 | BX35: 0 | BY35: 0 | BZ35: 0 | CF35: 0 | CL35: 0 | CR35: 0 | CX35: 0 | DD35: 0 | DJ35: 0 | DP35: 0 | DV35: 0 | EB35: 0 | EH35: 0 | EN35: 0 | ET35: 0 | EZ35: 0 | FF35: 0 | FL35: 0 | FR35: 0 | FX35: 0 | GD35: 0 | GJ35: 0 | GP35: 0 | GV35: 0 | HB35: 0 | HH35: 0
E36: - по договору "последней мили" | F36: 0 | L36: 0 | R36: 0 | X36: 0 | AD36: 0 | AJ36: 0 | AP36: 0 | AQ36: 0 | AS36: 0 | AT36: 0 | AU36: 0 | AV36: 0 | BB36: 0 | BH36: 0 | BI36: 0 | BK36: 0 | BL36: 0 | BM36: 0 | BN36: 0 | BO36: 0 | BQ36: 0 | BR36: 0 | BS36: 0 | BT36: 0 | BU36: 0 | BW36: 0 | BX36: 0 | BY36: 0 | BZ36: 0 | CF36: 0 | CL36: 0 | CR36: 0 | CX36: 0 | DD36: 0 | DJ36: 0 | DP36: 0 | DV36: 0 | EB36: 0 | EH36: 0 | EN36: 0 | ET36: 0 | EZ36: 0 | FF36: 0 | FL36: 0 | FR36: 0 | FX36: 0 | GD36: 0 | GJ36: 0 | GP36: 0 | GV36: 0 | HB36: 0 | HH36: 0
D37: 4.1.3 | E37: сбытовым компаниям, не имеющим статус ГП | F37: 0 | L37: 0 | R37: 0 | X37: 0 | AD37: 0 | AJ37: 0 | AP37: 0 | AQ37: 0 | AS37: 0 | AT37: 0 | AU37: 0 | AV37: 0 | BB37: 0 | BH37: 0 | BI37: 0 | BK37: 0 | BL37: 0 | BM37: 0 | BN37: 0 | BO37: 0 | BQ37: 0 | BR37: 0 | BS37: 0 | BT37: 0 | BU37: 0 | BW37: 0 | BX37: 0 | BY37: 0 | BZ37: 0 | CF37: 0 | CL37: 0 | CR37: 0 | CX37: 0 | DD37: 0 | DJ37: 0 | DP37: 0 | DV37: 0 | EB37: 0 | EH37: 0 | EN37: 0 | ET37: 0 | EZ37: 0 | FF37: 0 | FL37: 0 | FR37: 0 | FX37: 0 | GD37: 0 | GJ37: 0 | GP37: 0 | GV37: 0 | HB37: 0 | HH37: 0
D38: 4.1.4 | E38: потребителям, заключившим прямые договоры на услуги по передаче | F38: =G38+I38+J38+K38 -> 38.8358 | J38: =P38+V38 -> 28.5081 | K38: =Q38+W38 -> 10.3277 | L38: 18.9659 | P38: =(2600+2411.5+2220.7+1913.4+1767.4+1829.6+142.9+152.7+124.4+94.4+99.4+104.8)/1000 -> 13.4612 | Q38: =(220.3+235.2+189.8+133.4+122.5+109.2+834.5+853.8+940.4+719+666.8+479.8)/1000 -> 5.5047 | R38: 19.8699 | V38: =(1868.3+1940.1+2162.8+2824.5+2800+2800+92.7+101.3+109+104.6+105.6+138)/1000 -> 15.0469 | W38: =(96.7+99.5+130.8+157.6+181.8+220+542.8+519.6+589.4+672.6+747+865.2)/1000 -> 4.823 | X38: =Y38+AA38+AB38+AC38 -> 44.66963 | AB38: =AH38+AN38 -> 32.234968 | AC38: =AI38+AO38 -> 12.434662 | AD38: 23.137529 | AH38: =16328.365/1000 -> 16.328365 | AI38: =6809.164/1000 -> 6.809164 | AJ38: 21.532101 | AN38: =15906.603/1000 -> 15.906603 | AO38: =5625.498/1000 -> 5.625498 | AP38: =AQ38+AS38+AT38+AU38 -> 43.47633 | AQ38: 0 | AS38: 0 | AT38: 31.65148 | AU38: 11.82485 | AV38: 21.97498 | AZ38: 15.38835 | BA38: 6.58663 | BB38: 21.50135 | BF38: 16.26313 | BG38: 5.23822 | BH38: =BI38+BK38+BL38+BM38 -> 44.678 | BI38: 0 | BK38: 0 | BL38: 32.239 | BM38: 12.439 | BN38: =BO38+BQ38+BR38+BS38 -> 23.143 | BO38: 0 | BQ38: 0 | BR38: 16.331 | BS38: 6.812 | BT38: =BU38+BW38+BX38+BY38 -> 21.535 | BU38: =DK38+DQ38+DW38+EC38+EI38+EO38 -> 0 | BW38: 0 | BX38: 15.908 | BY38: 5.627 | BZ38: 4.847 | CD38: 3.348 | CE38: 1.499 | CF38: 4.111 | CJ38: 2.845 | CK38: 1.266 | CL38: 4.405 | CP38: 2.974 | CQ38: 1.431 | CR38: 3.414 | CV38: 2.467 | CW38: 0.947 | CX38: 3.438 | DB38: 2.581 | DC38: 0.857 | DD38: 2.928 | DH38: 2.116 | DI38: 0.812 | DJ38: 2.864 | DN38: 2.078 | DO38: 0.786 | DP38: 2.803 | DT38: 2.197 | DU38: 0.606 | DV38: 3.431 | DZ38: 2.455 | EA38: 0.976 | EB38: 4.095 | EF38: 3.147 | EG38: 0.948 | EH38: 4.228 | EL38: 3.168 | EM38: 1.06 | EN38: 4.114 | ER38: 2.863 | ES38: 1.251 | ET38: =EU38+EW38+EX38+EY38 -> 45.124 | EX38: =FD38+FJ38 -> 32.561 | EY38: =FE38+FK38 -> 12.563 | EZ38: =FA38+FC38+FD38+FE38 -> 23.374 | FD38: 16.494 | FE38: 6.88 | FF38: =FG38+FI38+FJ38+FK38 -> 21.75 | FJ38: 16.067 | FK38: 5.683 | FL38: =FM38+FO38+FP38+FQ38 -> 45.576 | FP38: =FV38+GB38 -> 32.887 | FQ38: =FW38+GC38 -> 12.689 | FR38: =FS38+FU38+FV38+FW38 -> 23.608 | FV38: 16.659 | FW38: 6.949 | FX38: =FY38+GA38+GB38+GC38 -> 21.968 | GB38: 16.228 | GC38: 5.74 | GD38: =GE38+GG38+GH38+GI38 -> 46.032 | GH38: =GN38+GT38 -> 33.216 | GI38: =GO38+GU38 -> 12.816 | GJ38: =GK38+GM38+GN38+GO38 -> 23.844 | GN38: 16.826 | GO38: 7.018 | GP38: =GQ38+GS38+GT38+GU38 -> 22.188 | GT38: 16.39 | GU38: 5.798 | GV38: =GW38+GY38+GZ38+HA38 -> 46.492 | GZ38: =HF38+HL38 -> 33.548 | HA38: =HG38+HM38 -> 12.944 | HB38: =HC38+HE38+HF38+HG38 -> 24.083 | HF38: 16.994 | HG38: 7.089 | HH38: =HI38+HK38+HL38+HM38 -> 22.409 | HL38: 16.554 | HM38: 5.855
D39: 4.2 | E39: переток в сопредельные регионы | F39: 0 | L39: 0 | R39: 0 | X39: 0 | Y39: =П1.30!I65 -> 0 | AA39: =П1.30!K65 -> 0 | AB39: =П1.30!L65 -> 0 | AC39: =П1.30!M65 -> 0 | AD39: 0 | AE39: =П1.30!O65 -> 0 | AG39: =П1.30!Q65 -> 0 | AH39: =П1.30!R65 -> 0 | AI39: =П1.30!S65 -> 0 | AJ39: 0 | AK39: =П1.30!U65 -> 0 | AM39: =П1.30!W65 -> 0 | AN39: =П1.30!X65 -> 0 | AO39: =П1.30!Y65 -> 0 | AP39: =AQ39+AS39+AT39+AU39 -> 0 | AQ39: 0 | AS39: 0 | AT39: 0 | AU39: 0 | AV39: 0 | AW39: =П1.30!AY68 -> 0 | AY39: =П1.30!BA68 -> 0 | AZ39: =П1.30!BB68 -> 0 | BA39: =П1.30!BC68 -> 0 | BB39: 0 | BC39: =П1.30!BE68 -> 0 | BE39: =П1.30!BG68 -> 0 | BF39: =П1.30!BH68 -> 0 | BG39: =П1.30!BI68 -> 0 | BH39: 0 | BI39: 0 | BK39: 0 | BL39: 0 | BM39: 0 | BN39: =BO39+BQ39+BR39+BS39 -> 0 | BO39: 0 | BQ39: 0 | BR39: 0 | BS39: 0 | BT39: =BU39+BW39+BX39+BY39 -> 0 | BU39: =DK39+DQ39+DW39+EC39+EI39+EO39 -> 0 | BW39: =DM39+DS39+DY39+EE39+EK39+EQ39 -> 0 | BX39: 0 | BY39: 0 | BZ39: 0 | CF39: 0 | CL39: 0 | CR39: 0 | CX39: 0 | DD39: 0 | DJ39: 0 | DP39: 0 | DV39: 0 | EB39: 0 | EH39: 0 | EN39: 0 | ET39: 0 | EZ39: =FA39+FC39+FD39+FE39 -> 0 | FF39: =FG39+FI39+FJ39+FK39 -> 0 | FL39: =FM39+FO39+FP39+FQ39 -> 0 | FR39: =FS39+FU39+FV39+FW39 -> 0 | FX39: =FY39+GA39+GB39+GC39 -> 0 | GD39: =GE39+GG39+GH39+GI39 -> 0 | GJ39: =GK39+GM39+GN39+GO39 -> 0 | GP39: =GQ39+GS39+GT39+GU39 -> 0 | GV39: =GW39+GY39+GZ39+HA39 -> 0 | HB39: =HC39+HE39+HF39+HG39 -> 0 | HH39: =HI39+HK39+HL39+HM39 -> 0
D40: 4.3 | E40: переток в другие организации | F40: =G40+I40+J40+K40 -> 0.4415 | J40: =P40+V40 -> 0.4415 | L40: 0.2293 | P40: =(49.9+46.1+45.3+37.6+27.9+22.5)/1000 -> 0.2293 | R40: 0.2122 | V40: =(19.8+23.6+30.6+42.6+47.8+47.8)/1000 -> 0.2122 | X40: =Y40+AA40+AB40+AC40 -> 0.478672 | Y40: =П1.30!I49+П1.30!I53 -> 0 | AA40: =П1.30!K49+П1.30!K53 -> 0 | AB40: =П1.30!L49+П1.30!L53 -> 0.478672 | AC40: =П1.30!M49+П1.30!M53 -> 0 | AD40: 0.257504 | AE40: =П1.30!O49+П1.30!O53 -> 0 | AG40: =П1.30!Q49+П1.30!Q53 -> 0 | AH40: =П1.30!R49+П1.30!R53 -> 0.257504 | AI40: =П1.30!S49+П1.30!S53 -> 0 | AJ40: 0.221168 | AK40: =П1.30!U49+П1.30!U53 -> 0 | AM40: =П1.30!W49+П1.30!W53 -> 0 | AN40: =П1.30!X49+П1.30!X53 -> 0.221168 | AO40: =П1.30!Y49+П1.30!Y53 -> 0 | AP40: =AQ40+AS40+AT40+AU40 -> 0.48051 | AQ40: 0 | AS40: 0 | AT40: 0.48051 | AU40: 0 | AV40: 0.25751 | AW40: =П1.30!AY49+П1.30!AY53 -> 0 | AY40: =П1.30!BA49+П1.30!BA53 -> 0 | AZ40: =П1.30!BB49+П1.30!BB53 -> 0.25751 | BA40: =П1.30!BC49+П1.30!BC53 -> 0 | BB40: 0.223 | BC40: =П1.30!BE49+П1.30!BE53 -> 0 | BE40: =П1.30!BG49+П1.30!BG53 -> 0 | BF40: =П1.30!BH49+П1.30!BH53 -> 0.223 | BG40: =П1.30!BI49+П1.30!BI53 -> 0 | BH40: =BI40+BK40+BL40+BM40 -> 0.478 | BI40: 0 | BK40: 0 | BL40: 0.478 | BM40: 0 | BN40: =BO40+BQ40+BR40+BS40 -> 0.257 | BO40: 0 | BQ40: 0 | BR40: 0.257 | BS40: 0 | BT40: =BU40+BW40+BX40+BY40 -> 0.221 | BU40: =DK40+DQ40+DW40+EC40+EI40+EO40 -> 0 | BW40: 0 | BX40: 0.221 | BY40: 0 | BZ40: 0.054 | CD40: 0.054 | CF40: 0.043 | CJ40: 0.043 | CL40: =$BN40/6 -> 0.04283333333 | CP40: 0.049 | CR40: 0.037 | CV40: 0.037 | CX40: =$BN40/6 -> 0.04283333333 | DB40: 0.032 | DD40: 0.042 | DH40: 0.042 | DJ40: 0.032 | DN40: 0.032 | DP40: 0.039 | DT40: 0.039 | DV40: 0.037 | DZ40: 0.037 | EB40: 0.038 | EF40: 0.038 | EH40: 0.036 | EL40: 0.036 | EN40: 0.039 | ER40: 0.039 | ET40: =EU40+EW40+EX40+EY40 -> 0.483 | EX40: =FD40+FJ40 -> 0.483 | EZ40: =FA40+FC40+FD40+FE40 -> 0.26 | FD40: 0.26 | FF40: =FG40+FI40+FJ40+FK40 -> 0.223 | FJ40: 0.223 | FL40: =FM40+FO40+FP40+FQ40 -> 0.488 | FP40: =FV40+GB40 -> 0.488 | FR40: =FS40+FU40+FV40+FW40 -> 0.263 | FV40: 0.263 | FX40: =FY40+GA40+GB40+GC40 -> 0.225 | GB40: 0.225 | GD40: =GE40+GG40+GH40+GI40 -> 0.493 | GH40: =GN40+GT40 -> 0.493 | GJ40: =GK40+GM40+GN40+GO40 -> 0.266 | GN40: 0.266 | GP40: =GQ40+GS40+GT40+GU40 -> 0.227 | GT40: 0.227 | GV40: =GW40+GY40+GZ40+HA40 -> 0.498 | GZ40: =HF40+HL40 -> 0.498 | HB40: =HC40+HE40+HF40+HG40 -> 0.269 | HF40: 0.269 | HH40: =HI40+HK40+HL40+HM40 -> 0.229 | HL40: 0.229
D41: 5 | E41: Небаланс | F41: =G41+I41+J41+K41 -> -0.0041 | G41: =G15-F17-G25-G29-G30 -> -7.771561172e-16 | I41: =I15-F18-I25-I29-I30 -> 0 | J41: =J15-F19-J25-J29-J30 -> 0 | K41: =K15-K25-K29-K30 -> -0.0041 | L41: 0.0008 | M41: =M15-L17-M25-M29-M30 -> -3.885780586e-16 | O41: =O15-L18-O25-O29-O30 -> 0 | P41: =P15-L19-P25-P29-P30 -> 0 | Q41: =Q15-Q25-Q29-Q30 -> 0.0008 | R41: -0.0049 | S41: =S15-R17-S25-S29-S30 -> 4.996003611e-16 | U41: =U15-R18-U25-U29-U30 -> 0 | V41: =V15-R19-V25-V29-V30 -> 0 | W41: =W15-W25-W29-W30 -> -0.0049 | X41: =Y41+AA41+AB41+AC41 -> 0.00522 | Y41: =Y15-X17-Y25-Y29-Y30 -> 0.00883 | AA41: =AA15-X18-AA25-AA29-AA30 -> 0 | AB41: =AB15-X19-AB25-AB29-AB30 -> -0.003613 | AC41: =AC15-AC25-AC29-AC30 -> 3.000000008e-06 | AD41: 0.000971 | AE41: =AE15-AD17-AE25-AE29-AE30 -> 0.00452 | AG41: =AG15-AD18-AG25-AG29-AG30 -> 0 | AH41: =AH15-AD19-AH25-AH29-AH30 -> -0.003552 | AI41: =AI15-AI25-AI29-AI30 -> 2.999999994e-06 | AJ41: 0.004249 | AK41: =AK15-AJ17-AK25-AK29-AK30 -> 0.00431 | AM41: =AM15-AJ18-AM25-AM29-AM30 -> 0 | AN41: =AN15-AJ19-AN25-AN29-AN30 -> -6.1e-05 | AO41: =AO15-AO25-AO29-AO30 -> 0 | AP41: =AQ41+AS41+AT41+AU41 -> -0.00184 | AQ41: -7.21644966e-16 | AS41: 0 | AT41: -2e-05 | AU41: -0.00182 | AV41: -0.00149 | AW41: =AW15-AV17-AW25-AW29-AW30 -> -3.60822483e-16 | AY41: =AY15-AV18-AY25-AY29-AY30 -> 0 | AZ41: =AZ15-AV19-AZ25-AZ29-AZ30 -> -4e-05 | BA41: =BA15-BA25-BA29-BA30 -> -0.00145 | BB41: -0.00035 | BC41: =BC15-BB17-BC25-BC29-BC30 -> -3.60822483e-16 | BE41: =BE15-BB18-BE25-BE29-BE30 -> 0 | BF41: =BF15-BB19-BF25-BF29-BF30 -> 2e-05 | BG41: =BG15-BG25-BG29-BG30 -> -0.00037 | BH41: =BI41+BK41+BL41+BM41 -> -47.0375 | BI41: 0.2261 | BK41: 0 | BL41: -0.2476 | BM41: -47.016 | BN41: =BO41+BQ41+BR41+BS41 -> -24.375 | BO41: =BO15-BN17-BO25-BO29-BO30 -> 0.1155 | BQ41: =BQ15-BN18-BQ25-BQ29-BQ30 -> 0 | BR41: =BR15-BN19-BR25-BR29-BR30 -> -0.1305 | BS41: =BS15-BP18-BS25-BS29-BS30 -> -24.36 | BT41: =BU41+BW41+BX41+BY41 -> -22.6625 | BU41: =BU15-BT17-BU25-BU29-BU30 -> 0.1106 | BW41: =BW15-BT18-BW25-BW29-BW30 -> 0 | BX41: =BX15-BT19-BX25-BX29-BX30 -> -0.1171 | BY41: =BY15-BV18-BY25-BY29-BY30 -> -22.656 | BZ41: =CA41+CC41+CD41+CE41 -> -5.101 | CA41: =CA15-BZ17-CA25-CA29-CA30 -> 0 | CC41: =CC15-BZ18-CC25-CC29-CC30 -> 0 | CD41: =CD15-BZ19-CD25-CD29-CD30 -> 0 | CE41: =CE15-CE25-CE29-CE30 -> -5.101 | CF41: =CG41+CI41+CJ41+CK41 -> -4.324 | CG41: =CG15-CF17-CG25-CG29-CG30 -> 0 | CI41: =CI15-CF18-CI25-CI29-CI30 -> 0 | CJ41: =CJ15-CF19-CJ25-CJ29-CJ30 -> 0 | CK41: =CK15-CK25-CK29-CK30 -> -4.324 | CL41: =CM41+CO41+CP41+CQ41 -> -4.644 | CM41: =CM15-CL17-CM25-CM29-CM30 -> 0 | CO41: =CO15-CL18-CO25-CO29-CO30 -> 0 | CP41: =CP15-CL19-CP25-CP29-CP30 -> 0 | CQ41: =CQ15-CQ25-CQ29-CQ30 -> -4.644 | CR41: =CS41+CU41+CV41+CW41 -> -3.591 | CS41: =CS15-CR17-CS25-CS29-CS30 -> 0 | CU41: =CU15-CR18-CU25-CU29-CU30 -> 0 | CV41: =CV15-CR19-CV25-CV29-CV30 -> 0 | CW41: =CW15-CW25-CW29-CW30 -> -3.591 | CX41: =CY41+DA41+DB41+DC41 -> -3.61 | CY41: =CY15-CX17-CY25-CY29-CY30 -> 0 | DA41: =DA15-CX18-DA25-DA29-DA30 -> 0 | DB41: =DB15-CX19-DB25-DB29-DB30 -> 0 | DC41: =DC15-DC25-DC29-DC30 -> -3.61 | DD41: =DE41+DG41+DH41+DI41 -> -3.09 | DE41: =DE15-DD17-DE25-DE29-DE30 -> 0 | DG41: =DG15-DD18-DG25-DG29-DG30 -> 0 | DH41: =DH15-DD19-DH25-DH29-DH30 -> 0 | DI41: =DI15-DI25-DI29-DI30 -> -3.09 | DJ41: =DK41+DM41+DN41+DO41 -> -3.016 | DK41: =DK15-DJ17-DK25-DK29-DK30 -> 0 | DM41: =DM15-DJ18-DM25-DM29-DM30 -> 0 | DN41: =DN15-DJ19-DN25-DN29-DN30 -> 0 | DO41: =DO15-DO25-DO29-DO30 -> -3.016 | DP41: =DQ41+DS41+DT41+DU41 -> -2.962 | DQ41: =DQ15-DP17-DQ25-DQ29-DQ30 -> 0 | DS41: =DS15-DP18-DS25-DS29-DS30 -> 0 | DT41: =DT15-DP19-DT25-DT29-DT30 -> 0 | DU41: =DU15-DU25-DU29-DU30 -> -2.962 | DV41: =DW41+DY41+DZ41+EA41 -> -3.608 | DW41: =DW15-DV17-DW25-DW29-DW30 -> 0 | DY41: =DY15-DV18-DY25-DY29-DY30 -> 0 | DZ41: =DZ15-DV19-DZ25-DZ29-DZ30 -> 0 | EA41: =EA15-EA25-EA29-EA30 -> -3.608 | EB41: =EC41+EE41+EF41+EG41 -> -4.303 | EC41: =EC15-EB17-EC25-EC29-EC30 -> 0 | EE41: =EE15-EB18-EE25-EE29-EE30 -> 0 | EF41: =EF15-EB19-EF25-EF29-EF30 -> 0 | EG41: =EG15-EG25-EG29-EG30 -> -4.303 | EH41: =EI41+EK41+EL41+EM41 -> -4.444 | EI41: =EI15-EH17-EI25-EI29-EI30 -> 0 | EK41: =EK15-EH18-EK25-EK29-EK30 -> 0 | EL41: =EL15-EH19-EL25-EL29-EL30 -> 0 | EM41: =EM15-EM25-EM29-EM30 -> -4.444 | EN41: =EO41+EQ41+ER41+ES41 -> -4.323 | EO41: =EO15-EN17-EO25-EO29-EO30 -> 0 | EQ41: =EQ15-EN18-EQ25-EQ29-EQ30 -> 0 | ER41: =ER15-EN19-ER25-ER29-ER30 -> 0 | ES41: =ES15-ES25-ES29-ES30 -> -4.323 | ET41: =EU41+EW41+EX41+EY41 -> -47.507 | EU41: =EU15-ET17-EU25-EU29-EU30 -> 0 | EW41: =EW15-ET18-EW25-EW29-EW30 -> 0 | EX41: =EX15-ET19-EX25-EX29-EX30 -> 0 | EY41: =EY15-EY25-EY29-EY30 -> -47.507 | EZ41: =FA41+FC41+FD41+FE41 -> -24.624 | FA41: =FA15-EZ17-FA25-FA29-FA30 -> 0 | FC41: =FC15-EZ18-FC25-FC29-FC30 -> 0 | FD41: =FD15-EZ19-FD25-FD29-FD30 -> 0 | FE41: =FE15-FE25-FE29-FE30 -> -24.624 | FF41: =FG41+FI41+FJ41+FK41 -> -22.883 | FG41: =FG15-FF17-FG25-FG29-FG30 -> 0 | FI41: =FI15-FF18-FI25-FI29-FI30 -> 0 | FJ41: =FJ15-FF19-FJ25-FJ29-FJ30 -> 0 | FK41: =FK15-FK25-FK29-FK30 -> -22.883 | FL41: =FM41+FO41+FP41+FQ41 -> -47.994 | FM41: =FM15-FL17-FM25-FM29-FM30 -> 0 | FO41: =FO15-FL18-FO25-FO29-FO30 -> 0 | FP41: =FP15-FL19-FP25-FP29-FP30 -> 0 | FQ41: =FQ15-FQ25-FQ29-FQ30 -> -47.994 | FR41: =FS41+FU41+FV41+FW41 -> -24.871 | FS41: =FS15-FR17-FS25-FS29-FS30 -> 0 | FU41: =FU15-FR18-FU25-FU29-FU30 -> 0 | FV41: =FV15-FR19-FV25-FV29-FV30 -> 0 | FW41: =FW15-FW25-FW29-FW30 -> -24.871 | FX41: =FY41+GA41+GB41+GC41 -> -23.123 | FY41: =FY15-FX17-FY25-FY29-FY30 -> 0 | GA41: =GA15-FX18-GA25-GA29-GA30 -> 0 | GB41: =GB15-FX19-GB25-GB29-GB30 -> 0 | GC41: =GC15-GC25-GC29-GC30 -> -23.123 | GD41: =GE41+GG41+GH41+GI41 -> -48.465 | GE41: =GE15-GD17-GE25-GE29-GE30 -> 0 | GG41: =GG15-GD18-GG25-GG29-GG30 -> 0 | GH41: =GH15-GD19-GH25-GH29-GH30 -> 0 | GI41: =GI15-GI25-GI29-GI30 -> -48.465 | GJ41: =GK41+GM41+GN41+GO41 -> -25.11 | GK41: =GK15-GJ17-GK25-GK29-GK30 -> 0 | GM41: =GM15-GJ18-GM25-GM29-GM30 -> 0 | GN41: =GN15-GJ19-GN25-GN29-GN30 -> 0 | GO41: =GO15-GO25-GO29-GO30 -> -25.11 | GP41: =GQ41+GS41+GT41+GU41 -> -23.355 | GQ41: =GQ15-GP17-GQ25-GQ29-GQ30 -> 0 | GS41: =GS15-GP18-GS25-GS29-GS30 -> 0 | GT41: =GT15-GP19-GT25-GT29-GT30 -> 0 | GU41: =GU15-GU25-GU29-GU30 -> -23.355 | GV41: =GW41+GY41+GZ41+HA41 -> -48.95 | GW41: =GW15-GV17-GW25-GW29-GW30 -> 0 | GY41: =GY15-GV18-GY25-GY29-GY30 -> 0 | GZ41: =GZ15-GV19-GZ25-GZ29-GZ30 -> 0 | HA41: =HA15-HA25-HA29-HA30 -> -48.95 | HB41: =HC41+HE41+HF41+HG41 -> -25.372 | HC41: =HC15-HB17-HC25-HC29-HC30 -> 0 | HE41: =HE15-HB18-HE25-HE29-HE30 -> 0 | HF41: =HF15-HB19-HF25-HF29-HF30 -> 0 | HG41: =HG15-HG25-HG29-HG30 -> -25.372 | HH41: =HI41+HK41+HL41+HM41 -> -23.578 | HI41: =HI15-HH17-HI25-HI29-HI30 -> 0 | HK41: =HK15-HH18-HK25-HK29-HK30 -> 0 | HL41: =HL15-HH19-HL25-HL29-HL30 -> 0 | HM41: =HM15-HM25-HM29-HM30 -> -23.578

Sheet П1.5
D7: Баланс мощности по сетям ВН, СН1, СН2 и НН по ЭСО (по региональным электрическим сетям)
E10: МВт
D11: № п/п | E11: Показатели | F11: ="План " & IF(god="","Не определено",god-2) & " год" -> План 2013 год | X11: ="Факт " & IF(god="","Не определено",god-2) & " год" -> Факт 2013 год | AP11: ="План " & IF(god="","Не определено",god-1) & " год" -> План 2014 год | BH11: ="План " & IF(god="","Не определено",god) & " год" -> План 2015 год | ET11: ="План " & IF(god="","Не определено",god+1) & " год" -> План 2016 год | FL11: ="План " & IF(god="","Не определено",god+2) & " год" -> План 2017 год | GD11: ="План " & IF(god="","Не определено",god+3) & " год" -> План 2018 год | GV11: ="План " & IF(god="","Не определено",god+4) & " год" -> План 2019 год
F12: За год | X12: За год | AP12: За год | BH12: За год | ET12: За год | FL12: За год | GD12: За год | GV12: За год
F13: Всего | G13: ВН | I13: СН 1 | J13: СН 2 | K13: НН | X13: Всего | Y13: ВН | AA13: СН 1 | AB13: СН 2 | AC13: НН | AP13: Всего | AQ13: ВН | AS13: СН 1 | AT13: СН 2 | AU13: НН | BH13: Всего | BI13: ВН | BK13: СН 1 | BL13: СН 2 | BM13: НН | ET13: Всего | EU13: ВН | EW13: СН 1 | EX13: СН 2 | EY13: НН | FL13: Всего | FM13: ВН | FO13: СН 1 | FP13: СН 2 | FQ13: НН | GD13: Всего | GE13: ВН | GG13: СН 1 | GH13: СН 2 | GI13: НН | GV13: Всего | GW13: ВН | GY13: СН 1 | GZ13: СН 2 | HA13: НН
D15: 1 | E15: Поступление мощности, ВСЕГО | F15: =F21+F22+F23 -> 6.3 | G15: =G21+G22+G23 -> 2.63 | I15: =I16+I21+I22+I23 -> 0 | J15: =J16+J21+J22+J23 -> 6.3 | K15: =K16+K21+K22+K23 -> 1.84 | X15: =X21+X22+X23 -> 7.569067515 | Y15: =Y21+Y22+Y23 -> 2.89501484 | AA15: =AA16+AA21+AA22+AA23 -> 0 | AB15: =AB16+AB21+AB22+AB23 -> 7.502395956 | AC15: =AC16+AC21+AC22+AC23 -> 2.027831866 | AP15: =AP21+AP22+AP23 -> 8.569793117 | AQ15: =AQ21+AQ22+AQ23 -> 3.820793218 | AS15: =AS16+AS21+AS22+AS23 -> 0 | AT15: =AT16+AT21+AT22+AT23 -> 8.543793117 | AU15: =AU16+AU21+AU22+AU23 -> 2.398793117 | BH15: =BH21+BH22+BH23 -> 9.145513028 | BI15: =BI21+BI22+BI23 -> 4.059116514 | BK15: =BK16+BK21+BK22+BK23 -> 0 | BL15: =BL16+BL21+BL22+BL23 -> 9.065513028 | BM15: =BM16+BM21+BM22+BM23 -> 2.540513028 | ET15: =ET21+ET22+ET23 -> 0 | EU15: =EU21+EU22+EU23 -> 0 | EW15: =EW16+EW21+EW22+EW23 -> 0 | EX15: =EX16+EX21+EX22+EX23 -> 0 | EY15: =EY16+EY21+EY22+EY23 -> 0 | FL15: =FL21+FL22+FL23 -> 0 | FM15: =FM21+FM22+FM23 -> 0 | FO15: =FO16+FO21+FO22+FO23 -> 0 | FP15: =FP16+FP21+FP22+FP23 -> 0 | FQ15: =FQ16+FQ21+FQ22+FQ23 -> 0 | GD15: =GD21+GD22+GD23 -> 0 | GE15: =GE21+GE22+GE23 -> 0 | GG15: =GG16+GG21+GG22+GG23 -> 0 | GH15: =GH16+GH21+GH22+GH23 -> 0 | GI15: =GI16+GI21+GI22+GI23 -> 0 | GV15: =GV21+GV22+GV23 -> 0 | GW15: =GW21+GW22+GW23 -> 0 | GY15: =GY16+GY21+GY22+GY23 -> 0 | GZ15: =GZ16+GZ21+GZ22+GZ23 -> 0 | HA15: =HA16+HA21+HA22+HA23 -> 0
D16: 1.1 | E16: из смежной сети, всего, в том числе из сети: | F16: =G16+I16+J16+K16 -> 4.47 | I16: =I17 -> 0 | J16: =J17+J18 -> 2.63 | K16: =K19+K18 -> 1.84 | X16: =Y16+AA16+AB16+AC16 -> 4.856175147 | AA16: =AA17 -> 0 | AB16: =AB17+AB18 -> 2.828343281 | AC16: =AC19+AC18 -> 2.027831866 | AP16: =AQ16+AS16+AT16+AU16 -> 6.193586336 | AS16: =AS17 -> 0 | AT16: =AT17+AT18 -> 3.794793218 | AU16: =AU19+AU18 -> 2.398793117 | BH16: =BI16+BK16+BL16+BM16 -> 6.519629542 | BK16: =BK17 -> 0 | BL16: =BL17+BL18 -> 3.979116514 | BM16: =BM19+BM18 -> 2.540513028 | ET16: =EU16+EW16+EX16+EY16 -> 0 | EW16: =EW17 -> 0 | EX16: =EX17+EX18 -> 0 | EY16: =EY19+EY18 -> 0 | FL16: =FM16+FO16+FP16+FQ16 -> 0 | FO16: =FO17 -> 0 | FP16: =FP17+FP18 -> 0 | FQ16: =FQ19+FQ18 -> 0 | GD16: =GE16+GG16+GH16+GI16 -> 0 | GG16: =GG17 -> 0 | GH16: =GH17+GH18 -> 0 | GI16: =GI19+GI18 -> 0 | GV16: =GW16+GY16+GZ16+HA16 -> 0 | GY16: =GY17 -> 0 | GZ16: =GZ17+GZ18 -> 0 | HA16: =HA19+HA18 -> 0
D17: 1.1.1 | E17: ВН | F17: 2.63 | J17: =G15-G25 -> 2.63 | X17: =Y17+AA17+AB17+AC17 -> 2.828343281 | AA17: =П1.30!AC35 -> 0 | AB17: =П1.30!AD35 -> 2.828343281 | AP17: =AQ17+AS17+AT17+AU17 -> 3.794793218 | AS17: =П1.30!BM35 -> 0 | AT17: =П1.30!BN35 -> 3.794793218 | BH17: =BI17+BK17+BL17+BM17 -> 3.979116514 | BK17: =П1.30!CW35 -> 0 | BL17: =П1.30!CX35 -> 3.979116514 | ET17: =EU17+EW17+EX17+EY17 -> 0 | EX17: =EU15-EU25 -> 0 | FL17: =FM17+FO17+FP17+FQ17 -> 0 | FP17: =FM15-FM25 -> 0 | GD17: =GE17+GG17+GH17+GI17 -> 0 | GH17: =GE15-GE25 -> 0 | GV17: =GW17+GY17+GZ17+HA17 -> 0 | GZ17: =GW15-GW25 -> 0
D18: 1.1.2 | E18: СН1 | F18: 0 | X18: 0 | AB18: =П1.30!AD36 -> 0 | AC18: =П1.30!AE36 -> 0 | AP18: 0 | AT18: =П1.30!BN36 -> 0 | AU18: =П1.30!BO36 -> 0 | BH18: 0 | BL18: =П1.30!CX36 -> 0 | BM18: =П1.30!CY36 -> 0 | ET18: 0 | FL18: 0 | GD18: 0 | GV18: 0
D19: 1.1.3 | E19: СН2 | F19: 1.84 | K19: =J15-J24-J29 -> 1.84 | X19: 2.027831866 | AC19: =П1.30!AE37 -> 2.027831866 | AP19: 2.398793117 | AU19: =П1.30!BO37 -> 2.398793117 | BH19: 2.540513028 | BM19: =П1.30!CY37 -> 2.540513028 | ET19: 0 | EY19: =EX15-EX25-EX30 -> 0 | FL19: 0 | FQ19: =FP15-FP25-FP30 -> 0 | GD19: 0 | GI19: =GH15-GH25-GH30 -> 0 | GV19: 0 | HA19: =GZ15-GZ25-GZ30 -> 0
E20: из 1.1 поступление из сети РСК | F20: 0 | X20: 0 | Y20: =П1.30!AA23 -> 0 | AA20: =П1.30!AC23 -> 0 | AB20: =П1.30!AD23 -> 0 | AC20: =П1.30!AE23 -> 0 | AP20: 0 | AQ20: =П1.30!BK23 -> 0 | AS20: =П1.30!BM23 -> 0 | AT20: =П1.30!BN23 -> 0 | AU20: =П1.30!BO23 -> 0 | BH20: 0 | BI20: =П1.30!CU23 -> 0 | BK20: =П1.30!CW23 -> 0 | BL20: =П1.30!CX23 -> 0 | BM20: =П1.30!CY23 -> 0 | ET20: 0 | FL20: 0 | GD20: 0 | GV20: 0
D21: 1.2 | E21: от электростанций ПЭ (ЭСО) | F21: 0 | X21: 0 | Y21: =П1.30!AA18 -> 0 | AA21: =П1.30!AC18 -> 0 | AB21: =П1.30!AD18 -> 0 | AC21: =П1.30!AE18 -> 0 | AP21: 0 | AQ21: =П1.30!BK18 -> 0 | AS21: =П1.30!BM18 -> 0 | AT21: =П1.30!BN18 -> 0 | AU21: =П1.30!BO18 -> 0 | BH21: 0 | BI21: =П1.30!CU18 -> 0 | BK21: =П1.30!CW18 -> 0 | BL21: =П1.30!CX18 -> 0 | BM21: =П1.30!CY18 -> 0 | ET21: 0 | FL21: 0 | GD21: 0 | GV21: 0
D22: 1.3 | E22: от других поставщиков (в т.ч. с оптового рынка) | F22: 6.3 | G22: 2.63 | J22: 3.67 | X22: =Y22+AA22+AB22+AC22 -> 7.569067515 | Y22: =П1.30!AA21 -> 2.89501484 | AA22: =П1.30!AC21 -> 0 | AB22: =П1.30!AD21 -> 4.674052674 | AC22: =П1.30!AE21 -> 0 | AP22: =AQ22+AS22+AT22+AU22 -> 8.569793117 | AQ22: =П1.30!BK21 -> 3.820793218 | AS22: =П1.30!BM21 -> 0 | AT22: =П1.30!BN21 -> 4.748999899 | AU22: =П1.30!BO21 -> 0 | BH22: =BI22+BK22+BL22+BM22 -> 9.145513028 | BI22: =П1.30!CU21 -> 4.059116514 | BK22: =П1.30!CW21 -> 0 | BL22: =П1.30!CX21 -> 5.086396513 | BM22: =П1.30!CY21 -> 0 | ET22: 0 | FL22: 0 | GD22: 0 | GV22: 0
D23: 1.4 | E23: поступление мощности от других организаций | F23: 0 | X23: 0 | Y23: =П1.30!AA33 -> 0 | AA23: =П1.30!AC33 -> 0 | AB23: =П1.30!AD33 -> 0 | AC23: =П1.30!AE33 -> 0 | AP23: 0 | AQ23: =П1.30!BK33 -> 0 | AS23: =П1.30!BM33 -> 0 | AT23: =П1.30!BN33 -> 0 | AU23: =П1.30!BO33 -> 0 | BH23: 0 | BI23: =П1.30!CU33 -> 0 | BK23: =П1.30!CW33 -> 0 | BL23: =П1.30!CX33 -> 0 | BM23: =П1.30!CY33 -> 0 | ET23: 0 | FL23: 0 | GD23: 0 | GV23: 0
D24: 2 | E24: Потери мощности в сети | F24: 0.06 | G24: =G26+G27 -> 0 | I24: =I26+I27 -> 0 | J24: =J26+J27 -> 0.06 | K24: =K26+K27 -> 0 | X24: 0.2063302348 | Y24: =Y26+Y27 -> 0.06667155903 | AA24: =AA26+AA27 -> 0 | AB24: =AB26+AB27 -> 0.1396586758 | AC24: =AC26+AC27 -> 0 | AP24: 0.119 | AQ24: =AQ26+AQ27 -> 0.026 | AS24: =AS26+AS27 -> 0 | AT24: =AT26+AT27 -> 0.093 | AU24: =AU26+AU27 -> 0 | BH24: 0.365 | BI24: =BI26+BI27 -> 0.08 | BK24: =BK26+BK27 -> 0 | BL24: =BL26+BL27 -> 0.285 | BM24: =BM26+BM27 -> 0 | ET24: 0 | EU24: =EU26+EU27 -> 0 | EW24: =EW26+EW27 -> 0 | EX24: =EX26+EX27 -> 0 | EY24: =EY26+EY27 -> 0 | FL24: 0 | FM24: =FM26+FM27 -> 0 | FO24: =FO26+FO27 -> 0 | FP24: =FP26+FP27 -> 0 | FQ24: =FQ26+FQ27 -> 0 | GD24: 0 | GE24: =GE26+GE27 -> 0 | GG24: =GG26+GG27 -> 0 | GH24: =GH26+GH27 -> 0 | GI24: =GI26+GI27 -> 0 | GV24: 0 | GW24: =GW26+GW27 -> 0 | GY24: =GY26+GY27 -> 0 | GZ24: =GZ26+GZ27 -> 0 | HA24: =HA26+HA27 -> 0
E25: то же в % (п.2/п.1) | F25: =IF(F15=0,0,F24/F15*100) -> 0.9523809524 | G25: =IF(G15=0,0,G24/G15*100) -> 0 | I25: =IF(I15=0,0,I24/I15*100) -> 0 | J25: =IF(J15=0,0,J24/J15*100) -> 0.9523809524 | K25: =IF(K15=0,0,K24/K15*100) -> 0 | X25: =IF(X15=0,0,X24/X15*100) -> 2.725966368 | Y25: =IF(Y15=0,0,Y24/Y15*100) -> 2.302978144 | AA25: =IF(AA15=0,0,AA24/AA15*100) -> 0 | AB25: =IF(AB15=0,0,AB24/AB15*100) -> 1.861520994 | AC25: =IF(AC15=0,0,AC24/AC15*100) -> 0 | AP25: =IF(AP15=0,0,AP24/AP15*100) -> 1.388598282 | AQ25: =IF(AQ15=0,0,AQ24/AQ15*100) -> 0.68048697 | AS25: =IF(AS15=0,0,AS24/AS15*100) -> 0 | AT25: =IF(AT15=0,0,AT24/AT15*100) -> 1.088509503 | AU25: =IF(AU15=0,0,AU24/AU15*100) -> 0 | BH25: =IF(BH15=0,0,BH24/BH15*100) -> 3.991028157 | BI25: =IF(BI15=0,0,BI24/BI15*100) -> 1.970872226 | BK25: =IF(BK15=0,0,BK24/BK15*100) -> 0 | BL25: =IF(BL15=0,0,BL24/BL15*100) -> 3.143782367 | BM25: =IF(BM15=0,0,BM24/BM15*100) -> 0 | ET25: =IF(ET15=0,0,ET24/ET15*100) -> 0 | EU25: =IF(EU15=0,0,EU24/EU15*100) -> 0 | EW25: =IF(EW15=0,0,EW24/EW15*100) -> 0 | EX25: =IF(EX15=0,0,EX24/EX15*100) -> 0 | EY25: =IF(EY15=0,0,EY24/EY15*100) -> 0 | FL25: =IF(FL15=0,0,FL24/FL15*100) -> 0 | FM25: =IF(FM15=0,0,FM24/FM15*100) -> 0 | FO25: =IF(FO15=0,0,FO24/FO15*100) -> 0 | FP25: =IF(FP15=0,0,FP24/FP15*100) -> 0 | FQ25: =IF(FQ15=0,0,FQ24/FQ15*100) -> 0 | GD25: =IF(GD15=0,0,GD24/GD15*100) -> 0 | GE25: =IF(GE15=0,0,GE24/GE15*100) -> 0 | GG25: =IF(GG15=0,0,GG24/GG15*100) -> 0 | GH25: =IF(GH15=0,0,GH24/GH15*100) -> 0 | GI25: =IF(GI15=0,0,GI24/GI15*100) -> 0 | GV25: =IF(GV15=0,0,GV24/GV15*100) -> 0 | GW25: =IF(GW15=0,0,GW24/GW15*100) -> 0 | GY25: =IF(GY15=0,0,GY24/GY15*100) -> 0 | GZ25: =IF(GZ15=0,0,GZ24/GZ15*100) -> 0 | HA25: =IF(HA15=0,0,HA24/HA15*100) -> 0
D26: 2.1 | E26: Относимые на основное производство | F26: 0 | X26: 0 | Y26: =П1.30!AA39 -> 0 | AA26: =П1.30!AC39 -> 0 | AB26: =П1.30!AD39 -> 0 | AC26: =П1.30!AE39 -> 0 | AP26: 0 | AQ26: =П1.30!BK39 -> 0 | AS26: =П1.30!BM39 -> 0 | AT26: =П1.30!BN39 -> 0 | AU26: =П1.30!BO39 -> 0 | BH26: 0 | BI26: =П1.30!CU39 -> 0 | BK26: =П1.30!CW39 -> 0 | BL26: =П1.30!CX39 -> 0 | BM26: =П1.30!CY39 -> 0 | ET26: 0 | FL26: 0 | GD26: 0 | GV26: 0
D27: 2.2 | E27: Относимые на сторонних потребителей | F27: 0.06 | J27: 0.06 | X27: 0.2063302348 | Y27: =П1.30!AA40 -> 0.06667155903 | AA27: =П1.30!AC40 -> 0 | AB27: =П1.30!AD40 -> 0.1396586758 | AC27: =П1.30!AE40 -> 0 | AP27: 0.119 | AQ27: =П1.30!BK40 -> 0.026 | AS27: =П1.30!BM40 -> 0 | AT27: =П1.30!BN40 -> 0.093 | AU27: =П1.30!BO40 -> 0 | BH27: 0.365 | BI27: =П1.30!CU40 -> 0.08 | BK27: =П1.30!CW40 -> 0 | BL27: =П1.30!CX40 -> 0.285 | BM27: =П1.30!CY40 -> 0 | ET27: 0 | FL27: 0 | GD27: 0 | GV27: 0
D28: 3 | E28: Расход мощности на производственные и хозяйственные нужды (собственное потребление организаций, для которых оказание услуг по передаче не является основным видом деятельности)* | F28: 0 | X28: 0 | Y28: =П1.30!AA45 -> 0 | AA28: =П1.30!AC45 -> 0 | AB28: =П1.30!AD45 -> 0 | AC28: =П1.30!AE45 -> 0 | AP28: 0 | AQ28: =П1.30!BK45 -> 0 | AS28: =П1.30!BM45 -> 0 | AT28: =П1.30!BN45 -> 0 | AU28: =П1.30!BO45 -> 0 | BH28: 0 | BI28: =П1.30!CU45 -> 0 | BK28: =П1.30!CW45 -> 0 | BL28: =П1.30!CX45 -> 0 | BM28: =П1.30!CY45 -> 0 | ET28: 0 | FL28: 0 | GD28: 0 | GV28: 0
D29: 4 | E29: Полезный отпуск из сети | F29: 6.24 | G29: =G30+G38+G39 -> 0 | I29: =I30+I38+I39 -> 0 | J29: =J30+J38+J39 -> 4.4 | K29: =K30+K38+K39 -> 1.84 | X29: 7.364061318 | Y29: =Y30+Y38+Y39 -> 0 | AA29: =AA30+AA38+AA39 -> 0 | AB29: =AB30+AB38+AB39 -> 5.334061318 | AC29: =AC30+AC38+AC39 -> 2.03 | AP29: 8.449 | AQ29: =AQ30+AQ38+AQ39 -> 0 | AS29: =AS30+AS38+AS39 -> 0 | AT29: =AT30+AT38+AT39 -> 6.052 | AU29: =AU30+AU38+AU39 -> 2.397 | BH29: 8.781 | BI29: =BI30+BI38+BI39 -> 0 | BK29: =BK30+BK38+BK39 -> 0 | BL29: =BL30+BL38+BL39 -> 6.24 | BM29: =BM30+BM38+BM39 -> 2.541 | ET29: 0 | EU29: =EU30+EU38+EU39 -> 0 | EW29: =EW30+EW38+EW39 -> 0 | EX29: =EX30+EX38+EX39 -> 0 | EY29: =EY30+EY38+EY39 -> 0 | FL29: 0 | FM29: =FM30+FM38+FM39 -> 0 | FO29: =FO30+FO38+FO39 -> 0 | FP29: =FP30+FP38+FP39 -> 0 | FQ29: =FQ30+FQ38+FQ39 -> 0 | GD29: 0 | GE29: =GE30+GE38+GE39 -> 0 | GG29: =GG30+GG38+GG39 -> 0 | GH29: =GH30+GH38+GH39 -> 0 | GI29: =GI30+GI38+GI39 -> 0 | GV29: 0 | GW29: =GW30+GW38+GW39 -> 0 | GY29: =GY30+GY38+GY39 -> 0 | GZ29: =GZ30+GZ38+GZ39 -> 0 | HA29: =HA30+HA38+HA39 -> 0
D30: 4.1 | E30: в т.ч. собственным потребителям | F30: 6.16 | G30: =G32+G34+G36+G37 -> 0 | I30: =I32+I34+I36+I37 -> 0 | J30: =J32+J34+J36+J37 -> 4.32 | K30: =K32+K34+K36+K37 -> 1.84 | X30: 7.286 | Y30: =Y32+Y34+Y36+Y37 -> 0 | AA30: =AA32+AA34+AA36+AA37 -> 0 | AB30: =AB32+AB34+AB36+AB37 -> 5.256 | AC30: =AC32+AC34+AC36+AC37 -> 2.03 | AP30: 8.349 | AQ30: =AQ32+AQ34+AQ36+AQ37 -> 0 | AS30: =AS32+AS34+AS36+AS37 -> 0 | AT30: =AT32+AT34+AT36+AT37 -> 5.952 | AU30: =AU32+AU34+AU36+AU37 -> 2.397 | BH30: 8.681 | BI30: =BI32+BI34+BI36+BI37 -> 0 | BK30: =BK32+BK34+BK36+BK37 -> 0 | BL30: =BL32+BL34+BL36+BL37 -> 6.14 | BM30: =BM32+BM34+BM36+BM37 -> 2.541 | ET30: 0 | EU30: =EU32+EU34+EU36+EU37 -> 0 | EW30: =EW32+EW34+EW36+EW37 -> 0 | EX30: =EX32+EX34+EX36+EX37 -> 0 | EY30: =EY32+EY34+EY36+EY37 -> 0 | FL30: 0 | FM30: =FM32+FM34+FM36+FM37 -> 0 | FO30: =FO32+FO34+FO36+FO37 -> 0 | FP30: =FP32+FP34+FP36+FP37 -> 0 | FQ30: =FQ32+FQ34+FQ36+FQ37 -> 0 | GD30: 0 | GE30: =GE32+GE34+GE36+GE37 -> 0 | GG30: =GG32+GG34+GG36+GG37 -> 0 | GH30: =GH32+GH34+GH36+GH37 -> 0 | GI30: =GI32+GI34+GI36+GI37 -> 0 | GV30: 0 | GW30: =GW32+GW34+GW36+GW37 -> 0 | GY30: =GY32+GY34+GY36+GY37 -> 0 | GZ30: =GZ32+GZ34+GZ36+GZ37 -> 0 | HA30: =HA32+HA34+HA36+HA37 -> 0
E31: из них, потребителям, присоединенным к центру питания на генераторном напряжении | F31: 0 | X31: 0 | AP31: 0 | BH31: 0 | ET31: 0 | FL31: 0 | GD31: 0 | GV31: 0
D32: 4.1.1 | E32: ГП, участнику ОРЭМ | F32: 0 | X32: 0 | AP32: 0 | BH32: 0 | ET32: 0 | FL32: 0 | GD32: 0 | GV32: 0
E33: - по договору "последней мили" | F33: 0 | X33: 0 | AP33: 0 | BH33: 0 | ET33: 0 | FL33: 0 | GD33: 0 | GV33: 0
D34: 4.1.2 | E34: ЭСО, участнику ОРЭМ | F34: 0 | X34: 0 | AP34: 0 | BH34: 0 | ET34: 0 | FL34: 0 | GD34: 0 | GV34: 0
E35: - по договору "последней мили" | F35: 0 | X35: 0 | AP35: 0 | BH35: 0 | ET35: 0 | FL35: 0 | GD35: 0 | GV35: 0
D36: 4.1.3 | E36: сбытовым компаниям, не имеющим статус ГП | F36: 0 | X36: 0 | AP36: 0 | BH36: 0 | ET36: 0 | FL36: 0 | GD36: 0 | GV36: 0
D37: 4.1.4 | E37: потребителям, заключившим прямые договоры на услуги по передаче | F37: 6.16 | J37: 4.32 | K37: 1.84 | X37: =Y37+AA37+AB37+AC37 -> 7.286 | AB37: 5.256 | AC37: 2.03 | AP37: =AQ37+AS37+AT37+AU37 -> 8.349 | AT37: 5.952 | AU37: 2.397 | BH37: =BI37+BK37+BL37+BM37 -> 8.681 | BL37: 6.14 | BM37: 2.541 | ET37: =EU37+EW37+EX37+EY37 -> 0 | FL37: =FM37+FO37+FP37+FQ37 -> 0 | GD37: =GE37+GG37+GH37+GI37 -> 0 | GV37: =GW37+GY37+GZ37+HA37 -> 0
D38: 4.2 | E38: переток в сопредельные регионы | F38: 0 | X38: 0 | Y38: =П1.30!AA65 -> 0 | AA38: =П1.30!AC65 -> 0 | AB38: =П1.30!AD65 -> 0 | AC38: =П1.30!AE65 -> 0 | AP38: 0 | AQ38: =П1.30!BK65 -> 0 | AS38: =П1.30!BM65 -> 0 | AT38: =П1.30!BN65 -> 0 | AU38: =П1.30!BO65 -> 0 | BH38: 0 | BI38: =П1.30!CU65 -> 0 | BK38: =П1.30!CW65 -> 0 | BL38: =П1.30!CX65 -> 0 | BM38: =П1.30!CY65 -> 0 | ET38: 0 | FL38: 0 | GD38: 0 | GV38: 0
D39: 4.3 | E39: переток в другие организации | F39: 0.08 | J39: 0.08 | X39: 0.07806131768 | Y39: =П1.30!AA49+П1.30!AA53 -> 0 | AA39: =П1.30!AC49+П1.30!AC53 -> 0 | AB39: =П1.30!AD49+П1.30!AD53 -> 0.07806131768 | AC39: =П1.30!AE49+П1.30!AE53 -> 0 | AP39: 0.1 | AQ39: =П1.30!BK49+П1.30!BK53 -> 0 | AS39: =П1.30!BM49+П1.30!BM53 -> 0 | AT39: =П1.30!BN49+П1.30!BN53 -> 0.1 | AU39: =П1.30!BO49+П1.30!BO53 -> 0 | BH39: 0.1 | BI39: =П1.30!CU49+П1.30!CU53 -> 0 | BK39: =П1.30!CW49+П1.30!CW53 -> 0 | BL39: =П1.30!CX49+П1.30!CX53 -> 0.1 | BM39: =П1.30!CY49+П1.30!CY53 -> 0 | ET39: 0 | FL39: 0 | GD39: 0 | GV39: 0
D40: 5 | E40: Заявленная мощность ЕНЭС | F40: 0 | X40: 0 | AP40: 0 | BH40: 0 | ET40: 0 | FL40: 0 | GD40: 0 | GV40: 0
D41: 6 | E41: Небаланс | F41: =G41+I41+J41+K41 -> 0 | G41: =G15-F17-G24-G28-G29 -> 0 | I41: =I15-F18-I24-I28-I29 -> 0 | J41: =J15-F19-J24-J28-J29 -> 0 | K41: =K15-K24-K28-K29 -> 0 | X41: =Y41+AA41+AB41+AC41 -> -0.001324037834 | Y41: =Y15-X17-Y24-Y28-Y29 -> 4.163336342e-17 | AA41: =AA15-X18-AA24-AA28-AA29 -> 0 | AB41: =AB15-X19-AB24-AB28-AB29 -> 0.0008440965427 | AC41: =AC15-AC24-AC28-AC29 -> -0.002168134377 | AP41: =AQ41+AS41+AT41+AU41 -> 0.001793117368 | AQ41: =AQ15-AP17-AQ24-AQ28-AQ29 -> -1.977584763e-16 | AS41: =AS15-AP18-AS24-AS28-AS29 -> 0 | AT41: =AT15-AP19-AT24-AT28-AT29 -> 0 | AU41: =AU15-AU24-AU28-AU29 -> 0.001793117368 | BH41: =BI41+BK41+BL41+BM41 -> -0.0004869724644 | BI41: =BI15-BH17-BI24-BI28-BI29 -> 6.938893904e-17 | BK41: =BK15-BH18-BK24-BK28-BK29 -> 0 | BL41: =BL15-BH19-BL24-BL28-BL29 -> 0 | BM41: =BM15-BM24-BM28-BM29 -> -0.0004869724644 | ET41: =EU41+EW41+EX41+EY41 -> 0 | EU41: =EU15-ET17-EU24-EU28-EU29 -> 0 | EW41: =EW15-ET18-EW24-EW28-EW29 -> 0 | EX41: =EX15-ET19-EX24-EX28-EX29 -> 0 | EY41: =EY15-EY24-EY28-EY29 -> 0 | FL41: =FM41+FO41+FP41+FQ41 -> 0 | FM41: =FM15-FL17-FM24-FM28-FM29 -> 0 | FO41: =FO15-FL18-FO24-FO28-FO29 -> 0 | FP41: =FP15-FL19-FP24-FP28-FP29 -> 0 | FQ41: =FQ15-FQ24-FQ28-FQ29 -> 0 | GD41: =GE41+GG41+GH41+GI41 -> 0 | GE41: =GE15-GD17-GE24-GE28-GE29 -> 0 | GG41: =GG15-GD18-GG24-GG28-GG29 -> 0 | GH41: =GH15-GD19-GH24-GH28-GH29 -> 0 | GI41: =GI15-GI24-GI28-GI29 -> 0 | GV41: =GW41+GY41+GZ41+HA41 -> 0 | GW41: =GW15-GV17-GW24-GW28-GW29 -> 0 | GY41: =GY15-GV18-GY24-GY28-GY29 -> 0 | GZ41: =GZ15-GV19-GZ24-GZ28-GZ29 -> 0 | HA41: =HA15-HA24-HA28-HA29 -> 0

Sheet Прямые договоры с потребителями
D7: Объёмы оказания услуг по передаче электрической энергии конечным потребителям
D12: № п/п | E12: Наименование потребителя | F12: Сетевая организация, к сети которой непосредственно присоединен потребитель *) | G12: Сбытовая организация (поставщик, у которого потребитель приобретает ЭЭ) | H12: Вид тарифа по расчётам за услуги по передаче | I12: Общий объём
I13: Электроэнергия (млн. кВтч) | O13: Мощность (МВт)
I14: Всего | J14: ГН | K14: ВН | L14: СН1 | M14: СН2 | N14: НН | O14: Всего | P14: ГН | Q14: ВН | R14: СН1 | S14: СН2 | T14: НН
D15: 1 | E15: =D15+1 -> 2 | F15: =E15+1 -> 3 | G15: 4 | H15: 5 | I15: 6 | J15: 7 | K15: 8 | L15: 9 | M15: 10 | N15: 11 | O15: 12 | P15: 13 | Q15: 14 | R15: 15 | S15: 16 | T15: 17
D16: 0
E17: Добавить потребителя
E19: *) - В случае схемы - котел "сверху"

Sheet Договоры взаиморасчёта
D7: Договоры взаиморасчёта
D12: № п/п | E12: Контрагент (сетевая организация, с которой заключен договор) | F12: Наличие физической границы | G12: Способ расчёта объёма оказания услуг | H12: Дифференциация по уровням напряжения
D13: 1 | E13: =D13+1 -> 2 | F13: =E13+1 -> 3 | G13: =F13+1 -> 4 | H13: =G13+1 -> 5
D14: 0
E15: Добавить договор

Sheet Комментарии
E7: Ниже вы можете оставить свои комментарии
E9: 1
F10: Добавить комментарий

Sheet Проверка
E9: Результаты проверки
E11: Ссылка 1 | F11: Ссылка 2 | G11: Описание причины | H11: Обязательность выполнения

Sheet modPass (hidden)

Sheet modCommonProv (hidden)
C315: заработная плата прочего персонала, относимого на регулируемый вид деятельности
C715: заработная плата прочего персонала, относимого на регулируемый вид деятельности
C1115: заработная плата прочего персонала, относимого на регулируемый вид деятельности
C1512: заработная плата прочего персонала, относимого на регулируемый вид деятельности
C1912: заработная плата прочего персонала, относимого на регулируемый вид деятельности
C2312: заработная плата прочего персонала, относимого на регулируемый вид деятельности
C3912: заработная плата прочего персонала, относимого на регулируемый вид деятельности

Sheet modProv (hidden)

Sheet modProvGeneralProc (hidden)

Sheet tech (hidden)
A2: MUTUAL_SETTLEMENT_ADD_RANGE
A5: DIRECT_CONTRACT_ADD_RANGE
I6: =SUM(J6:N6) -> 0 | O6: =SUM(P6:T6) -> 0
A12: p_1_30_tso_range
H13: =I13+K13+L13+M13 -> 0 | N13: =O13+Q13+R13+S13 -> 0 | T13: =U13+W13+X13+Y13 -> 0 | Z13: =AA13+AC13+AD13+AE13 -> 0 | AF13: =AG13+AI13+AJ13+AK13 -> 0 | AR13: =AS13+AU13+AV13+AW13 -> 0 | AX13: =AY13+BA13+BB13+BC13 -> 0 | BD13: =BE13+BG13+BH13+BI13 -> 0 | BJ13: =BK13+BM13+BN13+BO13 -> 0 | BP13: =BQ13+BS13+BT13+BU13 -> 0 | CB13: =CC13+CE13+CF13+CG13 -> 0 | CH13: =CI13+CK13+CL13+CM13 -> 0 | CN13: =CO13+CQ13+CR13+CS13 -> 0 | CT13: =CU13+CW13+CX13+CY13 -> 0 | CZ13: =DA13+DC13+DD13+DE13 -> 0
A15: p_1_30_3_sbwt_company_range
H16: =I16+K16+L16+M16 -> 0 | N16: =O16+Q16+R16+S16 -> 0 | T16: =U16+W16+X16+Y16 -> 0 | Z16: =AA16+AC16+AD16+AE16 -> 0 | AF16: =AG16+AI16+AJ16+AK16 -> 0 | AR16: =AS16+AU16+AV16+AW16 -> 0 | AX16: =AY16+BA16+BB16+BC16 -> 0 | BD16: =BE16+BG16+BH16+BI16 -> 0 | BJ16: =BK16+BM16+BN16+BO16 -> 0 | BP16: =BQ16+BS16+BT16+BU16 -> 0 | CB16: =CC16+CE16+CF16+CG16 -> 0 | CH16: =CI16+CK16+CL16+CM16 -> 0 | CN16: =CO16+CQ16+CR16+CS16 -> 0 | CT16: =CU16+CW16+CX16+CY16 -> 0 | CZ16: =DA16+DC16+DD16+DE16 -> 0
A18: p_1_30_other_tso_range
H19: =I19+K19+L19+M19 -> 0 | N19: =O19+Q19+R19+S19 -> 0 | T19: =U19+W19+X19+Y19 -> 0 | Z19: =AA19+AC19+AD19+AE19 -> 0 | AF19: =AG19+AI19+AJ19+AK19 -> 0 | AL19: =AM19+AO19+AP19+AQ19 -> 0 | AR19: =AS19+AU19+AV19+AW19 -> 0 | AX19: =AY19+BA19+BB19+BC19 -> 0 | BD19: =BE19+BG19+BH19+BI19 -> 0 | BJ19: =BK19+BM19+BN19+BO19 -> 0 | BP19: =BQ19+BS19+BT19+BU19 -> 0 | BV19: =BW19+BY19+BZ19+CA19 -> 0 | CB19: =CC19+CE19+CF19+CG19 -> 0 | CH19: =CI19+CK19+CL19+CM19 -> 0 | CN19: =CO19+CQ19+CR19+CS19 -> 0 | CT19: =CU19+CW19+CX19+CY19 -> 0 | CZ19: =DA19+DC19+DD19+DE19 -> 0 | DF19: =DG19+DI19+DJ19+DK19 -> 0
A21: p_1_30_sbwt_range
A22: p_1_30_customer_range
G23: total
F24: 1 | H24: =I24+K24+L24+M24 -> 0 | N24: =O24+Q24+R24+S24 -> 0 | T24: =U24+W24+X24+Y24 -> 0 | Z24: =AA24+AC24+AD24+AE24 -> 0 | AF24: =AG24+AI24+AJ24+AK24 -> 0 | AL24: =AM24+AO24+AP24+AQ24 -> 0 | AR24: =AS24+AU24+AV24+AW24 -> 0 | AX24: =AY24+BA24+BB24+BC24 -> 0 | BD24: =BE24+BG24+BH24+BI24 -> 0 | BJ24: =BK24+BM24+BN24+BO24 -> 0 | BP24: =BQ24+BS24+BT24+BU24 -> 0 | BV24: =BW24+BY24+BZ24+CA24 -> 0 | CB24: =CC24+CE24+CF24+CG24 -> 0 | CH24: =CI24+CK24+CL24+CM24 -> 0 | CN24: =CO24+CQ24+CR24+CS24 -> 0 | CT24: =CU24+CW24+CX24+CY24 -> 0 | CZ24: =DA24+DC24+DD24+DE24 -> 0 | DF24: =DG24+DI24+DJ24+DK24 -> 0
A28: p_1_30_4_1_sbwt_company_range
H29: =I29+K29+L29+M29 -> 0 | N29: =O29+Q29+R29+S29 -> 0 | T29: =U29+W29+X29+Y29 -> 0 | Z29: =AA29+AC29+AD29+AE29 -> 0 | AF29: =AG29+AI29+AJ29+AK29 -> 0 | AL29: =AM29+AO29+AP29+AQ29 -> 0 | AR29: =AS29+AU29+AV29+AW29 -> 0 | AX29: =AY29+BA29+BB29+BC29 -> 0 | BD29: =BE29+BG29+BH29+BI29 -> 0 | BJ29: =BK29+BM29+BN29+BO29 -> 0 | BP29: =BQ29+BS29+BT29+BU29 -> 0 | BV29: =BW29+BY29+BZ29+CA29 -> 0 | CB29: =CC29+CE29+CF29+CG29 -> 0 | CH29: =CI29+CK29+CL29+CM29 -> 0 | CN29: =CO29+CQ29+CR29+CS29 -> 0 | CT29: =CU29+CW29+CX29+CY29 -> 0 | CZ29: =DA29+DC29+DD29+DE29 -> 0 | DF29: =DG29+DI29+DJ29+DK29 -> 0
A36: COMS_ADD_RANGE

Sheet modSheetTitle (hidden)

Sheet TECHSHEET (hidden)
A1: Алтайский край | C1: YEAR | D1: MONTH | E1: logic | G1: НСРФ | J1: LOGIN | L1: POSSIBLE_PERIOD_LENGTH | N1: POSSIBLE_PERIODS_2006_2010 | O1: 3 и 5 лет
A2: Амурская область | C2: 2010 | D2: Январь | E2: да | G2: =region_name -> Тюменская область | J2: PASSWORD | L2: 1 | N2: POSSIBLE_PERIODS_2008_2010
A3: Архангельская область | C3: 2011 | D3: Февраль | E3: нет | J3: LGL_ID | L3: 3 | N3: POSSIBLE_PERIODS_2007_2011
A4: Астраханская область | C4: 2012 | D4: Март | L4: 4 | N4: POSSIBLE_PERIODS_2009_2011
A5: Белгородская область | C5: 2013 | D5: Апрель | L5: 5 | N5: POSSIBLE_PERIODS_2008_2012
A6: Брянская область | C6: 2014 | D6: Май | N6: POSSIBLE_PERIODS_2010_2012
A7: Владимирская область | C7: 2015 | D7: Июнь | J7: XML_AUTHORIZATION_TAG_NAMES | N7: POSSIBLE_PERIODS_2009_2013
A8: Волгоградская область | C8: 2016 | D8: Июль | J8: AL | N8: POSSIBLE_PERIODS_2011_2013
A9: Вологодская область | C9: 2017 | D9: Август | J9: LGL_ID | N9: POSSIBLE_PERIODS_2010_2014
A10: Воронежская область | C10: 2018 | D10: Сентябрь | N10: POSSIBLE_PERIODS_2012_2014
A11: г. Москва | C11: 2019 | D11: Октябрь | N11: POSSIBLE_PERIODS_2011_2015
A12: г.Байконур | C12: 2020 | D12: Ноябрь | N12: POSSIBLE_PERIODS_2013_2015
A13: г.Санкт-Петербург | C13: 2021 | D13: Декабрь | N13: POSSIBLE_PERIODS_2012_2016
A14: Еврейская автономная область | G14: method_calc_services_amount | N14: POSSIBLE_PERIODS_2014_2016
A15: Забайкальский край | G15: Сальдо-переток из отчитывающейся организации контрагенту | N15: POSSIBLE_PERIODS_2013_2017
A16: Ивановская область | G16: Сальдо-переток от контрагента в отчитывающуюся организацию | N16: POSSIBLE_PERIODS_2015_2017
A17: Иркутская область | G17: Сальдо-переток от сети контрангента конечным потребителям (общий объём, оплачиваемый сбытовыми компаниями за конечных потребителей) | N17: POSSIBLE_PERIODS_2014_2018
A18: Кабардино-Балкарская республика | G18: Сальдо-переток от сети отчитывающейся организации конечным потребителям (общий объем, оплачиваемый сбытовыми компаниями за конечных потребителей) | N18: POSSIBLE_PERIODS_2016_2018
A19: Калининградская область | N19: POSSIBLE_PERIODS_2015_2019
A20: Калужская область | N20: POSSIBLE_PERIODS_2017_2019
A21: Камчатский край | F21: Конечные потребители | N21: POSSIBLE_PERIODS_2016_2020
A22: Карачаево-Черкесская республика | G22: small_customers_range | J22: XML_ORG_DATA_F_3_1_TAG_NAMES | N22: POSSIBLE_PERIODS_2018_2020
A23: Кемеровская область | F23: 1 | G23: Конечный потребитель №1 | J23: LGL_ID | N23: POSSIBLE_PERIODS_2017_2021
A24: Кировская область | F24: 2 | G24: Конечный потребитель №2 | J24: ENTITY_NAME | N24: POSSIBLE_PERIODS_2019_2021
A25: Костромская область | F25: 3 | G25: Конечный потребитель №3 | J25: SCENARIO_NAME | N25: 2006
A26: Краснодарский край | F26: 4 | G26: Конечный потребитель №4 | J26: PF_NAME | N26: 2007
A27: Красноярский край | F27: 5 | G27: Конечный потребитель №5 | J27: PRD_NAME | N27: 2008
A28: Курганская область | F28: 6 | G28: Конечный потребитель №6 | J28: PRD2_NAME | N28: 2009
A29: Курская область | F29: 7 | G29: Конечный потребитель №7 | J29: L1 | N29: 2010
A30: Ленинградская область | F30: 8 | G30: Конечный потребитель №8 | J30: L2 | N30: 2011
A31: Липецкая область | F31: 9 | G31: Конечный потребитель №9 | J31: L2_1 | N31: 2012
A32: Магаданская область | F32: 10 | G32: Конечный потребитель №10 | J32: L2_2 | N32: 2013
A33: Московская область | F33: 11 | G33: Конечный потребитель №11 | J33: L3 | N33: 2014
A34: Мурманская область | F34: 12 | G34: Конечный потребитель №12 | J34: L4 | N34: 2015
A35: Ненецкий автономный округ | F35: 13 | G35: Конечный потребитель №13 | J35: L4_1 | N35: 2016
A36: Нижегородская область | F36: 14 | G36: Конечный потребитель №14 | J36: L4_2 | N36: 2017
A37: Новгородская область | F37: 15 | G37: Конечный потребитель №15 | J37: L_STUB | N37: 2018
A38: Новосибирская область | F38: 16 | G38: Конечный потребитель №16 | J38: L5 | N38: 2019
A39: Омская область | F39: 17 | G39: Конечный потребитель №17 | J39: L6 | N39: 2020
A40: Оренбургская область | F40: 18 | G40: Конечный потребитель №18 | J40: L6_1 | N40: 2021
A41: Орловская область | F41: 19 | G41: Конечный потребитель №19 | J41: L6_2 | N41: POSSIBLE_PERIODS_2007_2010 | O41: 4 года
A42: Пензенская область | F42: 20 | G42: Конечный потребитель №20 | J42: L7 | N42: POSSIBLE_PERIODS_2008_2011
A43: Пермский край | J43: L8 | N43: POSSIBLE_PERIODS_2009_2012
A44: Приморский край | J44: L8_1 | N44: POSSIBLE_PERIODS_2010_2013
A45: Псковская область | J45: L8_2 | N45: POSSIBLE_PERIODS_2011_2014
A46: Республика Адыгея | G46: XML_ORG_LIST_TAG_NAMES | J46: L9 | N46: POSSIBLE_PERIODS_2012_2015
A47: Республика Алтай | G47: ORG_NAME | J47: L9_1 | N47: POSSIBLE_PERIODS_2013_2016
A48: Республика Башкортостан | G48: INN_NAME | J48: L9_2 | N48: POSSIBLE_PERIODS_2014_2017
A49: Республика Бурятия | G49: KPP_NAME | J49: L10 | N49: POSSIBLE_PERIODS_2015_2018
A50: Республика Дагестан | G50: VDET_NAME | J50: L10_1 | N50: POSSIBLE_PERIODS_2016_2019
A51: Республика Ингушетия | G51: NSRF | J51: L10_2 | N51: POSSIBLE_PERIODS_2017_2020
A52: Республика Калмыкия | N52: POSSIBLE_PERIODS_2018_2021
A53: Республика Карелия
A54: Республика Коми
A55: Республика Марий Эл
A56: Республика Мордовия
A57: Республика Саха (Якутия)
A58: Республика Северная Осетия-Алания
A59: Республика Татарстан
A60: Республика Тыва
A61: Республика Хакасия
A62: Ростовская область
A63: Рязанская область
A64: Самарская область
A65: Саратовская область
A66: Сахалинская область
A67: Свердловская область
A68: Смоленская область
A69: Ставропольский край
A70: Тамбовская область
A71: Тверская область
A72: Томская область
A73: Тульская область
A74: Тюменская область
A75: Удмуртская республика
A76: Ульяновская область
A77: Хабаровский край
A78: Ханты-Мансийский автономный округ
A79: Челябинская область
A80: Чеченская республика
A81: Чувашская республика
A82: Чукотский автономный округ
A83: Ямало-Ненецкий автономный округ
A84: Ярославская область

Sheet modInfo (hidden)
B2: • Шаблон предназначен для представления информации по предложениям территориальных сетевых организаций по передаче электрической энергии и мощности • Выбор организаций осуществляется по данным реестра организаций ФСТ России

Sheet modCommandButton (hidden)

Sheet modUpdTemplMain (hidden)

Sheet modCommonProcedures (hidden)
C315: заработная плата прочего персонала, относимого на регулируемый вид деятельности
C715: заработная плата прочего персонала, относимого на регулируемый вид деятельности
C1115: заработная плата прочего персонала, относимого на регулируемый вид деятельности
C1512: заработная плата прочего персонала, относимого на регулируемый вид деятельности
C1912: заработная плата прочего персонала, относимого на регулируемый вид деятельности
C2312: заработная плата прочего персонала, относимого на регулируемый вид деятельности
C3912: заработная плата прочего персонала, относимого на регулируемый вид деятельности

Sheet modfrmCheckUpdates (hidden)

Sheet modfrmUpdateIsInProgress (hidden)

Sheet REESTR_ORG (hidden)
A1: Организация | B1: ИНН | C1: КПП | D1: Тип организации | E1: НСРФ | G1: ЕНЭС
A2: Блокстанции ТЭ | B2: 7200000000 | C2: 720000001 | D2: Региональная генерация | E2: Тюменская область | G2: Конечные потребители (кроме ТСО)
A3: ЗАО "ЛУКОЙЛ-АИК" | B3: 8608180070 | C3: 860801001 | D3: Региональная генерация | E3: Тюменская область | G3: Региональная генерация
A4: МУП Байкаловский КПП | B4: 7223000825 | C4: 722301001 | D4: Региональная генерация | E4: Тюменская область | G4: Оптовая генерация
A5: ОАО "ИНТЕР РАО - Электрогенерация" | B5: 7704784450 | C5: 862450001 | D5: Региональная генерация | E5: Тюменская область | G5: ТСО других субъектов РФ
A6: ОАО "Первая генерирующая компания оптового рынка электроэнергии" | B6: 7203158282 | C6: 770401001 | D6: Региональная генерация | E6: Тюменская область | G6: Прямой договор
A7: ОАО "СУЭНКО" | B7: 7205011944 | C7: 720501001 | D7: Региональная генерация | E7: Тюменская область | G7: Независимые сбытовые компании
A8: ОАО "Славнефть-Мегионнефтегаз" | B8: 8605003932 | C8: 860501001 | D8: Региональная генерация | E8: Тюменская область | G8: Оптовый рынок
A9: ОАО "Сургутнефтегаз" | B9: 8602060555 | C9: 997150001 | D9: Региональная генерация | E9: Тюменская область | G9: Прочие конечные потребители
A10: ОАО "ТНК-Нягань" | B10: 8610010727 | C10: 997150001 | D10: Региональная генерация | E10: Тюменская область
A11: ОАО "Югорская Генерирующая Компания"" | B11: 8601029263 | C11: 860101001 | D11: Региональная генерация | E11: Тюменская область
A12: ООО "Газпром добыча Уренгой" | B12: 8904034784 | C12: 997250001 | D12: Региональная генерация | E12: Тюменская область
A13: ООО "Газпром добыча Ямбург" | B13: 8904034777 | C13: 890401001 | D13: Региональная генерация | E13: Тюменская область
A14: ООО "Газпромнефть-Хантос" | B14: 8618006063 | C14: 862450001 | D14: Региональная генерация | E14: Тюменская область
A15: ООО "Западно-Малобалыкское" | B15: 8619010665 | C15: 997150001 | D15: Региональная генерация | E15: Тюменская область
A16: ООО "ЛУКОЙЛ-Западная Сибирь" | B16: 8608048498 | C16: 860602001 | D16: Региональная генерация | E16: Тюменская область
A17: ООО "Салым Петролеум" | B17: 8619013320 | C17: 861901001 | D17: Региональная генерация | E17: Тюменская область
A18: ООО "Северная ПЛЭС" | B18: 7716605105 | C18: 890345001 | D18: Региональная генерация | E18: Тюменская область
A19: ПИИ ОАО "Газтурбосервис" | B19: 7203078728 | C19: 720301001 | D19: Региональная генерация | E19: Тюменская область
A20: ЗАО "Дирекция по энергообеспечению Восточного промузла" | B20: 7203009876 | C20: 720301001 | D20: Сбытовая компания | E20: Тюменская область
A21: ЗАО "ЕЭСнК" | B21: 7727232575 | C21: 771401001 | D21: Сбытовая компания | E21: Тюменская область
A22: Закрытое акционерное общество "Энергопромышленная компания", г. Екатеринбург | B22: 6661105959 | C22: 666101001 | D22: Сбытовая компания | E22: Тюменская область
A23: МП "ГЭС" г. Ханты-Мансийск" | B23: 8601005865 | C23: 860101001 | D23: Сбытовая компания | E23: Тюменская область
A24: ОАО "Межрегионэнергосбыт" | B24: 7705750968 | C24: 772901001 | D24: Сбытовая компания | E24: Тюменская область
A25: ОАО "ОБОРОНЭНЕРГОСБЫТ" филиал "УРАЛЬСКИЙ" | B25: 7704731218 | C25: 720445001 | D25: Сбытовая компания | E25: Тюменская область
A26: ОАО "Оборонэнергосбыт" | B26: 7704731218 | C26: 770401001 | D26: Сбытовая компания | E26: Тюменская область
A27: ОАО "Промышленная энергетика" | B27: 7705736716 | C27: 770501001 | D27: Сбытовая компания | E27: Тюменская область
A28: ОАО "Северная энергетическая компания" | B28: 8911019579 | C28: 890501001 | D28: Сбытовая компания | E28: Тюменская область
A29: ОАО "Сибурэнергоменеджмент" | B29: 7727276526 | C29: 366750001 | D29: Сбытовая компания | E29: Тюменская область
A30: ОАО "Тюменская энергосбытовая компания" | B30: 8602067215 | C30: 862450001 | D30: Сбытовая компания | E30: Тюменская область
A31: ОАО "Тюменьэнергосбыт" | B31: 7205011951 | C31: 720201001 | D31: Сбытовая компания | E31: Тюменская область
A32: ОАО "Энергосбытовая компания "Восток" | B32: 7705424509 | C32: 770101001 | D32: Сбытовая компания | E32: Тюменская область
A33: ОАО "ЮТЭК" | B33: 8601022317 | C33: 860101001 | D33: Сбытовая компания | E33: Тюменская область
A34: ООО "Газпром добыча Ямбург" | B34: 8904034777 | C34: 890401001 | D34: Сбытовая компания | E34: Тюменская область
A35: ООО "КНАУФ ЭНЕРГИЯ" | B35: 7729677594 | C35: 772901001 | D35: Сбытовая компания | E35: Тюменская область
A36: ООО "ЛУКОЙЛ-ЭНЕРГОСЕРВИС" | B36: 5030040730 | C36: 503001001 | D36: Сбытовая компания | E36: Тюменская область
A37: ООО "МагнитЭнерго" | B37: 7715902899 | C37: 771501001 | D37: Сбытовая компания | E37: Тюменская область
A38: ООО "Независимое энергосбытовое предприятие" | B38: 8602171819 | C38: 860201001 | D38: Сбытовая компания | E38: Тюменская область
A39: ООО "Нижневартовская энергосбытовая компания" | B39: 8603109926 | C39: 860301001 | D39: Сбытовая компания | E39: Тюменская область
A40: ООО "Промэнергосбыт" | B40: 7206036155 | C40: 720601001 | D40: Сбытовая компания | E40: Тюменская область
A41: ООО "РН-Энерго" | B41: 7706525041 | C41: 772501001 | D41: Сбытовая компания | E41: Тюменская область
A42: ООО "РУСЭНЕРГОСБЫТ" | B42: 7706284124 | C42: 770601001 | D42: Сбытовая компания | E42: Тюменская область
A43: ООО "Региональная энергосбытовая компания" (ОПП) | B43: 4633017746 | C43: 463301001 | D43: Сбытовая компания | E43: Тюменская область
A44: ООО "Русэнергоресурс" | B44: 7706288496 | C44: 770601001 | D44: Сбытовая компания | E44: Тюменская область
A45: ООО "Сургутская энергосбытовая компания" | B45: 8602153048 | C45: 860201001 | D45: Сбытовая компания | E45: Тюменская область
A46: ООО "ТЭК-Энерго" | B46: 8602173527 | C46: 860201001 | D46: Сбытовая компания | E46: Тюменская область
A47: ООО "Транснефтьэнерго" | B47: 7703552167 | C47: 772301001 | D47: Сбытовая компания | E47: Тюменская область
A48: ООО "Энергосбытовая компания Черногорэнерго" | B48: 8603126569 | C48: 860301001 | D48: Сбытовая компания | E48: Тюменская область
A49: ООО "Энергострим - Энергосбыт" | B49: 7724669350 | C49: 770401001 | D49: Сбытовая компания | E49: Тюменская область
A50: ООО Энергосбытовая компания "Аган",г.Радужный | B50: 8609018048 | C50: 860901001 | D50: Сбытовая компания | E50: Тюменская область
A51: Общество с ограниченной ответственностью «Энергосбытовая компания» | B51: 0275075272 | C51: 027501001 | D51: Сбытовая компания | E51: Тюменская область
A52: РЭУ ОАО "Запсибгазпром" | B52: 7203001796 | C52: 720345001 | D52: Сбытовая компания | E52: Тюменская область
A53: ЗАО " Тюменский приборостроительный завод" | B53: 7203000841 | C53: 720301001 | D53: Сетевая компания | E53: Тюменская область
A54: ЗАО "Завод Тюменьремдормаш" | B54: 7204005867 | C54: 722401001 | D54: Сетевая компания | E54: Тюменская область
A55: ЗАО "НадымЭнергоСбыт" | B55: 8903032551 | C55: 890301001 | D55: Сетевая компания | E55: Тюменская область
A56: ЗАО "Сибэнергокомплектмонтаж" | B56: 8602057175 | C56: 860201001 | D56: Сетевая компания | E56: Тюменская область
A57: МП "ГЭС" г. Ханты-Мансийск" | B57: 8601005865 | C57: 860101001 | D57: Сетевая компания | E57: Тюменская область
A58: МУП "Губкинские городские электрические сети" | B58: 8913000830 | C58: 891301001 | D58: Сетевая компания | E58: Тюменская область
A59: МУП "Муравленковское предприятие городских электрических сетей" | B59: 8906000460 | C59: 890601001 | D59: Сетевая компания | E59: Тюменская область
A60: МУП "Надымские городские электрические сети" | B60: 8903030850 | C60: 890301001 | D60: Сетевая компания | E60: Тюменская область
A61: МУП "Пуровские электрические сети" | B61: 8911018938 | C61: 891101001 | D61: Сетевая компания | E61: Тюменская область
A62: МУП "Сургутские районные электрические сети" МО Сургутский район | B62: 8617017320 | C62: 861701001 | D62: Сетевая компания | E62: Тюменская область
A63: МУП ЖКХ "Лимбей" | B63: 8904008329 | C63: 890401001 | D63: Сетевая компания | E63: Тюменская область
A64: Муниципальное предприятие "Эксплуатационная генерирующая компания" муниципального образования городское поселение Приобье | B64: 8614008285 | C64: 861401001 | D64: Сетевая компания | E64: Тюменская область
A65: ОАО "Аэропорт Белоярский" | B65: 8611002077 | C65: 861101001 | D65: Сетевая компания | E65: Тюменская область
A66: ОАО "Аэропорт Рощино" | B66: 7204660086 | C66: 720401001 | D66: Сетевая компания | E66: Тюменская область
A67: ОАО "Аэропорт Сургут" | B67: 8602060523 | C67: 860201001 | D67: Сетевая компания | E67: Тюменская область
A68: ОАО "Аэропорт Урай" | B68: 8606010379 | C68: 860601001 | D68: Сетевая компания | E68: Тюменская область
A69: ОАО "Варьеганэнергонефть" | B69: 8609003059 | C69: 860901001 | D69: Сетевая компания | E69: Тюменская область
A70: ОАО "Вынгапуровский тепловодоканал" | B70: 8905045443 | C70: 890501001 | D70: Сетевая компания | E70: Тюменская область
A71: ОАО "ГЭС" г. Мегион | B71: 8605017251 | C71: 860501001 | D71: Сетевая компания | E71: Тюменская область
A72: ОАО "Городские электрические сети" г.Нижневартовск | B72: 8603004190 | C72: 860301001 | D72: Сетевая компания | E72: Тюменская область
A73: ОАО "Кондинский комплексный лесопромышленный комбинат" | B73: 8616000203 | C73: 861601001 | D73: Сетевая компания | E73: Тюменская область
A74: ОАО "Надымское авиапредприятие" | B74: 8903025610 | C74: 890301001 | D74: Сетевая компания | E74: Тюменская область
A75: ОАО "Нижневартовское нефтегазодобывающее предприятие" | B75: 8603089941 | C75: 997150001 | D75: Сетевая компания | E75: Тюменская область
A76: ОАО "Новоуренгойский объединенный авиаотряд" | B76: 8904045602 | C76: 891450001 | D76: Сетевая компания | E76: Тюменская область
A77: ОАО "Пойковские электрические сети" | B77: 8619013546 | C77: 861901001 | D77: Сетевая компания | E77: Тюменская область
A78: ОАО "Птицефабрика "Боровская" | B78: 7224008030 | C78: 722401001 | D78: Сетевая компания | E78: Тюменская область
A79: ОАО "РГЭС" | B79: 8609004670 | C79: 860901001 | D79: Сетевая компания | E79: Тюменская область
A80: ОАО "СУЭНКО" | B80: 7205011944 | C80: 720501001 | D80: Сетевая компания | E80: Тюменская область
A81: ОАО "Самотлорнефтегаз" | B81: 8603089934 | C81: 997150001 | D81: Сетевая компания | E81: Тюменская область
A82: ОАО "Сибнефтепровод" | B82: 7201000726 | C82: 720301001 | D82: Сетевая компания | E82: Тюменская область
A83: ОАО "Строительно-промышленный комбинат" | B83: 8603108023 | C83: 860301001 | D83: Сетевая компания | E83: Тюменская область
A84: ОАО "Сургутнефтегаз" | B84: 8602060555 | C84: 997150001 | D84: Сетевая компания | E84: Тюменская область
A85: ОАО "ТНК-Нягань" | B85: 8610010727 | C85: 997150001 | D85: Сетевая компания | E85: Тюменская область
A86: ОАО "Тюменский завод медицинского оборудования и инструментов" | B86: 7203000834 | C86: 720301001 | D86: Сетевая компания | E86: Тюменская область
A87: ОАО "Тюменский электромеханический завод" | B87: 7204003108 | C87: 720401001 | D87: Сетевая компания | E87: Тюменская область
A88: ОАО "Тюменьэнерго" | B88: 8602060185 | C88: 997450001 | D88: Сетевая компания | E88: Тюменская область
A89: ОАО "Уренгойгорэлектросеть" | B89: 8904046645 | C89: 890401001 | D89: Сетевая компания | E89: Тюменская область
A90: ОАО "ФСК ЕЭС" | B90: 4716016979 | C90: 772801001 | D90: Сетевая компания | E90: Тюменская область
A91: ОАО "ФСК ЕЭС" | B91: 4716016979 | C91: 997450001 | D91: Сетевая компания | E91: Тюменская область
A92: ОАО "Черногорэнерго" | B92: 8620001023 | C92: 860301001 | D92: Сетевая компания | E92: Тюменская область
A93: ОАО "Элек" | B93: 8602066853 | C93: 860201001 | D93: Сетевая компания | E93: Тюменская область
A94: ОАО "Энерго-Газ-Ноябрьск" | B94: 8905033649 | C94: 890501001 | D94: Сетевая компания | E94: Тюменская область
A95: ОАО "ЮРЭСК" | B95: 8601045152 | C95: 860101001 | D95: Сетевая компания | E95: Тюменская область
A96: ОАО "ЮТЭК-Покачи" | B96: 8621005479 | C96: 862101001 | D96: Сетевая компания | E96: Тюменская область
A97: ОАО "ЮТЭК-Региональные сети" | B97: 8601033125 | C97: 860101001 | D97: Сетевая компания | E97: Тюменская область
A98: ОАО "Ямальская железнодорожная компания" | B98: 8904042048 | C98: 890401001 | D98: Сетевая компания | E98: Тюменская область
A99: ОАО ТТК "КРОСНО" | B99: 7203001250 | C99: 720301001 | D99: Сетевая компания | E99: Тюменская область
A100: ООО " Тюменская электросетевая компания" | B100: 7204160220 | C100: 720401001 | D100: Сетевая компания | E100: Тюменская область
A101: ООО "Агентство Интеллект-Сервис" | B101: 7202082778 | C101: 720201001 | D101: Сетевая компания | E101: Тюменская область
A102: ООО "Агропромэнергия" | B102: 7224014468 | C102: 722401001 | D102: Сетевая компания | E102: Тюменская область
A103: ООО "Альтера" | B103: 7203252461 | C103: 720301001 | D103: Сетевая компания | E103: Тюменская область
A104: ООО "Аэропорт Советский" | B104: 8615001243 | C104: 861501001 | D104: Сетевая компания | E104: Тюменская область
A105: ООО "Башнефть-Добыча" | B105: 0277106840 | C105: 027501001 | D105: Сетевая компания | E105: Тюменская область
A106: ООО "Белозерный газоперерабатывающий комплекс" | B106: 8603138733 | C106: 862450001 | D106: Сетевая компания | E106: Тюменская область
A107: ООО "Газпром добыча Уренгой" | B107: 8904034784 | C107: 997250001 | D107: Сетевая компания | E107: Тюменская область
A108: ООО "Газпром переработка" | B108: 1102054991 | C108: 997250001 | D108: Сетевая компания | E108: Тюменская область
A109: ООО "Газпром трансгаз Сургут" | B109: 8617002073 | C109: 997250001 | D109: Сетевая компания | E109: Тюменская область
A110: ООО "Газпром трансгаз Сургут" Демьянское ЛПУ МГ | B110: 8617002073 | C110: 722503003 | D110: Сетевая компания | E110: Тюменская область
A111: ООО "Газпром трансгаз Сургут" Ишимское ЛПУ МГ | B111: 8617002073 | C111: 720503001 | D111: Сетевая компания | E111: Тюменская область
A112: ООО "Газпром трансгаз Сургут" Тобольское ЛПУ МГ | B112: 8617002073 | C112: 720603002 | D112: Сетевая компания | E112: Тюменская область
A113: ООО "Газпром трансгаз Сургут" Туртасское ЛПУ МГ | B113: 8617002073 | C113: 722503004 | D113: Сетевая компания | E113: Тюменская область
A114: ООО "Газпром трансгаз Сургут" Ярковское ЛПУ МГ | B114: 8617002073 | C114: 722943001 | D114: Сетевая компания | E114: Тюменская область
A115: ООО "Газпром энерго" в зоне деятельности Сургутского филиала | B115: 7736186950 | C115: 860202001 | D115: Сетевая компания | E115: Тюменская область
A116: ООО "ДОК-Энерго" | B116: 7204129541 | C116: 720401001 | D116: Сетевая компания | E116: Тюменская область
A117: ООО "ДСК-Энерго" | B117: 7203144385 | C117: 720301001 | D117: Сетевая компания | E117: Тюменская область
A118: ООО "Западно-Малобалыкское" | B118: 8619010665 | C118: 997150001 | D118: Сетевая компания | E118: Тюменская область
A119: ООО "ИНТЕГРУС" | B119: 7202190565 | C119: 720201001 | D119: Сетевая компания | E119: Тюменская область
A120: ООО "ЛУКОЙЛ-ЭНЕРГОСЕТИ" | B120: 5260230051 | C120: 525350001 | D120: Сетевая компания | E120: Тюменская область
A121: ООО "Луч-Электро" | B121: 8603097124 | C121: 860301001 | D121: Сетевая компания | E121: Тюменская область
A122: ООО "Мегионэнергонефть" | B122: 8605016890 | C122: 862450001 | D122: Сетевая компания | E122: Тюменская область
A123: ООО "МинЭл" | B123: 8614008550 | C123: 861401001 | D123: Сетевая компания | E123: Тюменская область
A124: ООО "Нижневартовский газоперерабатывающий комплекс" | B124: 8603138726 | C124: 862450001 | D124: Сетевая компания | E124: Тюменская область
A125: ООО "Нижневартовскэнергонефть" | B125: 8603104220 | C125: 862450001 | D125: Сетевая компания | E125: Тюменская область
A126: ООО "Ноябрьскэнергонефть" | B126: 8905032490 | C126: 891450001 | D126: Сетевая компания | E126: Тюменская область
A127: ООО "Няганьгазпереработка" | B127: 8610012450 | C127: 861001001 | D127: Сетевая компания | E127: Тюменская область
A128: ООО "РН - Юганскнефтегаз" | B128: 8604035473 | C128: 997150001 | D128: Сетевая компания | E128: Тюменская область
A129: ООО "Ремэнергостройсервис" | B129: 7224023014 | C129: 722401001 | D129: Сетевая компания | E129: Тюменская область
A130: ООО "Русская тепловая компания" | B130: 8602062560 | C130: 860201001 | D130: Сетевая компания | E130: Тюменская область
A131: ООО "Северремприбор" | B131: 8602248187 | C131: 860201001 | D131: Сетевая компания | E131: Тюменская область
A132: ООО "Сетевая компания "Вектор" | B132: 7204143715 | C132: 720401001 | D132: Сетевая компания | E132: Тюменская область
A133: ООО "Сибирь-Электро" | B133: 7224035725 | C133: 722401001 | D133: Сетевая компания | E133: Тюменская область
A134: ООО "Сибтрансэлектро" | B134: 8604010454 | C134: 860401001 | D134: Сетевая компания | E134: Тюменская область
A135: ООО "Статус" | B135: 7202153919 | C135: 720401001 | D135: Сетевая компания | E135: Тюменская область
A136: ООО "Сургутские городские электрические сети" | B136: 8602015464 | C136: 860201001 | D136: Сетевая компания | E136: Тюменская область
A137: ООО "Тарманское-Центральное" | B137: 7203141497 | C137: 720301001 | D137: Сетевая компания | E137: Тюменская область
A138: ООО "Тобольск-Нефтехим" | B138: 7206025040 | C138: 723150001 | D138: Сетевая компания | E138: Тюменская область
A139: ООО "Тобольскпромэнергосеть" | B139: 7206032440 | C139: 720601001 | D139: Сетевая компания | E139: Тюменская область
A140: ООО "Транзит-Электро-Тюмень" | B140: 7203249540 | C140: 720301001 | D140: Сетевая компания | E140: Тюменская область
A141: ООО "Управляющая компания - Тюменские моторостроители" | B141: 7203179282 | C141: 720301001 | D141: Сетевая компания | E141: Тюменская область
A142: ООО "Электроспецстрой" | B142: 7224038532 | C142: 722401001 | D142: Сетевая компания | E142: Тюменская область
A143: ООО "Элтранс" | B143: 7224042747 | C143: 720401001 | D143: Сетевая компания | E143: Тюменская область
A144: ООО "Энергия-2006" | B144: 7203180111 | C144: 720301001 | D144: Сетевая компания | E144: Тюменская область
A145: ООО "Энерго Тюмень" | B145: 7204161070 | C145: 720401001 | D145: Сетевая компания | E145: Тюменская область
A146: ООО "Энерго-Лидер" | B146: 7204162073 | C146: 720401001 | D146: Сетевая компания | E146: Тюменская область
A147: ООО "Энергонефть Томск" | B147: 7022010799 | C147: 702201001 | D147: Сетевая компания | E147: Тюменская область
A148: ООО "Юграавиа" | B148: 8601002529 | C148: 860101001 | D148: Сетевая компания | E148: Тюменская область
A149: Открытое акционерное общество "Оборонэнерго" - филиал "Уральский" | B149: 7704726225 | C149: 667243001 | D149: Сетевая компания | E149: Тюменская область
A150: Северная дирекция по энергообеспечению - структурное подразделение Трансэнерго - филиала ОАО "Российские железные дороги" | B150: 7708503727 | C150: 760445013 | D150: Сетевая компания | E150: Тюменская область
A151: Уренгойский филиал ООО "Газпром энерго" | B151: 7736186950 | C151: 890402001 | D151: Сетевая компания | E151: Тюменская область
A152: ФБУ "Центр реабилитации ФСС РФ "Тараскуль" | B152: 7204013642 | C152: 720401001 | D152: Сетевая компания | E152: Тюменская область
A153: ФГУП "Стройтранс №1" | B153: 7203019680 | C153: 720201001 | D153: Сетевая компания | E153: Тюменская область
A154: филиал ОАО "РЖД" - Свердловская ж.д. (Сургутская дистанция) | B154: 7708503727 | C154: 860245012 | D154: Сетевая компания | E154: Тюменская область
A155: филиал ОАО "РЖД"- Свердловская ж.д. (Тюменская дистанция) | B155: 7708503727 | C155: 720445015 | D155: Сетевая компания | E155: Тюменская область
A156: ЗАО "ЛУКОЙЛ-АИК" | B156: 8608180070 | C156: 860801001 | D156: Станция - поставщик ЭЭ | E156: Тюменская область
A157: ЗАО Нижневартовская ГРЭС | B157: 8620018330 | C157: 862450001 | D157: Станция - поставщик ЭЭ | E157: Тюменская область
A158: ОАО "Вторая генерирующая компания оптового рынка электроэнергии" в зоне деятельности филиала Сургутская ГРЭС-1 | B158: 2607018122 | C158: 860202001 | D158: Станция - поставщик ЭЭ | E158: Тюменская область
A159: ОАО "ИНТЕР РАО - Электрогенерация" | B159: 7704784450 | C159: 862450001 | D159: Станция - поставщик ЭЭ | E159: Тюменская область
A160: ОАО "Межрегионэнергосбыт" | B160: 7705750968 | C160: 772901001 | D160: Станция - поставщик ЭЭ | E160: Тюменская область
A161: ОАО "Передвижная энергетика" | B161: 7719019846 | C161: 771901001 | D161: Станция - поставщик ЭЭ | E161: Тюменская область
A162: ОАО "Передвижная энергетика" филиал ПЭС "Уренгой" | B162: 7719019846 | C162: 890402001 | D162: Станция - поставщик ЭЭ | E162: Тюменская область
A163: ОАО "Передвижная энергетика" филиал "ПЭС Казым" | B163: 7719019846 | C163: 861102001 | D163: Станция - поставщик ЭЭ | E163: Тюменская область
A164: ОАО "Славнефть-Мегионнефтегаз" | B164: 8605003932 | C164: 860501001 | D164: Станция - поставщик ЭЭ | E164: Тюменская область
A165: ОАО "ТНК-Нягань" | B165: 8610010727 | C165: 997150001 | D165: Станция - поставщик ЭЭ | E165: Тюменская область
A166: ОАО "Тюменская энергосбытовая компания" | B166: 8602067215 | C166: 862450001 | D166: Станция - поставщик ЭЭ | E166: Тюменская область
A167: ОАО "Фортум" | B167: 7203162698 | C167: 997450001 | D167: Станция - поставщик ЭЭ | E167: Тюменская область
A168: ОАО "Фортум" (Няганская ГРЭС) | B168: 7203162698 | C168: 861002001 | D168: Станция - поставщик ЭЭ | E168: Тюменская область
A169: ОАО "Фортум" (Тобольская ТЭЦ) | B169: 7203162698 | C169: 720602001 | D169: Станция - поставщик ЭЭ | E169: Тюменская область
A170: ОАО "Фортум" (Тюменская ТЭЦ-1) | B170: 7203162698 | C170: 720302001 | D170: Станция - поставщик ЭЭ | E170: Тюменская область
A171: ОАО "Э.ОН Россия" | B171: 8602067092 | C171: 860201001 | D171: Станция - поставщик ЭЭ | E171: Тюменская область
A172: ОАО "Э.ОН Россия" в зоне деятеьности филиала "Сургутская ГРЭС-2" ОАО "Э.ОН Россия" | B172: 8602067092 | C172: 860202001 | D172: Станция - поставщик ЭЭ | E172: Тюменская область
A173: ООО "Газпром добыча Уренгой" | B173: 8904034784 | C173: 997250001 | D173: Станция - поставщик ЭЭ | E173: Тюменская область
A174: ООО "Газпром добыча Ямбург" | B174: 8904034777 | C174: 890401001 | D174: Станция - поставщик ЭЭ | E174: Тюменская область
A175: ООО "Западно-Малобалыкское" | B175: 8619010665 | C175: 997150001 | D175: Станция - поставщик ЭЭ | E175: Тюменская область
A176: ООО "ЛУКОЙЛ-Западная Сибирь" | B176: 8608048498 | C176: 860602001 | D176: Станция - поставщик ЭЭ | E176: Тюменская область
A177: ООО "Ноябрьская ПГЭ" | B177: 8905037499 | C177: 890501001 | D177: Станция - поставщик ЭЭ | E177: Тюменская область
A178: ООО "Салым Петролеум" | B178: 8619013320 | C178: 861901001 | D178: Станция - поставщик ЭЭ | E178: Тюменская область
A179: ООО "Северная ПЛЭС" | B179: 7716605105 | C179: 890345001 | D179: Станция - поставщик ЭЭ | E179: Тюменская область
A180: Обособленное подразделение Тюменская ТЭЦ-2 филиала Энергосистема "Западная Сибирь" ОАО "Фортум" | B180: 7203162698 | C180: 720302003 | D180: Станция - поставщик ЭЭ | E180: Тюменская область
A181: Филиал "Уренгойская ГРЭС" ОАО "ИНТЕР РАО - Электрогенерация" | B181: 7704784450 | C181: 890443001 | D181: Станция - поставщик ЭЭ | E181: Тюменская область
A182: МП "ГЭС" г. Ханты-Мансийск" | B182: 8601005865 | C182: 860101001 | D182: ЭСО | E182: Тюменская область
A183: ОАО "СУЭНКО" | B183: 7205011944 | C183: 720501001 | D183: ЭСО | E183: Тюменская область
A184: ЗАО "ЛУКОЙЛ-АИК" | B184: 8608180070 | C184: 860801001 | D184: Региональная генерация | E184: Ханты-Мансийский автономный округ
A185: ОАО "ИНТЕР РАО - Электрогенерация" | B185: 7704784450 | C185: 862450001 | D185: Региональная генерация | E185: Ханты-Мансийский автономный округ
A186: ОАО "Славнефть-Мегионнефтегаз" | B186: 8605003932 | C186: 860501001 | D186: Региональная генерация | E186: Ханты-Мансийский автономный округ
A187: ОАО "ТНК-Нягань" | B187: 8610010727 | C187: 997150001 | D187: Региональная генерация | E187: Ханты-Мансийский автономный округ
A188: ОАО "Югорская Генерирующая Компания"" | B188: 8601029263 | C188: 860101001 | D188: Региональная генерация | E188: Ханты-Мансийский автономный округ
A189: ООО "Газпром трансгаз Югорск" | B189: 8622000931 | C189: 997250001 | D189: Региональная генерация | E189: Ханты-Мансийский автономный округ
A190: ООО "Газпромнефть-Хантос" | B190: 8618006063 | C190: 862450001 | D190: Региональная генерация | E190: Ханты-Мансийский автономный округ
A191: ООО "ЛУКОЙЛ-Западная Сибирь" | B191: 8608048498 | C191: 860602001 | D191: Региональная генерация | E191: Ханты-Мансийский автономный округ
A192: ООО "Салым Петролеум" | B192: 8619013320 | C192: 861901001 | D192: Региональная генерация | E192: Ханты-Мансийский автономный округ
A193: МП "ГЭС" г. Ханты-Мансийск" | B193: 8601005865 | C193: 860101001 | D193: Сбытовая компания | E193: Ханты-Мансийский автономный округ
A194: ОАО "ОБОРОНЭНЕРГОСБЫТ" филиал "УРАЛЬСКИЙ" | B194: 7704731218 | C194: 720445001 | D194: Сбытовая компания | E194: Ханты-Мансийский автономный округ
A195: ОАО "Оборонэнергосбыт" | B195: 7704731218 | C195: 770401001 | D195: Сбытовая компания | E195: Ханты-Мансийский автономный округ
A196: ОАО "Тюменская энергосбытовая компания" | B196: 8602067215 | C196: 862450001 | D196: Сбытовая компания | E196: Ханты-Мансийский автономный округ
A197: ОАО "Энергосбытовая компания "Восток" | B197: 7705424509 | C197: 770101001 | D197: Сбытовая компания | E197: Ханты-Мансийский автономный округ
A198: ОАО "ЮТЭК" | B198: 8601022317 | C198: 860101001 | D198: Сбытовая компания | E198: Ханты-Мансийский автономный округ
A199: ООО "Газпром трансгаз Югорск" | B199: 8622000931 | C199: 997250001 | D199: Сбытовая компания | E199: Ханты-Мансийский автономный округ
A200: ООО "Независимое энергосбытовое предприятие" | B200: 8602171819 | C200: 860201001 | D200: Сбытовая компания | E200: Ханты-Мансийский автономный округ
... 343 more rows

Sheet modP1_30 (hidden)

Sheet modfrmReestr (hidden)

Sheet modAuthorizationUtilities (hidden)

Sheet AUTHORIZATION (hidden)

Sheet modfrmCheckInIsInProgress (hidden)

Sheet modOrgData (hidden)
C315: заработная плата прочего персонала, относимого на регулируемый вид деятельности
C715: заработная плата прочего персонала, относимого на регулируемый вид деятельности
C1115: заработная плата прочего персонала, относимого на регулируемый вид деятельности
C1512: заработная плата прочего персонала, относимого на регулируемый вид деятельности
C1912: заработная плата прочего персонала, относимого на регулируемый вид деятельности
C2312: заработная плата прочего персонала, относимого на регулируемый вид деятельности
C3912: заработная плата прочего персонала, относимого на регулируемый вид деятельности

Sheet Лист1
